Workbook

Sheet About
I3: ='Attributes (T1)'!C3 -> Name of PA (enter here)
B17: Country | D17: Papua New Guinea
B18: Protected Area
B19: Year

Sheet Dashboard Graphics
D19: =Dashboard!B113 -> METT Category | E19: =Dashboard!C113 -> % Weighted Score
D20: =Dashboard!B114 -> Planning | E20: =Dashboard!C114 -> 60.60606061
D21: =Dashboard!B115 -> Input | E21: =Dashboard!C115 -> 23.33333333
D22: =Dashboard!B116 -> Process | E22: =Dashboard!C116 -> 27.57044935
D23: =Dashboard!B117 -> Output | E23: =Dashboard!C117 -> 40.625
D24: =Dashboard!B118 -> Outcome | E24: =Dashboard!C118 -> 33.33333333
D25: =Dashboard!B119 -> Governance | E25: =Dashboard!C119 -> 14.08450704
D26: =Dashboard!B120 -> TOTAL | E26: =Dashboard!C120 -> 31.37886598

Sheet Dashboard
A1: Category | B1: Issue | C1: Possible Score | D1: Score | E1: Possible Weighted Score | F1: Weighted Score | I1: Categories for reporting
A2: Planning | B2: 1. Legal status | C2: ='Scorecard (T8)'!G3 -> 3 | D2: ='Scorecard (T8)'!F3 -> 0 | E2: ='Scorecard (T8)'!I3 -> 3 | F2: ='Scorecard (T8)'!J3 -> 0 | I2: Design & establishment
A3: Planning | B3: 2. PA objectives | C3: ='Scorecard (T8)'!G4 -> 3 | D3: ='Scorecard (T8)'!F4 -> 2 | E3: ='Scorecard (T8)'!I4 -> 3 | F3: ='Scorecard (T8)'!J4 -> 2 | I3: Planning & objectives
A4: Process | B4: 3. PA regulations or customary laws/rules | C4: ='Scorecard (T8)'!G5 -> 3 | D4: ='Scorecard (T8)'!F5 -> 0 | E4: ='Scorecard (T8)'!I5 -> 3 | F4: ='Scorecard (T8)'!J5 -> 0 | I4: Legislation, control & enforcement
A5: Governance | B5: 3a. Clearly defined rules | C5: ='Scorecard (T8)'!G6 -> 3 | D5: ='Scorecard (T8)'!F6 -> 1 | E5: ='Scorecard (T8)'!I6 -> 1.5 | F5: ='Scorecard (T8)'!J6 -> 0.5 | I5: Legislation, control & enforcement
A6: Governance | B6: 3b. Clearly defined user/access rights | C6: ='Scorecard (T8)'!G7 -> 3 | D6: ='Scorecard (T8)'!F7 -> 1 | E6: ='Scorecard (T8)'!I7 -> 0.75 | F6: ='Scorecard (T8)'!J7 -> 0.25 | I6: Legislation, control & enforcement
A7: Governance | B7: 3c. Awareness of user/access rights | C7: ='Scorecard (T8)'!G8 -> 3 | D7: ='Scorecard (T8)'!F8 -> 1 | E7: ='Scorecard (T8)'!I8 -> 0.75 | F7: ='Scorecard (T8)'!J8 -> 0.25 | I7: Legislation, control & enforcement
A8: Planning | B8: 4. Planning for land use or coastal/marine activities that occur outside the PA | C8: ='Scorecard (T8)'!G9 -> 1 | D8: ='Scorecard (T8)'!F9 -> 3 | E8: ='Scorecard (T8)'!I9 -> 1 | F8: ='Scorecard (T8)'!J9 -> 3 | I8: Planning & objectives
A9: Planning | B9: 4a. Land & water planning for habitat conservation | C9: ='Scorecard (T8)'!G10 -> 3 | D9: ='Scorecard (T8)'!F10 -> 1 | E9: ='Scorecard (T8)'!I10 -> 1.2 | F9: ='Scorecard (T8)'!J10 -> 0.4 | I9: Planning & objectives
A10: Planning | B10: 4b. Land & water planning for connectivity | C10: ='Scorecard (T8)'!G11 -> 1 | D10: ='Scorecard (T8)'!F11 -> 1 | E10: ='Scorecard (T8)'!I11 -> 0.3 | F10: ='Scorecard (T8)'!J11 -> 0.3 | I10: Planning & objectives
A11: Planning | B11: 4c. Land and water planning for ecosystem services and species conservation | C11: ='Scorecard (T8)'!G12 -> 1 | D11: ='Scorecard (T8)'!F12 -> 1 | E11: ='Scorecard (T8)'!I12 -> 0.3 | F11: ='Scorecard (T8)'!J12 -> 0.3 | I11: Planning & objectives
A12: Planning | B12: 5. PA design | C12: ='Scorecard (T8)'!G13 -> 3 | D12: ='Scorecard (T8)'!F13 -> 2 | E12: ='Scorecard (T8)'!I13 -> 3 | F12: ='Scorecard (T8)'!J13 -> 2 | I12: Design & establishment
A13: Process | B13: 6a. On ground boundary marking of PA | C13: ='Scorecard (T8)'!G14 -> 3 | D13: ='Scorecard (T8)'!F14 -> 3 | E13: ='Scorecard (T8)'!I14 -> 0.9 | F13: ='Scorecard (T8)'!J14 -> 0.9 | I13: Design & establishment
A14: Process | B14: 6b. Map of PA boundaries | C14: ='Scorecard (T8)'!G15 -> 1 | D14: ='Scorecard (T8)'!F15 -> 1 | E14: ='Scorecard (T8)'!I15 -> 0.4 | F14: ='Scorecard (T8)'!J15 -> 0.4 | I14: Design & establishment
A15: Process | B15: 6c. GIS mapping of PA boundaries | C15: ='Scorecard (T8)'!G16 -> 1 | D15: ='Scorecard (T8)'!F16 -> 0 | E15: ='Scorecard (T8)'!I16 -> 0.3 | F15: ='Scorecard (T8)'!J16 -> 0 | I15: Design & establishment
A16: Process | B16: 6d. Boundary awareness of people who own the PA | C16: ='Scorecard (T8)'!G17 -> 3 | D16: ='Scorecard (T8)'!F17 -> 3 | E16: ='Scorecard (T8)'!I17 -> 1.5 | F16: ='Scorecard (T8)'!J17 -> 1.5 | I16: Design & establishment
A17: Process | B17: 6e. Boundary awareness among surrounding communities | C17: ='Scorecard (T8)'!G18 -> 3 | D17: ='Scorecard (T8)'!F18 -> 1 | E17: ='Scorecard (T8)'!I18 -> 1.5 | F17: ='Scorecard (T8)'!J18 -> 0.5 | I17: Design & establishment
A18: Process | B18: 6f. Respect of boundary by surrounding communities | C18: ='Scorecard (T8)'!G19 -> 3 | D18: ='Scorecard (T8)'!F19 -> 0 | E18: ='Scorecard (T8)'!I19 -> 1.2 | F18: ='Scorecard (T8)'!J19 -> 0 | I18: Design & establishment
A19: Process | B19: 6g. Respect of boundaries by Local Level Government | C19: ='Scorecard (T8)'!G20 -> 1 | D19: ='Scorecard (T8)'!F20 -> 0 | E19: ='Scorecard (T8)'!I20 -> 0.3 | F19: ='Scorecard (T8)'!J20 -> 0 | I19: Design & establishment
A20: Process | B20: 6h. Respect of boundaries at the District level | C20: ='Scorecard (T8)'!G21 -> 1 | D20: ='Scorecard (T8)'!F21 -> 1 | E20: ='Scorecard (T8)'!I21 -> 0.3 | F20: ='Scorecard (T8)'!J21 -> 0.3 | I20: Design & establishment
A21: Planning | B21: 7. Management planning | C21: ='Scorecard (T8)'!G22 -> 3 | D21: ='Scorecard (T8)'!F22 -> 2 | E21: ='Scorecard (T8)'!I22 -> 3 | F21: ='Scorecard (T8)'!J22 -> 2 | I21: Planning & objectives
A22: Planning | B22: 7a. Community/key people input into management plan | C22: ='Scorecard (T8)'!G23 -> 1 | D22: ='Scorecard (T8)'!F23 -> 1 | E22: ='Scorecard (T8)'!I23 -> 1 | F22: ='Scorecard (T8)'!J23 -> 1 | I22: Planning & objectives
A23: Planning | B23: 7b. Plan review of the management plan | C23: ='Scorecard (T8)'!G24 -> 1 | D23: ='Scorecard (T8)'!F24 -> 0 | E23: ='Scorecard (T8)'!I24 -> 1 | F23: ='Scorecard (T8)'!J24 -> 0 | I23: Planning & objectives
A24: Process | B24: 7c. Functioning protected area Management Committee | C24: ='Scorecard (T8)'!G25 -> 1 | D24: ='Scorecard (T8)'!F25 -> 0 | E24: ='Scorecard (T8)'!I25 -> 0.25 | F24: ='Scorecard (T8)'!J25 -> 0 | I24: Planning & objectives
A25: Governance | B25: 7d. Structures & processes of Management Committee & related PA decision making are clearly documented | C25: ='Scorecard (T8)'!G26 -> 1 | D25: ='Scorecard (T8)'!F26 -> 0 | E25: ='Scorecard (T8)'!I26 -> 0.25 | F25: ='Scorecard (T8)'!J26 -> 0 | I25: Planning & objectives
A26: Governance | B26: 7e. Decision-making structures and processes in relation to the management committee | C26: ='Scorecard (T8)'!G27 -> 3 | D26: ='Scorecard (T8)'!F27 -> 1 | E26: ='Scorecard (T8)'!I27 -> 0.75 | F26: ='Scorecard (T8)'!J27 -> 0.25 | I26: Planning & objectives
A27: Governance | B27: 7f. Access to Management Committee decisions | C27: ='Scorecard (T8)'!G28 -> 1 | D27: ='Scorecard (T8)'!F28 -> 1 | E27: ='Scorecard (T8)'!I28 -> 0.25 | F27: ='Scorecard (T8)'!J28 -> 0.25 | I27: Planning & objectives
A28: Planning | B28: 8. Regular work plan | C28: ='Scorecard (T8)'!G29 -> 3 | D28: ='Scorecard (T8)'!F29 -> 1 | E28: ='Scorecard (T8)'!I29 -> 3 | F28: ='Scorecard (T8)'!J29 -> 1 | I28: Planning & objectives
A29: Input | B29: 9. Resource inventory | C29: ='Scorecard (T8)'!G30 -> 3 | D29: ='Scorecard (T8)'!F30 -> 2 | E29: ='Scorecard (T8)'!I30 -> 3 | F29: ='Scorecard (T8)'!J30 -> 2 | I29: Resource management
A30: Input | B30: 10. Staff numbers | C30: ='Scorecard (T8)'!G31 -> 3 | D30: ='Scorecard (T8)'!F31 -> 0 | E30: ='Scorecard (T8)'!I31 -> 3 | F30: ='Scorecard (T8)'!J31 -> 0 | I30: Human resources
A31: Input | B31: 10a. Other unpaid people working on PA | C31: ='Scorecard (T8)'!G32 -> 3 | D31: ='Scorecard (T8)'!F32 -> 1 | E31: ='Scorecard (T8)'!I32 -> 3 | F31: ='Scorecard (T8)'!J32 -> 1 | I31: Human resources
A32: Input | B32: 11. Knowledge and skills | C32: ='Scorecard (T8)'!G33 -> 3 | D32: ='Scorecard (T8)'!F33 -> 2 | E32: ='Scorecard (T8)'!I33 -> 3 | F32: ='Scorecard (T8)'!J33 -> 2 | I32: Human resources
A33: Input | B33: 12. Current budget | C33: ='Scorecard (T8)'!G34 -> 3 | D33: ='Scorecard (T8)'!F34 -> 0 | E33: ='Scorecard (T8)'!I34 -> 3 | F33: ='Scorecard (T8)'!J34 -> 0 | I33: Budget, infrastructure & equipment
A34: Input | B34: 13. Security of budget | C34: ='Scorecard (T8)'!G35 -> 3 | D34: ='Scorecard (T8)'!F35 -> 0 | E34: ='Scorecard (T8)'!I35 -> 3 | F34: ='Scorecard (T8)'!J35 -> 0 | I34: Budget, infrastructure & equipment
A35: Process | B35: 14. Management of budget | C35: ='Scorecard (T8)'!G36 -> 3 | D35: ='Scorecard (T8)'!F36 -> NA | E35: ='Scorecard (T8)'!I36 -> 3 | F35: ='Scorecard (T8)'!J36 ->  | I35: Budget, infrastructure & equipment
A36: Input | B36: 15a. Equipment and facilities | C36: ='Scorecard (T8)'!G37 -> 3 | D36: ='Scorecard (T8)'!F37 -> 0 | E36: ='Scorecard (T8)'!I37 -> 3 | F36: ='Scorecard (T8)'!J37 -> 0 | I36: Budget, infrastructure & equipment
A37: Process | B37: 15b. Maintenance of equipment and facilities | C37: ='Scorecard (T8)'!G38 -> 3 | D37: ='Scorecard (T8)'!F38 -> 0 | E37: ='Scorecard (T8)'!I38 -> 3 | F37: ='Scorecard (T8)'!J38 -> 0 | I37: Budget, infrastructure & equipment
A38: Process | B38: 16. Law enforcement | C38: ='Scorecard (T8)'!G39 -> 3 | D38: ='Scorecard (T8)'!F39 -> 0 | E38: ='Scorecard (T8)'!I39 -> 3 | F38: ='Scorecard (T8)'!J39 -> 0 | I38: Legislation, control & enforcement
A39: Governance | B39: 16a. Coordination of law enforcement | C39: ='Scorecard (T8)'!G40 -> 3 | D39: ='Scorecard (T8)'!F40 -> 0 | E39: ='Scorecard (T8)'!I40 -> 1.5 | F39: ='Scorecard (T8)'!J40 -> 0 | I39: Legislation, control & enforcement
A40: Governance | B40: 16b. Solving disputes or disagreements - documentation of processes | C40: ='Scorecard (T8)'!G41 -> 3 | D40: ='Scorecard (T8)'!F41 -> 0 | E40: ='Scorecard (T8)'!I41 -> 1.5 | F40: ='Scorecard (T8)'!J41 -> 0 | I40: Legislation, control & enforcement
A41: Governance | B41: 16c. Solving disputes or disagreements – suitability of the process | C41: ='Scorecard (T8)'!G42 -> 3 | D41: ='Scorecard (T8)'!F42 -> 0 | E41: ='Scorecard (T8)'!I42 -> 0.75 | F41: ='Scorecard (T8)'!J42 -> 0 | I41: Legislation, control & enforcement
A42: Governance | B42: 16d. Solving disputes or disagreements - success | C42: ='Scorecard (T8)'!G43 -> 3 | D42: ='Scorecard (T8)'!F43 -> 0 | E42: ='Scorecard (T8)'!I43 -> 0.75 | F42: ='Scorecard (T8)'!J43 -> 0 | I42: Legislation, control & enforcement
A43: Governance | B43: 16e. Prosecution of law breakers | C43: ='Scorecard (T8)'!G44 -> 3 | D43: ='Scorecard (T8)'!F44 -> 0 | E43: ='Scorecard (T8)'!I44 -> 1.5 | F43: ='Scorecard (T8)'!J44 -> 0 | I43: Legislation, control & enforcement
A44: Governance | B44: 16f. Prosecution of law breakers | C44: ='Scorecard (T8)'!G45 -> 1 | D44: ='Scorecard (T8)'!F45 -> 0 | E44: ='Scorecard (T8)'!I45 -> 0.5 | F44: ='Scorecard (T8)'!J45 -> 0 | I44: Legislation, control & enforcement
A45: Process | B45: 17. Protection systems/law enforcement - effectiveness | C45: ='Scorecard (T8)'!G46 -> 3 | D45: ='Scorecard (T8)'!F46 -> 0 | E45: ='Scorecard (T8)'!I46 -> 3 | F45: ='Scorecard (T8)'!J46 -> 0 | I45: Legislation, control & enforcement
A46: Governance | B46: 17a. Reporting incidents | C46: ='Scorecard (T8)'!G47 -> 3 | D46: ='Scorecard (T8)'!F47 -> 0 | E46: ='Scorecard (T8)'!I47 -> 1.5 | F46: ='Scorecard (T8)'!J47 -> 0 | I46: Legislation, control & enforcement
A47: Process | B47: 18. Staff safety | C47: ='Scorecard (T8)'!G48 -> 3 | D47: ='Scorecard (T8)'!F48 -> 0 | E47: ='Scorecard (T8)'!I48 -> 3 | F47: ='Scorecard (T8)'!J48 -> 0 | I47: Human resources
A48: Process | B48: 19. Research | C48: ='Scorecard (T8)'!G49 -> 3 | D48: ='Scorecard (T8)'!F49 -> 2 | E48: ='Scorecard (T8)'!I49 -> 3 | F48: ='Scorecard (T8)'!J49 -> 2 | I48: Resource management
A49: Process | B49: 20. Monitoring & evaluation (of management activities) | C49: ='Scorecard (T8)'!G50 -> 3 | D49: ='Scorecard (T8)'!F50 -> 1 | E49: ='Scorecard (T8)'!I50 -> 3 | F49: ='Scorecard (T8)'!J50 -> 1 | I49: Resource management
A50: Process | B50: 21. Resource management | C50: ='Scorecard (T8)'!G51 -> 3 | D50: ='Scorecard (T8)'!F51 -> 1 | E50: ='Scorecard (T8)'!I51 -> 3 | F50: ='Scorecard (T8)'!J51 -> 1 | I50: Resource management
A51: Process | B51: 22. Climate change | C51: ='Scorecard (T8)'!G52 -> 3 | D51: ='Scorecard (T8)'!F52 -> 1 | E51: ='Scorecard (T8)'!I52 -> 3 | F51: ='Scorecard (T8)'!J52 -> 1 | I51: Resource management
A52: Process | B52: 23a. Carbon capture | C52: ='Scorecard (T8)'!G53 -> 3 | D52: ='Scorecard (T8)'!F53 -> 1 | E52: ='Scorecard (T8)'!I53 -> 1.5 | F52: ='Scorecard (T8)'!J53 -> 0.5 | I52: Resource management
A53: Process | B53: 23b. Carbon storage | C53: ='Scorecard (T8)'!G54 -> 3 | D53: ='Scorecard (T8)'!F54 -> 1 | E53: ='Scorecard (T8)'!I54 -> 1.5 | F53: ='Scorecard (T8)'!J54 -> 0.5 | I53: Resource management
A54: Process | B54: 24. Ecosystem services – benefits are known | C54: ='Scorecard (T8)'!G55 -> 1 | D54: ='Scorecard (T8)'!F55 -> 1 | E54: ='Scorecard (T8)'!I55 -> 0.5 | F54: ='Scorecard (T8)'!J55 -> 0.5 | I54: Resource management
A55: Process | B55: 24a. Ecosystem services | C55: ='Scorecard (T8)'!G56 -> 3 | D55: ='Scorecard (T8)'!F56 -> 2 | E55: ='Scorecard (T8)'!I56 -> 1.5 | F55: ='Scorecard (T8)'!J56 -> 1 | I55: Resource management
A56: Process | B56: 25. Education & awareness | C56: ='Scorecard (T8)'!G57 -> 3 | D56: ='Scorecard (T8)'!F57 -> 1 | E56: ='Scorecard (T8)'!I57 -> 3 | F56: ='Scorecard (T8)'!J57 -> 1 | I56: Relationships, education & awareness
A57: Process | B57: 26. Government & commercial neighbour cooperation | C57: ='Scorecard (T8)'!G58 -> 3 | D57: ='Scorecard (T8)'!F58 -> 0 | E57: ='Scorecard (T8)'!I58 -> 3 | F57: ='Scorecard (T8)'!J58 -> 0 | I57: Relationships, education & awareness
A58: Process | B58: 27. Commercial tourism operators | C58: ='Scorecard (T8)'!G59 -> 3 | D58: ='Scorecard (T8)'!F59 -> 0 | E58: ='Scorecard (T8)'!I59 -> 3 | F58: ='Scorecard (T8)'!J59 -> 0 | I58: Tourism & recreation
A59: Process | B59: 28. Fees | C59: ='Scorecard (T8)'!G60 -> 3 | D59: ='Scorecard (T8)'!F60 -> 0 | E59: ='Scorecard (T8)'!I60 -> 3 | F59: ='Scorecard (T8)'!J60 -> 0 | I59: Tourism & recreation
A60: Output | B60: 29. Visitor facilities and services | C60: ='Scorecard (T8)'!G61 -> 3 | D60: ='Scorecard (T8)'!F61 -> 1 | E60: ='Scorecard (T8)'!I61 -> 3 | F60: ='Scorecard (T8)'!J61 -> 1 | I60: Tourism & recreation
A61: Process | B61: 30. Customary landowners | C61: ='Scorecard (T8)'!G62 -> 3 | D61: ='Scorecard (T8)'!F62 -> 1 | E61: ='Scorecard (T8)'!I62 -> 3 | F61: ='Scorecard (T8)'!J62 -> 1 | I61: Relationships, education & awareness
A62: Process | B62: 31. Local communities & others with access or user ‘rights’ | C62: ='Scorecard (T8)'!G63 -> 3 | D62: ='Scorecard (T8)'!F63 -> 0 | E62: ='Scorecard (T8)'!I63 -> 3 | F62: ='Scorecard (T8)'!J63 -> 0 | I62: Relationships, education & awareness
A63: Governance | B63: 31a. Proportion of women involved in decision making related to PA | C63: ='Scorecard (T8)'!G64 -> 3 | D63: ='Scorecard (T8)'!F64 -> 1 | E63: ='Scorecard (T8)'!I64 -> 0.75 | F63: ='Scorecard (T8)'!J64 -> 0.25 | I63: Human resources
A64: Governance | B64: 31b. Participation of women in the full range of PA decisions | C64: ='Scorecard (T8)'!G65 -> 1 | D64: ='Scorecard (T8)'!F65 -> 0 | E64: ='Scorecard (T8)'!I65 -> 0.25 | F64: ='Scorecard (T8)'!J65 -> 0 | I64: Human resources
A65: Governance | B65: 31c. Influence of women in decision making | C65: ='Scorecard (T8)'!G66 -> 3 | D65: ='Scorecard (T8)'!F66 -> 1 | E65: ='Scorecard (T8)'!I66 -> 0.75 | F65: ='Scorecard (T8)'!J66 -> 0.25 | I65: Human resources
A66: Governance | B66: 31d. Participation of young people in the full range of PA decisions | C66: ='Scorecard (T8)'!G67 -> 1 | D66: ='Scorecard (T8)'!F67 -> 0 | E66: ='Scorecard (T8)'!I67 -> 0.25 | F66: ='Scorecard (T8)'!J67 -> 0 | I66: Human resources
A67: Governance | B67: 31e. Influence of young people in decision making | C67: ='Scorecard (T8)'!G68 -> 3 | D67: ='Scorecard (T8)'!F68 -> 1 | E67: ='Scorecard (T8)'!I68 -> 0.75 | F67: ='Scorecard (T8)'!J68 -> 0.25 | I67: Human resources
A68: Governance | B68: 31f. Overall participation of people in full range of PA decisions | C68: ='Scorecard (T8)'!G69 -> 1 | D68: ='Scorecard (T8)'!F69 -> 1 | E68: ='Scorecard (T8)'!I69 -> 0.25 | F68: ='Scorecard (T8)'!J69 -> 0.25 | I68: Human resources
A69: Output | B69: 31g. Communication & trust between customary landowners & CEPA | C69: ='Scorecard (T8)'!G70 -> 1 | D69: ='Scorecard (T8)'!F70 -> 0 | E69: ='Scorecard (T8)'!I70 -> 0.5 | F69: ='Scorecard (T8)'!J70 -> 0 | I69: Relationships, education & awareness
A70: Output | B70: 31g. Communication & trust between customary landowners & Provincial govt | C70: ='Scorecard (T8)'!G71 -> 1 | D70: ='Scorecard (T8)'!F71 -> 0 | E70: ='Scorecard (T8)'!I71 -> 0.5 | F70: ='Scorecard (T8)'!J71 -> 0 | I70: Relationships, education & awareness
A71: Output | B71: 31g. Communication & trust between customary landowners & LLG | C71: ='Scorecard (T8)'!G72 -> 1 | D71: ='Scorecard (T8)'!F72 -> 0 | E71: ='Scorecard (T8)'!I72 -> 0.25 | F71: ='Scorecard (T8)'!J72 -> 0 | I71: Relationships, education & awareness
A72: Output | B72: 31g. Communication & trust between customary landowners & District reps | C72: ='Scorecard (T8)'!G73 -> 1 | D72: ='Scorecard (T8)'!F73 -> 0 | E72: ='Scorecard (T8)'!I73 -> 0.25 | F72: ='Scorecard (T8)'!J73 -> 0 | I72: Relationships, education & awareness
A73: Output | B73: 31g. Communication & trust between customary landowners & Ward reps | C73: ='Scorecard (T8)'!G74 -> 1 | D73: ='Scorecard (T8)'!F74 -> 1 | E73: ='Scorecard (T8)'!I74 -> 0.25 | F73: ='Scorecard (T8)'!J74 -> 0.25 | I73: Relationships, education & awareness
A74: Output | B74: 31g. Communication & trust between customary landowners & NGOs | C74: ='Scorecard (T8)'!G75 -> 1 | D74: ='Scorecard (T8)'!F75 -> 1 | E74: ='Scorecard (T8)'!I75 -> 0.25 | F74: ='Scorecard (T8)'!J75 -> 0.25 | I74: Relationships, education & awareness
A75: Output | B75: 31h. Community welfare | C75: ='Scorecard (T8)'!G76 -> 1 | D75: ='Scorecard (T8)'!F76 -> 1 | E75: ='Scorecard (T8)'!I76 -> 1 | F75: ='Scorecard (T8)'!J76 -> 1 | I75: Relationships, education & awareness
A76: Output | B76: 31i. Level of support | C76: ='Scorecard (T8)'!G77 -> 1 | D76: ='Scorecard (T8)'!F77 -> 1 | E76: ='Scorecard (T8)'!I77 -> 1 | F76: ='Scorecard (T8)'!J77 -> 1 | I76: Relationships, education & awareness
A77: Output | B77: 32. Livelihood benefits | C77: ='Scorecard (T8)'!G78 -> 3 | D77: ='Scorecard (T8)'!F78 -> 1 | E77: ='Scorecard (T8)'!I78 -> 3 | F77: ='Scorecard (T8)'!J78 -> 1 | I77: Economic benefit
A78: Governance | B78: 32a. Benefit-sharing arrangements - effectiveness | C78: ='Scorecard (T8)'!G79 -> 3 | D78: ='Scorecard (T8)'!F79 -> 0 | E78: ='Scorecard (T8)'!I79 -> 1.5 | F78: ='Scorecard (T8)'!J79 -> 0 | I78: Economic benefit
A79: Governance | B79: 32b. Distribution of livelihood benefits | C79: ='Scorecard (T8)'!G80 -> 3 | D79: ='Scorecard (T8)'!F80 -> NA | E79: ='Scorecard (T8)'!I80 -> 0.75 | F79: ='Scorecard (T8)'!J80 ->  | I79: Economic benefit
A80: Governance | B80: 32c Change in livelihoods over the past five years | C80: ='Scorecard (T8)'!G81 -> 1 | D80: ='Scorecard (T8)'!F81 -> 0 | E80: ='Scorecard (T8)'!I81 -> 0.25 | F80: ='Scorecard (T8)'!J81 -> 0 | I80: Economic benefit
A81: Output | B81: 33. Threats | C81: ='Scorecard (T8)'!G82 -> 3 | D81: ='Scorecard (T8)'!F82 -> 1 | E81: ='Scorecard (T8)'!I82 -> 3 | F81: ='Scorecard (T8)'!J82 -> 1 | I81: Resource management
A82: Output | B82: 34. Connectivity (linkages to other natural systems) | C82: ='Scorecard (T8)'!G83 -> 3 | D82: ='Scorecard (T8)'!F83 -> 1 | E82: ='Scorecard (T8)'!I83 -> 3 | F82: ='Scorecard (T8)'!J83 -> 1 | I82: Resource management
A83: Outcome | B83: 35. Condition of natural values | C83: ='Scorecard (T8)'!G84 -> 3 | D83: ='Scorecard (T8)'!F84 -> 2 | E83: ='Scorecard (T8)'!I84 -> 3 | F83: ='Scorecard (T8)'!J84 -> 2 | I83: Condition of values
A84: Process | B84: 35a. Condition of natural values | C84: ='Scorecard (T8)'!G85 -> 1 | D84: ='Scorecard (T8)'!F85 -> 1 | E84: ='Scorecard (T8)'!I85 -> 1 | F84: ='Scorecard (T8)'!J85 -> 1 | I84: Condition of values
A85: Process | B85: 35b. Management programmes | C85: ='Scorecard (T8)'!G86 -> 1 | D85: ='Scorecard (T8)'!F86 -> 1 | E85: ='Scorecard (T8)'!I86 -> 1 | F85: ='Scorecard (T8)'!J86 -> 1 | I85: Resource management
A86: Process | B86: 35c. Actions implemented as routine part of management | C86: ='Scorecard (T8)'!G87 -> 1 | D86: ='Scorecard (T8)'!F87 -> 0 | E86: ='Scorecard (T8)'!I87 -> 1 | F86: ='Scorecard (T8)'!J87 -> 0 | I86: Resource management
A87: Outcome | B87: 36. Condition of cultural values | C87: ='Scorecard (T8)'!G88 -> 3 | D87: ='Scorecard (T8)'!F88 -> 2 | E87: ='Scorecard (T8)'!I88 -> 3 | F87: ='Scorecard (T8)'!J88 -> 2 | I87: Condition of values
A88: Process | B88: 36a. Condition of cultural values | C88: ='Scorecard (T8)'!G89 -> 1 | D88: ='Scorecard (T8)'!F89 -> 1 | E88: ='Scorecard (T8)'!I89 -> 1 | F88: ='Scorecard (T8)'!J89 -> 1 | I88: Condition of values
A89: Process | B89: 36b. Management programmes for cultural values | C89: ='Scorecard (T8)'!G90 -> 1 | D89: ='Scorecard (T8)'!F90 -> 1 | E89: ='Scorecard (T8)'!I90 -> 1 | F89: ='Scorecard (T8)'!J90 -> 1 | I89: Resource management
A90: Process | B90: 36c. Actions implemented as routine part of management to protect cultural values | C90: ='Scorecard (T8)'!G91 -> 1 | D90: ='Scorecard (T8)'!F91 -> 1 | E90: ='Scorecard (T8)'!I91 -> 1 | F90: ='Scorecard (T8)'!J91 -> 1 | I90: Resource management
A91: Outcome | B91: 37. Conservation status of key plant or animal species | C91: ='Scorecard (T8)'!G92 -> 3 | D91: ='Scorecard (T8)'!F92 -> 0 | E91: ='Scorecard (T8)'!I92 -> 3 | F91: ='Scorecard (T8)'!J92 -> 0 | I91: Condition of values
A92: Outcome | B92: 38. Conservation status of habitats | C92: ='Scorecard (T8)'!G93 -> 3 | D92: ='Scorecard (T8)'!F93 -> 0 | E92: ='Scorecard (T8)'!I93 -> 3 | F92: ='Scorecard (T8)'!J93 -> 0 | I92: Condition of values
A93: Input | B93: 39a. Level of support - CEPA | C93: ='Scorecard (T8)'!G94 -> 3 | D93: ='Scorecard (T8)'!F94 -> 0 | E93: ='Scorecard (T8)'!I94 -> 0.6 | F93: ='Scorecard (T8)'!J94 -> 0 | I93: Human resources
A94: Input | B94: 39b. Level of support – Provincial Government(s) | C94: ='Scorecard (T8)'!G95 -> 3 | D94: ='Scorecard (T8)'!F95 -> 0 | E94: ='Scorecard (T8)'!I95 -> 0.6 | F94: ='Scorecard (T8)'!J95 -> 0 | I94: Human resources
A95: Input | B95: 39c. Level of support – District(s) | C95: ='Scorecard (T8)'!G96 -> 3 | D95: ='Scorecard (T8)'!F96 -> 0 | E95: ='Scorecard (T8)'!I96 -> 0.6 | F95: ='Scorecard (T8)'!J96 -> 0 | I95: Human resources
A96: Input | B96: 39d. Level of support – LLG(s) | C96: ='Scorecard (T8)'!G97 -> 3 | D96: ='Scorecard (T8)'!F97 -> 1 | E96: ='Scorecard (T8)'!I97 -> 0.6 | F96: ='Scorecard (T8)'!J97 -> 0.2 | I96: Human resources
A97: Input | B97: 39e. Level of support – NGOs | C97: ='Scorecard (T8)'!G98 -> 3 | D97: ='Scorecard (T8)'!F98 -> 2 | E97: ='Scorecard (T8)'!I98 -> 0.6 | F97: ='Scorecard (T8)'!J98 -> 0.4 | I97: Human resources
A98: TOTAL | C98: =SUM(C2:C97) -> 224 | D98: =SUM(D2:D97) -> 69 | E98: =SUM(E2:E97) -> 155.2 | F98: =SUM(F2:F97) -> 48.7
B102: METT Category | C102: Score | D102: Possible Score | E102: % Non-weighted score | F102: Weighted Score | G102: Possible Weighted Score | H102: %
B103: Planning | C103: =SUM(D2:D3,D8:D12,D21:D23,D28) -> 14 | D103: =SUM(C2:C3,C8:C12,C21:C23,C28) -> 23 | E103: =C103/D103*100 -> 60.86956522 | F103: =SUM(F2:F3,F8:F12,F21:F23,F28) -> 12 | G103: =SUM(E2:E3,E8:E12,E21:E23,E28) -> 19.8 | H103: =F103/G103*100 -> 60.60606061
B104: Input | C104: =SUM(D29:D34,D36,D93:D97) -> 8 | D104: =SUM(C29:C34,C36,C93:C97) -> 36 | E104: 22.22222222 | F104: =SUM(F29:F34,F36,F93:F97) -> 5.6 | G104: =SUM(E29:E34,E36,E93:E97) -> 24 | H104: 23.33333333
B105: Process | C105: =SUM(D4,D13:D20,D24,D35,D37:D38,D45,D47:D59,D61:D62,D84:D86,D88:D90) -> 26 | D105: =SUM(C4,C13:C20,C24,C35,C37:C38,C45,C47:C59,C61:C62,C84:C86,C88:C90) -> 81 | E105: 32.09876543 | F105: =SUM(F4,F13:F20,F24,F37:F38,F35,F45,F47:F59,F61:F62,F84:F86,F88:F90) -> 18.1 | G105: =SUM(E4,E13:E20,E24,E35,E37:E38,E45,E47:E59,E61:E62,E84:E86,E88:E90) -> 65.65 | H105: 27.57044935
B106: Output | C106: =SUM(D60,D69:D77,D81:D82) -> 8 | D106: =SUM(C69:C77,C81:C82,C60) -> 20 | E106: 40 | F106: =SUM(F81:F82,F69:F77,F60) -> 6.5 | G106: =SUM(E60,E69:E77,E81:E82) -> 16 | H106: 40.625
B107: Outcome | C107: =SUM(D83,D87,D91:D92) -> 4 | D107: =SUM(C83,C87,C91:C92) -> 12 | E107: 33.33333333 | F107: =SUM(F91:F92,F87,F83) -> 4 | G107: =SUM(E91:E92,E87,E83) -> 12 | H107: 33.33333333
B108: Governance | C108: =SUM(D5:D7,D25:D27,D39:D44,D46,D63:D68,D78:D80) -> 9 | D108: =SUM(C5:C7,C25:C27,C39:C44,C46,C63:C68,C78:C80) -> 52 | E108: 17.30769231 | F108: =SUM(F5:F7,F25:F27,F39:F44,F46,F63:F68,F78:F80) -> 2.5 | G108: =SUM(E78:E80,E63:E68,E46,E39:E44,E25:E27,E5:E7) -> 17.75 | H108: 14.08450704
B109: TOTAL | C109: =SUM(C103:C108) -> 69 | D109: =SUM(D103:D108) -> 224 | E109: 30.80357143 | F109: =SUM(F103:F108) -> 48.7 | G109: =SUM(G103:G108) -> 155.2 | H109: 31.37886598
B113: METT Category | C113: % Weighted Score
B114: Planning | C114: =H103 -> 60.60606061
B115: Input | C115: 23.33333333
B116: Process | C116: 27.57044935
B117: Output | C117: 40.625
B118: Outcome | C118: 33.33333333
B119: Governance | C119: 14.08450704
B120: TOTAL | C120: 31.37886598
B123: Themes | C123: Weighted Score | D123: Possible W'ed Score | E123: % Weighted Score
B124: Design & establishment | C124: =SUM(F2,F12:F20) -> 5.6 | D124: =SUM(E2,E12:E20) -> 12.4 | E124: =C124/D124*100 -> 45.16129032
B125: Planning & objectives | C125: =SUM(F3,F8:F11,F21:F28) -> 10.5 | D125: =SUM(E3,E8:E11,E21:E28) -> 15.3 | E125: =C125/D125*100 -> 68.62745098
B126: Legislation, control & enforcement | C126: =SUM(F4:F7,F38:F46) -> 1 | D126: =SUM(E4:E7,E38:E46) -> 20 | E126: 5
B127: Resource management | C127: =SUM(F29,F48:F55,F81:F82,F85:F86,F89:F90) -> 14.5 | D127: =SUM(E29,E48:E55,E81:E82,E85:E86,E89:E90) -> 30 | E127: 48.33333333
B128: Human resources | C128: =SUM(F30:F32,F47,F63:F68,F93:F97) -> 4.6 | D128: =SUM(E93:E97,E63:E68,E47,E30:E32) -> 18 | E128: 25.55555556
B129: Budget, infrastructure & equipment | C129: =SUM(F33:F37) -> 0 | D129: =SUM(E33:E37) -> 15 | E129: 0
B130: Relationships, education & awareness | C130: =SUM(F56:F57,F61:F62,F69:F76) -> 4.5 | D130: =SUM(E56:E57,E61:E62,E69:E76) -> 16 | E130: 28.125
B131: Tourism & recreation | C131: =SUM(F58:F60) -> 1 | D131: =SUM(E58:E60) -> 9 | E131: 11.11111111
B132: Economic benefit | C132: =SUM(F77:F80) -> 1 | D132: =SUM(E77:E80) -> 5.5 | E132: 18.18181818
B133: Condition of values | C133: =SUM(F83:F84,F87:F88,F91:F92) -> 6 | D133: =SUM(E83:E84,E87:E88,E91:E92) -> 14 | E133: 42.85714286
B134: TOTAL | C134: =SUM(C124:C133) -> 48.7 | D134: =SUM(D124:D133) -> 155.2 | E134: 31.37886598

Sheet Attributes (T1)
A1: Protected area attributes (Table 1)
B2: Question | C2: Your answer
C3: Name of PA (enter here)
A4: 1 | B4: Country | C4: Papua New Guinea
A5: 2 | B5: Location of protected area | C5: The Proposed protected area is located south west of Mt Wilhelm near Gembogl Station PLEASE NOTE can you please include information about what is around the PA and something about the topography - in the mountains, some rivers etc - look at a map and from what you see, describe the location.
A6: 2a | B6: Province(s) | C6: Simbu
A7: 2b | B7: District/s | C7: Kundiawa Gembogl
A8: 2c | B8: Local level government(s) | C8: Mitnande
A9: 2d | B9: Wards (Name and/or number) | C9: 7 (Kombuglpagl) ,8 (Gereglkane), 9 ( Inaugl Garagago), 10 (Kunaiku Oltokane), 11 (Kunaiku Ponogamo)
A10: 3 | B10: Name of the protected area | C10: Kuraglba Conservation Area Is it actually recognised - it the scorecard Q 1 you say it is proposed - so this needs to be very clear as to its status.
A11: 3a | B11: CEPA Protected Area site code | C11: Kura
A12: 4 | B12: World Database of Protected Areas site code | C12: Nil
A13: 5 | B13: Date when the protected area was formally established (dd/mm/yyyy) | C13: 2018 Any chance of day/month information
A14: 5a | B14: Gazettal information or designation information (what does the date above refer to?) | C14: Proposed date Is this the date when a deed was signed - please indicate what the designation refers to - and then include this information in Q1 in the scorecard.
A15: 6 | B15: What is the size of the protected area (in km2)? | C15: 300 Is this km2 or hectares - just checking?
A16: 7 | B16: Protected area designation(s): What level or kind of protected area is it? | C16: (Proposed) Community Conservation Area
A17: 8 | B17: IUCN Protected area category | C17: Not recorded
A18: 9 | B18: IUCN Protected area category (other) | C18: Not Recorded
A19: 10 | B19: International designations. Is the site listed under an international designation e.g. World Heritage site or Ramsar site, or WWF Global 2000 etc? (Y/N) | C19: No
A20: 10a | B20: World Heritage site (Y/N) | C20: No
A21: 10b | B21: Ramsar site (Y/N) | C21: No
A22: 10c | B22: UNESCO Man and Biosphere Reserves (Y/N) | C22: No
A23: 11 | B23: Other designations. Is the site listed under any other designation? (Y/N) | C23: No
A24: 12 | B24: Has the site been identified as a site of particular importance for biodiversity? (Y/N) | C24: No
A25: 13 | B25: Who owns the protected area? | C25: customary landowners
A26: 13a | B26: If the protected area is owned by customary landowners, please indicate all the relevant Clans. | C26: Kombuglpal, Gereglkane, Inaugl Garagago, Kunaiku Oltokane, Kunaiku Ponogamo
A27: 13b | B27: How many households live within the protected area? (e.g. 15) | C27: 0
A28: 13c | B28: How many people live within the protected area? (e.g. 367) | C28: 0
A29: 13d | B29: What proportion of the population living within the protected area comprises children (under 18 years old)? | C29: 0
A30: 13e | B30: Briefly outline what surrounds the protected area | C30: landowner villages / Village communities and ridge forests Any more detail on the number/names of the communities, how many people, largely intact forest?, any clearings/gardens? Etc.
A31: 14 | B31: Who manages the protected area? | C31: customary landowners Is there a management committee or group that has a role in overseeing management?
A32: 15 | B32: Are there any special areas where restrictions or rules are in place that limit the activities that can take place in that area? | C32: No formal rules but zonings are established for different activities (no maps provided during the assessment) Please tell us about some of these zones - e.g. for gardens, settlement, hunting, conservation???? This statement doesn't really tell us anything about how people are managing their land.
A33: 16 | B33: Briefly describe the cultural system, family, traditions, pasin tumbuna and the way in which customary landowners care for (lukautim) the land/sea in the protected area (i.e. if the protected area is owned by customary landowners). | C33: cultural system imposed by elders are followed OK, but what cultural system - we need to know something about the people and their way of life - can you please fill this in.
A34: 17 | B34: What rights do ‘other’ people have in relation to the protected area? (i.e. those who are not customary landowners) | C34: Other people co not have the right to use/access the proposed protected area, unless a special arrangement is in place between the customary landowners and other interested people/stakeholders.
A35: 18 | B35: What is the process for deciding how land/sea in the protected area is accessed and used? | C35: Currently customary rules are used OK but how does this work -for the outside person who does not know this area, it is important that the process is described. The proposed protected area will have its own rules to follow once it is formally endoresed/approved.
A36: 19 | B36: Total number of staff. Does the protected area have staff (paid workers)? (Y/N) | C36: 0
A37: 19a | B37: Number of Permanent paid workers and their positions (e.g. 5 rangers, 1 manager) | C37: 0
A38: 19b | B38: Number of Temporary paid workers and their positions (e.g. 4 caretakers, 5 rangers) | C38: 0
A39: 19c | B39: How many people do work in the protected area on a voluntary basis (not paid)? | C39: 0
A40: 19d | B40: What type of work do these voluntary workers/customary landowners undertake? | C40: 0
A41: 20 | B41: What is the annual budget (Kina/ USD) for recurrent (operational) funds (excluding staff salary costs)? | C41: 0
A42: 20a | B42: Year for which the budget is reported | C42: 2020
A43: 20b | B43: Recurrent (operational) funds | C43: 0
A44: 20c | B44: Project or other supplementary or special funds (excluding staff salary costs) | C44: 0
A45: 21 | B45: How many visitors came to the protected area last calendar year? | C45: 5
A46: 21a | B46: In what year were these visitor numbers reported? (yyyy) | C46: 2020
A47: 21b | B47: Describe the main reasons for the tourist visits | C47: Biodiversity Research associated World Conservation Society and UOG (what is this? Please don't use acronyms as many people don't understand them.
A48: 22 | B48: Main value 1 | C48: ='Key Values (T3)'!B4 -> clean water
B49: Main value 2 | C49: ='Key Values (T3)'!B5 -> trees and plants
B50: Main value 3 | C50: ='Key Values (T3)'!B6 -> animals
B51: Main value 4 | C51: ='Key Values (T3)'!B7 -> sacred and cultural sites
B52: Main value 5 | C52: ='Key Values (T3)'!B8 -> land itself
A53: 23 | B53: What are the benefits that arise from having the protected area? | C53: 1. Land boundaries are identified; 2. Resource ownership is known; 3. Kuralgba Conservation area is legally protected; 4. The conservation area is managed; 5. High biodiversity, with natural ecosystems maintained and improved; 6. Management Committee is established; 7. Livelihood improved as a result of the conservation area; 8. Education and awareness (knowing the importance of the environment; 9. Improved skills and knowledge for the local people; 10. identifying economic values for the biodiversity
A54: 24 | B54: Management objective 1 | C54: At least 20,000ha of Inaugl biodiversity areas is managed under Kuraglba PA by 2023
B55: Management objective 2 | C55: The capacity of Hurauglba Management Committee is improved by 2022
B56: Management objective 3 | C56: The men, women, youth and children are empowered and recognised as equal participants and beneficiaries of all livelihood initiative and outcomes
A57: 25 | B57: Are there any negative impacts or burdens on the wellbeing of customary landowners and others with user/access rights to the protected area that result from the protected area? If so, list them briefly here | C57: 1. Restriction on other unsustainable practices of harvesting and hunting; 2. Restriction on harvesting specific local timber materials that is importance to the locals; 3. Refusal of lucrative mineral resource development; 4. Restriction of roads passing through; 5. Restriction on collecting or harvesting wild nuts; 6. fruits and leafy greens (ferns); 7. PA based land used plan restrict some people having outright access to land for farming
A58: 26 | B58: Total number of people involved in completing or answering the questions in this assessment | C58: 7
A59: 26a | B59: Protected area manager (this includes the management committee members) | C59: No
A60: 26b | B60: Protected area staff (paid workers) | C60: No
A61: 26c | B61: Other Protected Area authority staff | C61: No
A62: 26d | B62: Volunteer | C62: No
A63: 26e | B63: NGO | C63: No
A64: 26f | B64: Customary landowners, including the local community members and clan leaders | C64: Susan Moro MARTIN (Virvir), Martin Goiye (Galgam), Maria KOPEX (Maggmagl), Yepa SAKI (Danbagl), Rose KEPMA (Yokonmabuno)
A65: 26g | B65: Donors and/or sponsors
A66: 26h | B66: External consultants
A67: 26i | B67: Others | C67: Veronica ONGUGLO - Mitnande LLG Manageress, Steven YANDIMA - CBO
A68: 27 | B68: Please note if the assessment was conducted in association with a particular project, on behalf of an organisation or donor. | C68: CEPA - UNDP - GEF 6 Project on Sustainable Finance for Protected Areas
A69: 28a | B69: The Facilitator Name and position | C69: James SABI, Manager - Terrestrial Ecosystems Management
A70: 28b | B70: Facilitator - Organisation | C70: Conservation Environment Protection Authority (CEPA)
A71: 28c | B71: Facilitator - Address, Email, Phone | C71: PO.Box 6601, Boroko, National Capital District, james.sabi.roaming@gmail.com, 3014573,
A72: 29 | B72: Recorder- Name and position | C72: Edwin JAMES - Trainee Officer
B73: Recorder - Organisation | C73: Conservation Environment Protection Authority (CEPA)
B74: Recorder - Address, Email, Phone | C74: PO.BOX 6601, Boroko, National Capital District edwinjyanda@gmail.com, 7295472, 78303052
A75: 30 | B75: Date the assessment carried out (e.g. 29/01/2019) | C75: 2021-09-28

Sheet Values Checklist (T2)
A1: Checklist of protected area values and benefits (Table 2)
A2: Q. No. | B2: (Summary Question) | C2: Question: Does the protected area: | D2: Answer (click on arrow) | E2: Score | F2: Total score possible | G2: Comment (to help explain the score)
A3: 1 | B3: Biodiversity | C3: Provide for biodiversity (i.e. have many different kinds of plants, animals and ecosystems)? | D3: A lot | E3: =_xlfn.IFS(D3="click on arrow"," ",D3="a lot",2,D3="some",1,D3="none",0,D3="Don't know"," DK") -> 2 | F3: 2 | G3: The landowners know and sure of the area - it has a lot of different species of plants and animals.We need to know what in particular - can you find out any further information or get some answers from other questions in the METT?
A4: 2 | B4: Special plants & animals | C4: Have species of plants and animals listed as vulnerable, endangered or critically endangered | D4: Some | E4: =_xlfn.IFS(D4="click on arrow"," ",D4="a lot",2,D4="some",1,D4="none",0,D4="Don't know"," DK") -> 1 | F4: 2 | G4: they used to see and understand their presence in the area (Not sure what this means - can you please explain further). Special animals include cassowaries, tree kangaroos, bird of paradise etc (why are they special e.g. for food, customs). Plants such as Mountain pines are important as they can burn as a result of logging | H4: Please note I have changed the way these Q are answered - from they have to we have
A5: 3 | B5: Locally endemic plants or animal spp | C5: Have species of plants or animals found only in the protected area or nearby locations? | D5: Some | E5: =_xlfn.IFS(D5="click on arrow"," ",D5="a lot",2,D5="some",1,D5="none",0,D5="Don't know"," DK") -> 1 | F5: 2 | G5: There are dwarf cassowaries, but we are not sure sbout other types of animamls if they are endemic of not
A6: 4 | B6: Important ecosystems | C6: Contain important ecosystems (e.g. wetlands, grasslands, coral reefs etc)? | D6: Some | E6: =_xlfn.IFS(D6="click on arrow"," ",D6="a lot",2,D6="some",1,D6="none",0,D6="Don't know"," DK") -> 1 | F6: 2 | G6: There are grasslands, tropical forest and other aquatic areas
A7: 5 | B7: Protect clean, fresh water | C7: Protect clean, fresh water? | D7: A lot | E7: =_xlfn.IFS(D7="click on arrow"," ",D7="a lot",2,D7="some",1,D7="none",0,D7="Don't know"," DK") -> 2 | F7: 2 | G7: There are many sources of fresh water in the area. One classical one is the famous haedwaters of wara simbu (river)
A8: 6 | B8: Religious or spiritual significance | C8: Have religious or spiritual significance (e.g. tambu places, sacred sites)? | D8: Some | E8: =_xlfn.IFS(D8="click on arrow"," ",D8="a lot",2,D8="some",1,D8="none",0,D8="Don't know"," DK") -> 1 | F8: 2 | G8: Not many spirutual sites are identifeied but some are the waterfall (Tainunu), mountain (Waugariame) and red coloured lake (Usimbokwe)
A9: 7 | B9: Scientific value | C9: Have scientific value? | D9: A lot | E9: =_xlfn.IFS(D9="click on arrow"," ",D9="a lot",2,D9="some",1,D9="none",0,D9="Don't know"," DK") -> 2 | F9: 2 | G9: The area is important for research but we have never done any research. Only WCS has undertaken research in the area.
A10: 8 | B10: Source of employment for local communities | C10: Provide a source of employment for local communities? | D10: None | E10: =_xlfn.IFS(D10="click on arrow"," ",D10="a lot",2,D10="some",1,D10="none",0,D10="Don't know"," DK") -> 0 | F10: 2 | G10: There is currently no employment related to the protected area.
A11: 9 | B11: Resources for local subsistence | C11: Provide resources for local subsistence (e.g. food, building materials, medicines etc)? | D11: A lot | E11: =_xlfn.IFS(D11="click on arrow"," ",D11="a lot",2,D11="some",1,D11="none",0,D11="Don't know"," DK") -> 2 | F11: 2 | G11: We obtain food, madicine and building materials from the protected area.
A12: 10 | B12: Resources for sale & benefits aid community d'ment & well-being | C12: Provide resources for sale, with the benefits used to enable community development and enhance well-being? | D12: Some | E12: =_xlfn.IFS(D12="click on arrow"," ",D12="a lot",2,D12="some",1,D12="none",0,D12="Don't know"," DK") -> 1 | F12: 2 | G12: There are planty of resources but few have been extracted from the protected area because of its remoteness, Pandanus (Karuka) What does this mean?
A13: 11 | B13: Foster & attract community d'ment projects to enhance community well-being | C13: Foster and attract community development projects to enhance community well-being? | D13: None | E13: =_xlfn.IFS(D13="click on arrow"," ",D13="a lot",2,D13="some",1,D13="none",0,D13="Don't know"," DK") -> 0 | F13: 2 | G13: done in a smaller scale, currently not running or operating NOT clear to me.
A14: 12 | B14: Place where culture, language & traditions are practiced | C14: Provide a place where culture, language and traditional practices can be practiced? | D14: Some | E14: =_xlfn.IFS(D14="click on arrow"," ",D14="a lot",2,D14="some",1,D14="none",0,D14="Don't know"," DK") -> 1 | F14: 2 | G14: few places have been identified eg; waterfall, Mountain and lake The question is asking if culture is still practiced? Is Tok ples used. Are traditions still practised (If yes, what ones - give some examples) -this should provide rich information on the way of life of the people - this information then goes into the summary.
A15: 13 | B15: People who pass on traditional knowledge to future generations | C15: Have people who pass on traditional knowledge to future generations? | D15: A lot | E15: =_xlfn.IFS(D15="click on arrow"," ",D15="a lot",2,D15="some",1,D15="none",0,D15="Don't know"," DK") -> 2 | F15: 2 | G15: Many things are still practiced and passed on to future generations such as singsing, building houses, fencing and making gardesn etc. but one or two not practiced do you know why?
A16: 14 | B16: Plant species of high cultural or economic importance | C16: Have plant species of high cultural or economic importance? | D16: A lot | E16: =_xlfn.IFS(D16="click on arrow"," ",D16="a lot",2,D16="some",1,D16="none",0,D16="Don't know"," DK") -> 2 | F16: 2 | G16: There are plants such as northopagus, pnadanus, cinnamomu (Local language for some are: Dinsuma, puakrai) OK - so some of this can go into previous Q about plants and animals.
A17: 15 | B17: Animal species of high cultural or economic importance | C17: Have animal species of high cultural or economic importance? | D17: A lot | E17: =_xlfn.IFS(D17="click on arrow"," ",D17="a lot",2,D17="some",1,D17="none",0,D17="Don't know"," DK") -> 2 | F17: 2 | G17: The fur of the cuscus is used for making bilums, bird of paradise feathers are used for traditional costums. Pigs' teeth are valuable, and many other animal species. Put some of this information on species in previous Q.
A18: 16 | B18: Historical sites | C18: Have historical sites? | D18: Some | E18: =_xlfn.IFS(D18="click on arrow"," ",D18="a lot",2,D18="some",1,D18="none",0,D18="Don't know"," DK") -> 1 | F18: 2 | G18: Apart from our traditional history there are sites that contain war equpment and other assets. Historical tracks also exist that connect our people to other provinces
A19: 17 | B19: Nice scenery | C19: Have nice scenery (naispela hap long lukim)? | D19: A lot | E19: =_xlfn.IFS(D19="click on arrow"," ",D19="a lot",2,D19="some",1,D19="none",0,D19="Don't know"," DK") -> 2 | F19: 2 | G19: There is some very stunning scenery found in the protected area and surrounds eg. high ground/mountains, grassland, waterfalls etc.
A20: 18 | B20: Tourism activities now | C20: Have any tourism activities now? | D20: None | E20: =_xlfn.IFS(D20="click on arrow"," ",D20="a lot",2,D20="some",1,D20="none",0,D20="Don't know"," DK") -> 0 | F20: 2 | G20: There is no tourism now but we used to have it before.
A21: 19 | B21: Potential for tourism activities in the future | C21: Have the potential for tourism activities in the future? | D21: Some | E21: =_xlfn.IFS(D21="click on arrow"," ",D21="a lot",2,D21="some",1,D21="none",0,D21="Don't know"," DK") -> 1 | F21: 2 | G21: There is potential for tourists to visit some areas such as, waterfalls, lake (round wara) and mountains
A22: 20 | B22: Role in providing educational opportunities | C22: Have a role in providing educational opportunities? | D22: Some | E22: =_xlfn.IFS(D22="click on arrow"," ",D22="a lot",2,D22="some",1,D22="none",0,D22="Don't know"," DK") -> 1 | F22: 2 | G22: Students are taught to plant trees annually also WCS have also carried out several research projects.
B23: TOTAL | C23: TOTAL | E23: =SUM(E3:E22) -> 25 | F23: =SUM(F3:F22) -> 40
C51: Insert this legend onto your graph | D51: Legend
D52: 0 | E52: None
D53: 1 | E53: Some
D54: 2 | E54: A lot

Sheet Values (P1,1)
A1: Protected area description - "What I like about the protected area"
A2: PA Name | B2: Description of values
B3: Insert text - this should include the words spoken by the PA representative(s) when they describe what they like about their PA
A4: ='Attributes (T1)'!C10 -> Kuraglba Conservation Area Is it actually recognised - it the scorecard Q 1 you say it is proposed - so this needs to be very clear as to its status. | B4: "We get everything in our PA, the fresh water for drinking, washing, cooking, the woods and ropes for building house, the protein we eat mostly comes from our PA... Most of us, our entire life depends upon Kuraglba Protected Area". Kuraglba Mountain range connects with Mt William which adds more value to Mt Wilhelm and makes Mt Wilhelm more beautiful and more valueable in terms of conservation. Animal species include walabies, tree kangaroo, cuscus, wild dog, cassowary, birds including birds of paradise, butterflies and freshwater fish. Plant species include grasslands, montane forest tress such as podocarps. Sacred sites include the pool with red colored water and the waterfall which often makes a big sound (and is an indicator of death).

Sheet Key Values (T3)
A1: Protected area values (Table 3)
A2: No. | B2: Key values | C2: Brief description
B3: (e.g. only known breeding area for the PNG Heron) | C3: (e.g. large freshwater wetland areas immediately above high tide provide nesting sites and food for rearing chicks. Island location means no interference from feral animals or from vehicles).
A4: 1 | B4: clean water | C4: Used for drinking, washing clothes, cooking food, It's also the catchment for the famous wara simbu within Kundiawa town.
A5: 2 | B5: trees and plants | C5: There are important for building houses, firehood for cooking,making furniture, rope (bushropes) and bilums and they produce habitat for animals.
A6: 3 | B6: animals | C6: Important animals are birds, tree kangaroos and cuscus, which are used for making traditional costumes and their flesh is eaten. Animals have a lot of uses.
A7: 4 | B7: sacred and cultural sites | C7: The area provides links to the traditional and cultural rituals valued by the people and as sacred sites. There is a waterfall and the loud sound of the waterfall indicates death in a nearby villages. There is a red coloured lake and it is believed that the lake takes people or people disapear when they get too close. It is the same for the mountain - people disapear when going to the mountain alone.
A8: 5 | B8: land itself | C8: We value the land for itself as everything depends on it.
A9: 6 | B9: grassland | C9: This is an important ecosystem, which provides habitat for wallabies, bandicoots and other unique species of insects.
C16: Note: these key values will be entered into Attributes (Table 1) Q22
C19: (Use other rows for additional values)

Sheet Benefits (T4)
A1: Protected area benefits (Table 4)
A2: No. | B2: Benefit/Positive | C2: Brief description
A4: 1 | B4: Land boundaries are identified | C4: The external boundaries of Inaugl land are known and a map is in place. This reduces conflicts or issues over land boundaries.
A5: 2 | B5: Resource ownership is known | C5: Resource ownershhip within Inaugl are identified and known. In other words, as the land boundaries is identified all the resources within its land boundaries are also idnetified and known.
A6: 3 | B6: Kuralgba Conservation area is legally protected | C6: People at higher level such as, the LLG and councilors have recognised or are aware of the Conservation Area including the communities around the areas. Thus, unsustainable activities in the area are closely monitored or discouraged.
A7: 4 | B7: PA is managed | C7: No distructive resource use in the PA
A8: 5 | B8: high biodiversity and natural ecosystems is maintained and improved | C8: There has been an increase in the number of populations of plants and animals
A9: 6 | B9: Management Committee is established for the PA | C9: Conservation Management Committee is empowered and managing the PA
A10: 7 | B10: Livelihood improved through PA | C10: The PA is attracting NGOs, donors and researchers to support locals in their livelihoods activities, e.g. Oxfam supports the community with agriculture inputs (seeds, fertelizers and chemicals), building dams and producing water supply facilities.
A11: 8 | B11: education and awareness (knowing the importance of the environment) | C11: The people have a better understanding of conservation and climate change
A12: 9 | B12: Improve skills and knowledge for the locals | C12: PA research activities by external partners imparts skills and knowledge and creates employment opportunity for youths
A13: 10 | B13: identifying economic values for the biodiversity | C13: biodiveresity based economic opportunities explored from scientific research on local resources.

Sheet Negatives (T5)
A1: Protected area negative impacts (Table 5)
A2: No. | B2: Negative impact | C2: Brief description
B3: (e.g. restrictions on fishing) | C3: (explain why this is a negative)
A4: 1 | B4: Restriction on other unsustainable practices of harvesting and hunting | C4: Not all families or locals are satisfied with their level of consumption of resources.
A5: 2 | B5: Restriction on harvesting specific local timber materials that is important to the locals | C5: Some of these things are important and are commonly used by the locals
A6: 3 | B6: Refusal of lucrative mineral resource development | C6: Mining is destruction of the natural environment and most likely will affect the PA. Conflict arrises amongst locals in relation to resource development projects.
A7: 4 | B7: Restriction of roads passing through | C7: Roads are being rediverted around the PA. This has increased the distance and added extra effort and burden to the locals and may trigger issues.
A8: 5 | B8: Restriction on collecting or harvesting wild nuts, fruits and leafy greens (ferns) | C8: The restrictions are affecting food security and diet as a result of shortages of greens and vitamins.
A9: 6 | B9: Restriction on accessing some cultural sites | C9: Additional restriction on access to cultural sites, amd thus some cultural activities will be affected.
A10: 7 | B10: PA Based land used plan restrict some people having outright access to land for farming | C10: As population and settlement increase it may affect the rights of the landowners accessing the land for farming or doing other activities.

Sheet Threats (T6)
A1: Detailed assessment of threats (Table 6) | L1: Meaning of ratings
A2: Threat category | B2: Threat | C2: Description | D2: Threat extent | E2: Threat extent score | F2: Threat severity | G2: Threat severity score | H2: Management response now | I2: Future management response | J2: Notes including values affected
B3: Sub-categories of threat | C3: If the threat is present, insert details of the threat in the PA | D3: Select from pull down menu | E3: Insert score: VH=4; H=3; M=2; L=1 | F3: Select from pull down menu (leave blank if not applicable) | G3: Insert score: VH=4; H=3; M=2; L=1 | H3: List the management responses that are occurring NOW | I3: List what management needs to do to address the threat | J3: Write additional information here | L3: Extent rating | M3: Meaning: the threat is….
A4: 1: Housing and commercial development within a protected area Threats from human settlements or other non-agricultural land uses | B4: 1.1 Housing and settlement | C4: No | D4: select | E4: =_xlfn.IFS(D4="select"," ",D4="very high",4, D4="high",3,D4="medium",2,D4="low",1, D4="none",0) ->  | F4: select | G4: =_xlfn.IFS(F4="select"," ",F4="very high",4, F4="high",3,F4="medium",2,F4="low",1) ->  | L4: Very high (4) | M4: widespread and affects the value throughout the PA
B5: 1.2 Commercial and industrial areas | C5: No | D5: select | E5: =_xlfn.IFS(D5="select"," ",D5="very high",4, D5="high",3,D5="medium",2,D5="low",1, D5="none",0) ->  | F5: select | G5: =_xlfn.IFS(F5="select"," ",F5="very high",4, F5="high",3,F5="medium",2,F5="low",1) ->  | L5: High (3) | M5: widespread and affects the value at many locations
B6: 1.3 Tourism and recreation infrastructure (e.g. structures) | C6: No | D6: select | E6: =_xlfn.IFS(D6="select"," ",D6="very high",4, D6="high",3,D6="medium",2,D6="low",1, D6="none",0) ->  | F6: select | G6: =_xlfn.IFS(F6="select"," ",F6="very high",4, F6="high",3,F6="medium",2,F6="low",1) ->  | L6: Medium (2) | M6: localised and affects the value at some locations
B7: 1.4 Population increase in the protected area community | C7: No | D7: select | E7: =_xlfn.IFS(D7="select"," ",D7="very high",4, D7="high",3,D7="medium",2,D7="low",1, D7="none",0) ->  | F7: select | G7: =_xlfn.IFS(F7="select"," ",F7="very high",4, F7="high",3,F7="medium",2,F7="low",1) ->  | L7: Low (1) | M7: localised and found in only limited locations and the impact on our values is limited
A8: 2: Agriculture and aquaculture within a protected area Threats to the proteted area from all kinds of farming and grazing including plantations, forestry and fishing | B8: 2.1 Customary landowner and community gardens and small crops | C8: No | D8: select | E8: =_xlfn.IFS(D8="select"," ",D8="very high",4, D8="high",3,D8="medium",2,D8="low",1, D8="none",0) ->  | F8: select | G8: =_xlfn.IFS(F8="select"," ",F8="very high",4, F8="high",3,F8="medium",2,F8="low",1) ->  | L8: None (0) | M8: threat is not present
B9: 2.2 Drug cultivation | C9: No | D9: select | E9: =_xlfn.IFS(D9="select"," ",D9="very high",4, D9="high",3,D9="medium",2,D9="low",1, D9="none",0) ->  | F9: select | G9: =_xlfn.IFS(F9="select"," ",F9="very high",4, F9="high",3,F9="medium",2,F9="low",1) ->  | L9: Severity rating | M9: Meaning: the threat is ….
B10: 2.3 Wood and pulp plantations | C10: No | D10: select | E10: =_xlfn.IFS(D10="select"," ",D10="very high",4, D10="high",3,D10="medium",2,D10="low",1, D10="none",0) ->  | F10: select | G10: =_xlfn.IFS(F10="select"," ",F10="very high",4, F10="high",3,F10="medium",2,F10="low",1) ->  | L10: Very high (4) | M10: likely to destroy some protected area value(s) (e.g. it might destroy a type of animal or plant, or your traditional gardens)
B11: 2.4 Livestock farming and grazing | C11: No | D11: select | E11: =_xlfn.IFS(D11="select"," ",D11="very high",4, D11="high",3,D11="medium",2,D11="low",1, D11="none",0) ->  | F11: select | G11: =_xlfn.IFS(F11="select"," ",F11="very high",4, F11="high",3,F11="medium",2,F11="low",1) ->  | L11: High (3) | M11: likely to seriously degrade the protected area values where the threat occurs
B12: 2.5 Marine and freshwater aquaculture | C12: No | D12: select | E12: =_xlfn.IFS(D12="select"," ",D12="very high",4, D12="high",3,D12="medium",2,D12="low",1, D12="none",0) ->  | F12: select | G12: =_xlfn.IFS(F12="select"," ",F12="very high",4, F12="high",3,F12="medium",2,F12="low",1) ->  | L12: Medium (2) | M12: likely to moderately degrade the protected area values where the threat occurs – they are damaging values but not so badly
B13: 2.6 Commercial plantations | C13: No | D13: select | E13: =_xlfn.IFS(D13="select"," ",D13="very high",4, D13="high",3,D13="medium",2,D13="low",1, D13="none",0) ->  | F13: select | G13: =_xlfn.IFS(F13="select"," ",F13="very high",4, F13="high",3,F13="medium",2,F13="low",1) ->  | L13: Low (1) | M13: only slightly impacting on protected areas values
A14: 3. Energy production and mining within a protected area Threats from production of non-biological resources | B14: 3.1 Oil and gas drilling and pipeline construction | C14: No | D14: select | E14: =_xlfn.IFS(D14="select"," ",D14="very high",4, D14="high",3,D14="medium",2,D14="low",1, D14="none",0) ->  | F14: select | G14: =_xlfn.IFS(F14="select"," ",F14="very high",4, F14="high",3,F14="medium",2,F14="low",1) -> 
B15: 3.2 Mining and quarrying | C15: No | D15: select | E15: =_xlfn.IFS(D15="select"," ",D15="very high",4, D15="high",3,D15="medium",2,D15="low",1, D15="none",0) ->  | F15: select | G15: =_xlfn.IFS(F15="select"," ",F15="very high",4, F15="high",3,F15="medium",2,F15="low",1) -> 
B16: 3.3 Energy generation | C16: No | D16: select | E16: =_xlfn.IFS(D16="select"," ",D16="very high",4, D16="high",3,D16="medium",2,D16="low",1, D16="none",0) ->  | F16: select | G16: =_xlfn.IFS(F16="select"," ",F16="very high",4, F16="high",3,F16="medium",2,F16="low",1) -> 
A17: 4. Transportation and service corridors Threats from long narrow transport corridors and the vehicles (and people) that use some of them | B17: 4.1 Roads, railroads and paths/tracks | C17: Yes, the road construction is in progress which will cross through some parts of the CA that will connect Simbu (Gembogl District) and Eastern Highlands province through Asaro. Two tracks that are used as alternative foot track to connect the village to the main raod which passes through the CA are not currently used. | D17: Low | E17: =_xlfn.IFS(D17="select"," ",D17="very high",4, D17="high",3,D17="medium",2,D17="low",1, D17="none",0) -> 1 | F17: Low | G17: =_xlfn.IFS(F17="select"," ",F17="very high",4, F17="high",3,F17="medium",2,F17="low",1) -> 1 | H17: Management Commitees liasing with road Construction Company | I17: enforcement of rules and regulation through engagement of rangers, instalation of signboards and notices boards | J17: the comminuty police also exsist volunteerily that will assist and empower rangers to carry out the enforement of rules and regulation to manage the threats
B18: 4.2 Utility and service lines | C18: No | D18: select | E18: =_xlfn.IFS(D18="select"," ",D18="very high",4, D18="high",3,D18="medium",2,D18="low",1, D18="none",0) ->  | F18: select | G18: =_xlfn.IFS(F18="select"," ",F18="very high",4, F18="high",3,F18="medium",2,F18="low",1) -> 
B19: 4.3 Shipping lanes and canals | C19: No | D19: select | E19: =_xlfn.IFS(D19="select"," ",D19="very high",4, D19="high",3,D19="medium",2,D19="low",1, D19="none",0) ->  | F19: select | G19: =_xlfn.IFS(F19="select"," ",F19="very high",4, F19="high",3,F19="medium",2,F19="low",1) -> 
B20: 4.4 Flight paths | C20: Impact occurs on an ad hoc basis. Defence force (PNG & Aus) use the area for training activites | D20: Low | E20: =_xlfn.IFS(D20="select"," ",D20="very high",4, D20="high",3,D20="medium",2,D20="low",1, D20="none",0) -> 1 | F20: Low | G20: =_xlfn.IFS(F20="select"," ",F20="very high",4, F20="high",3,F20="medium",2,F20="low",1) -> 1 | H20: at the moment there is no responces since the threat is not severe | I20: in the future notices and sign boards will be installed to notofy the defence | J20: mainly for landing and no other excersices
A21: 5. Biological resource use and harm within a protected area Threats from the use of "wild" biological resources including both deliberate and unintentional harvesting effects (Note this includes hunting and killing of animals). | B21: 5.1 Hunting, killing and collecting terrestrial (native) animals (including for ceremonial purposes and commercial use) | C21: No | D21: select | E21: =_xlfn.IFS(D21="select"," ",D21="very high",4, D21="high",3,D21="medium",2,D21="low",1, D21="none",0) ->  | F21: select | G21: =_xlfn.IFS(F21="select"," ",F21="very high",4, F21="high",3,F21="medium",2,F21="low",1) -> 
B22: 5.2 Gathering terrestrial (native) plants or plant products (non-timber) (including for ceremonial purposes and commercial use) | C22: No | D22: select | E22: =_xlfn.IFS(D22="select"," ",D22="very high",4, D22="high",3,D22="medium",2,D22="low",1, D22="none",0) ->  | F22: select | G22: =_xlfn.IFS(F22="select"," ",F22="very high",4, F22="high",3,F22="medium",2,F22="low",1) -> 
B23: 5.3a Logging and wood harvesting for local/customary use | C23: No | D23: select | E23: =_xlfn.IFS(D23="select"," ",D23="very high",4, D23="high",3,D23="medium",2,D23="low",1, D23="none",0) ->  | F23: select | G23: =_xlfn.IFS(F23="select"," ",F23="very high",4, F23="high",3,F23="medium",2,F23="low",1) -> 
B24: 5.3b Logging and wood harvesting – commercial logging | C24: No | D24: select | E24: =_xlfn.IFS(D24="select"," ",D24="very high",4, D24="high",3,D24="medium",2,D24="low",1, D24="none",0) ->  | F24: select | G24: =_xlfn.IFS(F24="select"," ",F24="very high",4, F24="high",3,F24="medium",2,F24="low",1) -> 
B25: 5.4a Fishing, killing and harvesting (native) aquatic resources for local/customary use | C25: No | D25: select | E25: =_xlfn.IFS(D25="select"," ",D25="very high",4, D25="high",3,D25="medium",2,D25="low",1, D25="none",0) ->  | F25: select | G25: =_xlfn.IFS(F25="select"," ",F25="very high",4, F25="high",3,F25="medium",2,F25="low",1) -> 
B26: 5.4b Fishing, killing and harvesting (native) aquatic resources for commercial use | C26: No | D26: select | E26: =_xlfn.IFS(D26="select"," ",D26="very high",4, D26="high",3,D26="medium",2,D26="low",1, D26="none",0) ->  | F26: select | G26: =_xlfn.IFS(F26="select"," ",F26="very high",4, F26="high",3,F26="medium",2,F26="low",1) -> 
A27: 6. Human intrusions and disturbance within a protected area Threats from human activities that alter, destroy or disturb habitats and species associated with non-consumptive uses of biological resources | B27: 6.1 Recreational and tourism activities | C27: No | D27: select | E27: =_xlfn.IFS(D27="select"," ",D27="very high",4, D27="high",3,D27="medium",2,D27="low",1, D27="none",0) ->  | F27: select | G27: =_xlfn.IFS(F27="select"," ",F27="very high",4, F27="high",3,F27="medium",2,F27="low",1) -> 
B28: 6.2 War, civil unrest and military exercises | C28: These occur on an ad hoc basis. Defence force (PNG & Aus) use the area for training activites | D28: Low | E28: =_xlfn.IFS(D28="select"," ",D28="very high",4, D28="high",3,D28="medium",2,D28="low",1, D28="none",0) -> 1 | F28: Low | G28: =_xlfn.IFS(F28="select"," ",F28="very high",4, F28="high",3,F28="medium",2,F28="low",1) -> 1 | H28: at the moment there is no responces since the threat is not sever | I28: in the future notices and sign boards will be installed to notofy the defence | J28: mainly for landing and no other excersices
B29: 6.3 Research, education and other wor-related activities in the protected area | C29: Yes, WCS have carried out research on some mammals such as birds, tree Kangaroos, cascuss and several trees BUT what is the threat - have they destroyed habitat? | D29: Low | E29: =_xlfn.IFS(D29="select"," ",D29="very high",4, D29="high",3,D29="medium",2,D29="low",1, D29="none",0) -> 1 | F29: Low | G29: =_xlfn.IFS(F29="select"," ",F29="very high",4, F29="high",3,F29="medium",2,F29="low",1) -> 1 | H29: They have been informed (of what?) or the researchers have been working with the management team and they are aware of it. | I29: the research and education activities will continue in compliance in relation to PA
B30: 6.4 Activities of the protected area managers (e.g. construction or vehicle use) | C30: No | D30: select | E30: =_xlfn.IFS(D30="select"," ",D30="very high",4, D30="high",3,D30="medium",2,D30="low",1, D30="none",0) ->  | F30: select | G30: =_xlfn.IFS(F30="select"," ",F30="very high",4, F30="high",3,F30="medium",2,F30="low",1) -> 
B31: 6.5 Deliberate destructive activities or threats to protected area staff and visitors | C31: No | D31: select | E31: =_xlfn.IFS(D31="select"," ",D31="very high",4, D31="high",3,D31="medium",2,D31="low",1, D31="none",0) ->  | F31: select | G31: =_xlfn.IFS(F31="select"," ",F31="very high",4, F31="high",3,F31="medium",2,F31="low",1) -> 
B32: 6.6 Impacts from cultural and religious tourism | C32: No | D32: select | E32: =_xlfn.IFS(D32="select"," ",D32="very high",4, D32="high",3,D32="medium",2,D32="low",1, D32="none",0) ->  | F32: select | G32: =_xlfn.IFS(F32="select"," ",F32="very high",4, F32="high",3,F32="medium",2,F32="low",1) -> 
A33: 7. Changes to natural systems Threats from other actions that convert or degrade habitat or change the way the ecosystem functions. | B33: 7.1 Habitat clearing | C33: No | D33: select | E33: =_xlfn.IFS(D33="select"," ",D33="very high",4, D33="high",3,D33="medium",2,D33="low",1, D33="none",0) ->  | F33: select | G33: =_xlfn.IFS(F33="select"," ",F33="very high",4, F33="high",3,F33="medium",2,F33="low",1) -> 
B34: 7.2 Fire and fire suppression | C34: Yes, people used to burnthe bush intentially to cook food or other samll purpose especially during dry season and sometimes fires would escape (WHAT IS the threat? How extensive, how severe). | D34: Low | E34: =_xlfn.IFS(D34="select"," ",D34="very high",4, D34="high",3,D34="medium",2,D34="low",1, D34="none",0) -> 1 | F34: Low | G34: =_xlfn.IFS(F34="select"," ",F34="very high",4, F34="high",3,F34="medium",2,F34="low",1) -> 1 | H34: at the moment there is no management control | I34: there will be signboards installed with rangers assisting support management
B35: 7.3 Dams, water flow modification and water management/use | C35: No | D35: select | E35: =_xlfn.IFS(D35="select"," ",D35="very high",4, D35="high",3,D35="medium",2,D35="low",1, D35="none",0) ->  | F35: select | G35: =_xlfn.IFS(F35="select"," ",F35="very high",4, F35="high",3,F35="medium",2,F35="low",1) -> 
B36: 7.4 Increased fragmentation within the protected area | C36: No | D36: select | E36: =_xlfn.IFS(D36="select"," ",D36="very high",4, D36="high",3,D36="medium",2,D36="low",1, D36="none",0) ->  | F36: select | G36: =_xlfn.IFS(F36="select"," ",F36="very high",4, F36="high",3,F36="medium",2,F36="low",1) -> 
B37: 7.5 The protected area is separated from other natural habitat | C37: No | D37: select | E37: =_xlfn.IFS(D37="select"," ",D37="very high",4, D37="high",3,D37="medium",2,D37="low",1, D37="none",0) ->  | F37: select | G37: =_xlfn.IFS(F37="select"," ",F37="very high",4, F37="high",3,F37="medium",2,F37="low",1) -> 
B38: 7.6 Other ‘edge effects’ (impacts) happening on the boundary of the protected area | C38: No | D38: select | E38: =_xlfn.IFS(D38="select"," ",D38="very high",4, D38="high",3,D38="medium",2,D38="low",1, D38="none",0) ->  | F38: select | G38: =_xlfn.IFS(F38="select"," ",F38="very high",4, F38="high",3,F38="medium",2,F38="low",1) -> 
B39: 7.7 Loss of keystone species | C39: Yes, there has been a decline in cassawary numbers, but the reason for the decline is unknown/unsure | D39: High | E39: =_xlfn.IFS(D39="select"," ",D39="very high",4, D39="high",3,D39="medium",2,D39="low",1, D39="none",0) -> 3 | F39: High | G39: =_xlfn.IFS(F39="select"," ",F39="very high",4, F39="high",3,F39="medium",2,F39="low",1) -> 3 | H39: Several investigations have been carried out to identify the cause of the decline of the cassowary population | I39: when issues are identified the management plan will be inplace to restore or improve the animal population. | J39: the main reason for the declining of cassawary is unknown, thus the threats are believed to be serious.
A40: 8. Invasive and other problematic species and genes. Threats from terrestrial and aquatic non-native and native plants, animals, pathogens/microbes or genetic materials that have, or are predicted to have, harmful effects on biodiversity following introduction, spread and/or increase | B40: 8.1 Introduced (pest) plants | C40: Yes, there has been an introduction of a new plant and animal species such as Strong pitpit (genes: Saccharum) | D40: Low | E40: =_xlfn.IFS(D40="select"," ",D40="very high",4, D40="high",3,D40="medium",2,D40="low",1, D40="none",0) -> 1 | F40: High | G40: =_xlfn.IFS(F40="select"," ",F40="very high",4, F40="high",3,F40="medium",2,F40="low",1) -> 3 | H40: at the moment nothing as been done to manage the plant species | I40: in the future the plant will be uprooted and certain strategies will be carried out to remove the introduced species so that the natural ecosystem is intact | J40: the extent and threat of the plant is unknown but is known to be introduced, in some instence it benefited to locals purposely by strenghtening the soil in landslide prone areas etc.
B41: 8.2 Introduced (pest) animals | C41: No | D41: select | E41: =_xlfn.IFS(D41="select"," ",D41="very high",4, D41="high",3,D41="medium",2,D41="low",1, D41="none",0) ->  | F41: select | G41: =_xlfn.IFS(F41="select"," ",F41="very high",4, F41="high",3,F41="medium",2,F41="low",1) ->  | J41: trout is not considered as the pest but it exsisted.
B42: 8.3 Diseases such as fungus or viruses that make native plants or animals sick | C42: No | D42: select | E42: =_xlfn.IFS(D42="select"," ",D42="very high",4, D42="high",3,D42="medium",2,D42="low",1, D42="none",0) ->  | F42: select | G42: =_xlfn.IFS(F42="select"," ",F42="very high",4, F42="high",3,F42="medium",2,F42="low",1) -> 
B43: 8.4 Introduced genetic material | C43: No | D43: select | E43: =_xlfn.IFS(D43="select"," ",D43="very high",4, D43="high",3,D43="medium",2,D43="low",1, D43="none",0) ->  | F43: select | G43: =_xlfn.IFS(F43="select"," ",F43="very high",4, F43="high",3,F43="medium",2,F43="low",1) -> 
A44: 9. Pollution entering or generated Threats from pollution and/or excess materials or energy from specific sites or more general sources | B44: 9.1 Household sewage and urban/village waste water | C44: No | D44: select | E44: =_xlfn.IFS(D44="select"," ",D44="very high",4, D44="high",3,D44="medium",2,D44="low",1, D44="none",0) ->  | F44: select | G44: =_xlfn.IFS(F44="select"," ",F44="very high",4, F44="high",3,F44="medium",2,F44="low",1) -> 
B45: 9.2 Sewage and waste water from protected area facilities | C45: No | D45: select | E45: =_xlfn.IFS(D45="select"," ",D45="very high",4, D45="high",3,D45="medium",2,D45="low",1, D45="none",0) ->  | F45: select | G45: =_xlfn.IFS(F45="select"," ",F45="very high",4, F45="high",3,F45="medium",2,F45="low",1) -> 
B46: 9.3 Industrial, mining and military effluents and discharges | C46: No | D46: select | E46: =_xlfn.IFS(D46="select"," ",D46="very high",4, D46="high",3,D46="medium",2,D46="low",1, D46="none",0) ->  | F46: select | G46: =_xlfn.IFS(F46="select"," ",F46="very high",4, F46="high",3,F46="medium",2,F46="low",1) -> 
B47: 9.4 Agricultural and forestry effluents | C47: No | D47: select | E47: =_xlfn.IFS(D47="select"," ",D47="very high",4, D47="high",3,D47="medium",2,D47="low",1, D47="none",0) ->  | F47: select | G47: =_xlfn.IFS(F47="select"," ",F47="very high",4, F47="high",3,F47="medium",2,F47="low",1) -> 
B48: 9.5 Garbage and solid waste | C48: No | D48: select | E48: =_xlfn.IFS(D48="select"," ",D48="very high",4, D48="high",3,D48="medium",2,D48="low",1, D48="none",0) ->  | F48: select | G48: =_xlfn.IFS(F48="select"," ",F48="very high",4, F48="high",3,F48="medium",2,F48="low",1) -> 
B49: 9.6 Air-borne pollutants | C49: No | D49: select | E49: =_xlfn.IFS(D49="select"," ",D49="very high",4, D49="high",3,D49="medium",2,D49="low",1, D49="none",0) ->  | F49: select | G49: =_xlfn.IFS(F49="select"," ",F49="very high",4, F49="high",3,F49="medium",2,F49="low",1) -> 
B50: 9.7 Excess energy | C50: No | D50: select | E50: =_xlfn.IFS(D50="select"," ",D50="very high",4, D50="high",3,D50="medium",2,D50="low",1, D50="none",0) ->  | F50: select | G50: =_xlfn.IFS(F50="select"," ",F50="very high",4, F50="high",3,F50="medium",2,F50="low",1) -> 
B51: 9.8 Sound pollution (especially from roads) | C51: No | D51: select | E51: =_xlfn.IFS(D51="select"," ",D51="very high",4, D51="high",3,D51="medium",2,D51="low",1, D51="none",0) ->  | F51: select | G51: =_xlfn.IFS(F51="select"," ",F51="very high",4, F51="high",3,F51="medium",2,F51="low",1) -> 
A52: 10. Geological events Geological events may be part of natural disturbance regimes in many ecosystems. However, they can be a threat if a species or habitat is damaged and has lost its resilience and is vulnerable to disturbance. Management capacity to respond to some of these changes may be limited. | B52: 10.1 Volcanoes (ash and lava) | C52: No | D52: select | E52: =_xlfn.IFS(D52="select"," ",D52="very high",4, D52="high",3,D52="medium",2,D52="low",1, D52="none",0) ->  | F52: select | G52: =_xlfn.IFS(F52="select"," ",F52="very high",4, F52="high",3,F52="medium",2,F52="low",1) -> 
B53: 10.2 Earthquakes/Tsunamis | C53: No | D53: select | E53: =_xlfn.IFS(D53="select"," ",D53="very high",4, D53="high",3,D53="medium",2,D53="low",1, D53="none",0) ->  | F53: select | G53: =_xlfn.IFS(F53="select"," ",F53="very high",4, F53="high",3,F53="medium",2,F53="low",1) -> 
B54: 10.3 Avalanches/ Landslides | C54: Yes, Normally occuures naturally during the wet season | D54: Low | E54: =_xlfn.IFS(D54="select"," ",D54="very high",4, D54="high",3,D54="medium",2,D54="low",1, D54="none",0) -> 1 | F54: High | G54: =_xlfn.IFS(F54="select"," ",F54="very high",4, F54="high",3,F54="medium",2,F54="low",1) -> 3 | H54: at the moment nothing as been done to manage the issue as it is a natural phenomena | I54: as it occures naturally nothing has been done to manage the landslides, but in future assistance will be sought from NGOs and other organisation to assist.
B55: 10.4 Erosion and deposition | C55: Yes, Normally occuures naturally during wet season | D55: Low | E55: =_xlfn.IFS(D55="select"," ",D55="very high",4, D55="high",3,D55="medium",2,D55="low",1, D55="none",0) -> 1 | F55: Low | G55: =_xlfn.IFS(F55="select"," ",F55="very high",4, F55="high",3,F55="medium",2,F55="low",1) -> 1 | H55: at the moment nothing as been done to manage the issue as it is a natural phenomena | I55: as it occures naturally nothing has been done to manage the erosion and deposition, but in future assistance will be sought from NGOs and other organisation to assist.
A56: 11. Climate change and severe weather Threats from long-term climatic changes which may be linked to global warming and other severe climatic/ weather events outside of the natural range of variation | B56: 11.1 Habitat shifting and alteration | C56: No | D56: select | E56: =_xlfn.IFS(D56="select"," ",D56="very high",4, D56="high",3,D56="medium",2,D56="low",1, D56="none",0) ->  | F56: select | G56: =_xlfn.IFS(F56="select"," ",F56="very high",4, F56="high",3,F56="medium",2,F56="low",1) -> 
B57: 11.2 Droughts | C57: Yes, small streams dried out and small plants and animal benefiting from the stream died out. It's a seasonal thing which sometimes occures for more than six months | D57: Low | E57: =_xlfn.IFS(D57="select"," ",D57="very high",4, D57="high",3,D57="medium",2,D57="low",1, D57="none",0) -> 1 | F57: Low | G57: =_xlfn.IFS(F57="select"," ",F57="very high",4, F57="high",3,F57="medium",2,F57="low",1) -> 1 | H57: at the moment nothing as been done to manage the issue as it is a natural phenomena Maybe the facilitator should discuss the links to climate change at this point in the discussion. | I57: as it occures natural nothing as been done to manage the droughts but in future assistance will be seeked from NGOs and other organisation to assist.Guidance is also needed here to talk with people about land use management, links to climate change and possible adaptation strategies. These could all be discussed in the management plan.
B58: 11.3 Temperature extremes | C58: No | D58: select | E58: =_xlfn.IFS(D58="select"," ",D58="very high",4, D58="high",3,D58="medium",2,D58="low",1, D58="none",0) ->  | F58: select | G58: =_xlfn.IFS(F58="select"," ",F58="very high",4, F58="high",3,F58="medium",2,F58="low",1) -> 
B59: 11.4 Storms and flooding | C59: No | D59: select | E59: =_xlfn.IFS(D59="select"," ",D59="very high",4, D59="high",3,D59="medium",2,D59="low",1, D59="none",0) ->  | F59: select | G59: =_xlfn.IFS(F59="select"," ",F59="very high",4, F59="high",3,F59="medium",2,F59="low",1) -> 
B60: 11.5 Ocean acidification | C60: No | D60: select | E60: =_xlfn.IFS(D60="select"," ",D60="very high",4, D60="high",3,D60="medium",2,D60="low",1, D60="none",0) ->  | F60: select | G60: =_xlfn.IFS(F60="select"," ",F60="very high",4, F60="high",3,F60="medium",2,F60="low",1) -> 
B61: 11.6 Sea level rise | C61: No | D61: select | E61: =_xlfn.IFS(D61="select"," ",D61="very high",4, D61="high",3,D61="medium",2,D61="low",1, D61="none",0) ->  | F61: select | G61: =_xlfn.IFS(F61="select"," ",F61="very high",4, F61="high",3,F61="medium",2,F61="low",1) -> 
B62: 11.7 Coral bleaching | C62: No | D62: select | E62: =_xlfn.IFS(D62="select"," ",D62="very high",4, D62="high",3,D62="medium",2,D62="low",1, D62="none",0) ->  | F62: select | G62: =_xlfn.IFS(F62="select"," ",F62="very high",4, F62="high",3,F62="medium",2,F62="low",1) -> 
B63: 11.8 Saltwater coming into the protected area | C63: No | D63: select | E63: =_xlfn.IFS(D63="select"," ",D63="very high",4, D63="high",3,D63="medium",2,D63="low",1, D63="none",0) ->  | F63: select | G63: =_xlfn.IFS(F63="select"," ",F63="very high",4, F63="high",3,F63="medium",2,F63="low",1) -> 
B64: 11.9 Other climate changes | C64: Yes, seasonal changes experience especially the fruiting and flowering changes in the area as well as population changes of several insects.are these changes related to changes in temperatures, the time that rain comes etc. | D64: High | E64: =_xlfn.IFS(D64="select"," ",D64="very high",4, D64="high",3,D64="medium",2,D64="low",1, D64="none",0) -> 3 | F64: High | G64: =_xlfn.IFS(F64="select"," ",F64="very high",4, F64="high",3,F64="medium",2,F64="low",1) -> 3 | H64: at the moment nothing as been done to manage the changes | I64: Climate adaptation strategies should be included in the management plan. | J64: as there are no research or investigation done to actually understand the severuty and extent of the changes. Thus it is assume that it may be high in extent and severity
A65: 12. Cultural and social threats | B65: 12.1 Loss of cultural links, traditional knowledge, language, dress, sing sings, respect and/or management practices | C65: No | D65: select | E65: =_xlfn.IFS(D65="select"," ",D65="very high",4, D65="high",3,D65="medium",2,D65="low",1, D65="none",0) ->  | F65: select | G65: =_xlfn.IFS(F65="select"," ",F65="very high",4, F65="high",3,F65="medium",2,F65="low",1) -> 
B66: 12.2 Natural deterioration of important cultural site values | C66: No | D66: select | E66: =_xlfn.IFS(D66="select"," ",D66="very high",4, D66="high",3,D66="medium",2,D66="low",1, D66="none",0) ->  | F66: select | G66: =_xlfn.IFS(F66="select"," ",F66="very high",4, F66="high",3,F66="medium",2,F66="low",1) -> 
B67: 12.3 Destruction of cultural heritage buildings, gardens, sites etc | C67: No | D67: select | E67: =_xlfn.IFS(D67="select"," ",D67="very high",4, D67="high",3,D67="medium",2,D67="low",1, D67="none",0) ->  | F67: select | G67: =_xlfn.IFS(F67="select"," ",F67="very high",4, F67="high",3,F67="medium",2,F67="low",1) -> 
B68: 12.4 Loss of land tenure | C68: No | D68: select | E68: =_xlfn.IFS(D68="select"," ",D68="very high",4, D68="high",3,D68="medium",2,D68="low",1, D68="none",0) ->  | F68: select | G68: =_xlfn.IFS(F68="select"," ",F68="very high",4, F68="high",3,F68="medium",2,F68="low",1) -> 
B69: 12.5 Other cultural/social threats | C69: No | D69: select | E69: =_xlfn.IFS(D69="select"," ",D69="very high",4, D69="high",3,D69="medium",2,D69="low",1, D69="none",0) ->  | F69: select | G69: =_xlfn.IFS(F69="select"," ",F69="very high",4, F69="high",3,F69="medium",2,F69="low",1) -> 
A70: 13. Governance problems | B70: 13.1 Conflicting policies across sectors | C70: No | D70: select | E70: =_xlfn.IFS(D70="select"," ",D70="very high",4, D70="high",3,D70="medium",2,D70="low",1, D70="none",0) ->  | F70: select | G70: =_xlfn.IFS(F70="select"," ",F70="very high",4, F70="high",3,F70="medium",2,F70="low",1) -> 
B71: 13.2 Confusion about government roles and responsibilities | C71: No | D71: select | E71: =_xlfn.IFS(D71="select"," ",D71="very high",4, D71="high",3,D71="medium",2,D71="low",1, D71="none",0) ->  | F71: select | G71: =_xlfn.IFS(F71="select"," ",F71="very high",4, F71="high",3,F71="medium",2,F71="low",1) -> 
B72: 13.3 Lack of coordination across all levels of government | C72: No | D72: select | E72: =_xlfn.IFS(D72="select"," ",D72="very high",4, D72="high",3,D72="medium",2,D72="low",1, D72="none",0) ->  | F72: select | G72: =_xlfn.IFS(F72="select"," ",F72="very high",4, F72="high",3,F72="medium",2,F72="low",1) -> 

Sheet Worst threat (T7)
A1: Worst threats (Table 7)
A2: Rank order | B2: Threat | C2: Threat number | D2: Additional comments
B3: (most significant first) | C3: (copy from Table 6 e.g. 11.1)
A4: 1 | B4: Fire and fire management suppression (including deliberate fires) | C4: 7.2 | D4: This threat is significant because it often occurrs during the dry season, and the burning usually coveres large areas of grassland and this destroys certain insects and animals speceis including their habitats.
A5: 2 | B5: Roads | C5: 4.1 | D5: At the moment a road project is underway which will connect Simbu province and Madang via Gembogl District. The road will expose the protected area, as some part of the PA will be partly destroyed. Additionally in the future when the raod is complete people passing by will have a chance to access the area without any consultation or permision to gain access.
A6: 3 | B6: introduced (pest) plants | C6: 8.1 | D6: introduced plants such as strong pitpit

Sheet Scorecard (T8)
B1: METT Scorecard (Table 8)
A2: Category | B2: Issue | C2: Question | D2: Select response (from pull down menu) | E2: Response | F2: Score | G2: Possible score | H2: Weighting | I2: Possible Weighted Score | J2: Weighted score | K2: Evidence & Justification (Reasons for choosing the response) | L2: Actions to improve management | M2: Information Source (Select from pull down menu) | N2: Comments on information source (add additional sources here)
A3: Planning | B3: 1. Legal status | C3: Does the protected area have legal status or is it established under “other effective means”? (e.g. in the case of private reserves is it covered by a covenant or similar)? | D3: A. The protected area is not gazetted/approved by national or provincial government or has not been established through ‘other effective means’ | E3: =VLOOKUP(D3,Responses!B2:D7,2,FALSE) -> A | F3: =VLOOKUP(E3,Responses!C2:E7,2,FALSE) -> 0 | G3: 3 | H3: 1 | I3: =G3*H3 -> 3 | J3: =IF(F3="not relevant"," ",F3*H3) -> 0 | K3: it’s a proposed area This needs to be clarified (when section in Attributes is fixed). I am unsure whether there is some sort of deed agreement (which you say was signed in 2018) or there is actually nothing in place. | L3: Liaise with WCS to get the area protected. | M3: customary knowledge/Community opinion | N3: customary and community oppoinion are also part of the information source
A4: Planning | B4: 2. Protected area objectives | C4: Is protected area management based on agreed objectives? | D4: C. The protected area has agreed objectives, and is only partly managed according to these objectives | E4: =VLOOKUP(D4,Responses!B8:D13,2,FALSE) -> C | F4: =VLOOKUP(E4,Responses!C8:E13,2,FALSE) -> 2 | G4: =IF(F4="not relevant",0,3) -> 3 | H4: 1 | I4: =G4*H4 -> 3 | J4: =IF(F4="not relevant"," ",F4*H4) -> 2 | K4: There are agreed objective but they are not documented. How were they agreed? Who agreed? | L4: Review and update the objectives and include in the management plan to enhance management of the area. | M4: customary knowledge/Community opinion | N4: expert oppinion are also incorporated
A5: Process | B5: 3. Protected area regulations or customary laws/rules | C5: Are laws, rules or agreements in place to manage land or marine use and activities in the protected area in accordance with the management objectives? (includes hunting, logging, mining, fishing) | D5: A. There are no regulations or customary laws or agreements for managing land and marine use and activities in the protected area | E5: =VLOOKUP(D5,Responses!B14:D19,2,FALSE) -> A | F5: =VLOOKUP(E5,Responses!C14:E19,2,FALSE) -> 0 | G5: 3 | H5: 1 | I5: 3 | J5: 0 | K5: There are several customary sites or values that have customary laws (Tambu site) and that are linked to conservation or sustainable practices of using the natural resources.OK so customary laws are an important form of laws, rules, agreements -so we need to know some of the detail about these - is this possible? However, there are no conservation laws or agreement, or awareness, in the form of laws and regulations made and documented as yet. | L5: Prepare and complete a management plan and raise awareness with the community about this document. | M5: customary knowledge/Community opinion | N5: expert oppinion are also incorporated
A6: Governance | B6: 3a. Clearly defined rules | C6: Are the rules/laws/regulations relating to the protected area clearly defined and documented? | D6: B. Some protected area-related rules/laws/ regulations are clearly defined and documented, but there are some important gaps | E6: =VLOOKUP(D6,Responses!B20:D25,2,FALSE) -> B | F6: =VLOOKUP(E6,Responses!C20:E25,2,FALSE) -> 1 | G6: 3 | H6: 0.5 | I6: 1.5 | J6: 0.5 | K6: its been clearly defined but not yet documented (This is unclear - previous Q says there are no regulations or customary laws etc and this answer says that some laws etc are clearly defined and documented - so something is not right here - should the previous Q be changed???) It is quite important to get a sense of what the existing rules relate to. | L6: Review and document all relevant rules, laws and regulations, including within the proposed Management Plan. | M6: customary knowledge/Community opinion | N6: expert oppinion are also incorporated
A7: Governance | B7: 3b. Clearly defined user/access rights | C7: Are the rights of people to use the protected area and its resources clearly defined and documented? | D7: B. Some of the rights to use/access resources from the protected area are clearly defined and documented, but others are not | E7: =VLOOKUP(D7,Responses!B26:D31,2,FALSE) -> B | F7: =VLOOKUP(E7,Responses!C26:E31,2,FALSE) -> 1 | G7: 3 | H7: 0.25 | I7: 0.75 | J7: 0.25 | K7: Some information about rights have been clearly defined but not yet documented. Documentation is in progress. (Is there anything you can say about these user/access rights - this is important in informing management. Also remember that it is not just about getting a score for these questions, it is important to discuss and record as much information as possible - this all helps in writing the management plan and also at the next METT these details just need to be checked for relevance) | L7: Fianlised the documentation that clearlyi identifies what the rights are of people in the community to use the protected area and its resources. | M7: customary knowledge/Community opinion | N7: expert oppinion are also incorporated
A8: Governance | B8: 3c. Awareness of user/access rights | C8: What percentage of adults in the protected area and local community are aware of their user/access rights (e.g. to hunt, collect, fish etc) | D8: B. Some (25-50%) | E8: =VLOOKUP(D8,Responses!B32:D37,2,FALSE) -> B | F8: =VLOOKUP(E8,Responses!C32:E37,2,FALSE) -> 1 | G8: 3 | H8: 0.25 | I8: 0.75 | J8: 0.25 | K8: Three out of the five wards are aware of their use and access rights and regualtions. (Which ones?) | L8: Conduct more awareness raising in the community about user and access rights in the protected, especially in ??? And ??? Wards. | M8: customary knowledge/Community opinion
A9: Planning | B9: 4. Planning for land use or coastal/marine activities that occur outside the protected area | C9: Does planning for land and coastal/marine uses outside the protected area recognise the protected area and contribute to achieving the management objectives? | D9: D. Planning for land/marine uses that occur outside the protected area fully takes into account the long-term needs of the protected area and seeks to support the protected area | E9: =VLOOKUP(D9,Responses!B38:D43,2,FALSE) -> D | F9: =VLOOKUP(E9,Responses!C38:E43,2,FALSE) -> 3 | G9: 1 | H9: 1 | I9: 1 | J9: 3 | K9: therer are zoning of Protected area and the surrounding area outside protected areas that minimize the activties inside protected area (Does this relate to the PA community or to the broader landscape planning - This Q is about provincial and LLG land use planning e.g. do they have plans that identify the boundaries of the PA and policies that ensure there is recognition of the PA in decision making? Do forestry, agriculture, mining in outside area etc make decisions that consider impacts on the PA? It is unlikely that the score for this question is D as this would assume a range of planning in the wider landscape is in place to protect this area. | L9: review and maintain Maybe reconsider this when you review the response to this question. | M9: customary knowledge/Community opinion | N9: expert opinion are also incorporated
A10: Planning | B10: 4a. Land and water planning for habitat conservation | C10: Planning and management in the wider catchment or landscape containing the protected area incorporates provisions for adequate environmental conditions (e.g. air/water/noise pollution levels etc) to sustain relevant habitats (Y or N) | D10: Yes | E10: =VLOOKUP(D10,Responses!$E$2:$F$5,2,FALSE) -> 1 | F10: =VLOOKUP(D10,Responses!$E$2:$F$5,2,FALSE) -> 1 | G10: =IF(F10="not relevant",0,3) -> 3 | H10: 0.4 | I10: 1.2 | J10: =IF(F10="NA"," ",F10*H10) -> 0.4 | K10: based on the awareness This response is not telling us what planning is in place in the wider catchment/landscape - what environmental provisions are in place to limit water pollution, maintain habitats etc -if the answer is Yes, then we need to know what is in place. | L10: more awareness will be carried out Awareness of whom? Does this mean the provincial planning unit, the LLG - ?? | M10: customary knowledge/Community opinion | N10: expert oppinion are also incorporated
A11: Planning | B11: 4b. Land and water planning for connectivity | C11: Management of corridors linking the protected area provides for wildlife passage to key habitats outside the protected area (Y or N) | D11: Yes | E11: =VLOOKUP(D11,Responses!$E$2:$F$5,2,FALSE) -> 1 | F11: =VLOOKUP(D11,Responses!$E$2:$F$5,2,FALSE) -> 1 | G11: 1 | H11: 0.3 | I11: 0.3 | J11: =IF(F11="NA"," ",F11*H11) -> 0.3 | K11: other proposed area (What area?) are also linked to the PA which incudes the movement of similar species of plants and animals, that incudes the headwaters within the PA (Please describe what corridors exist - may need to describe how the PA is linked to its surroundings - is it mainly forested or has there been clearing - if it is cleared then what corridors are in place. If not cleared then perhaps there is surrounding forest which provides a natural corridor - please explain so that the reader who is not familiar with this area can understand the answer). | L11: review and carrry out more awareness (This doesn't provide clear direction for the future - review what and make who more aware?) | M11: external expert opinion | N11: customary and community oppoinion are also part of the information source
A12: Planning | B12: 4c. Land and water planning for ecosystem services and species conservation | C12: Planning addresses ecosystem-specific needs and/or the needs of particular species of concern at an ecosystem scale (Y or N) | D12: Yes | E12: =VLOOKUP(D12,Responses!$E$2:$F$5,2,FALSE) -> 1 | F12: =VLOOKUP(D12,Responses!$E$2:$F$5,2,FALSE) -> 1 | G12: 1 | H12: 0.3 | I12: 0.3 | J12: =IF(F12="NA"," ",F12*H12) -> 0.3 | K12: awareness have been carried out, but not yet documented So the Q wants to know what planning has been done to understand the ecosystem needs of particular species - so what species, what planning, who has done it. The question is NOT about awareness raising, it is about the planning.Has the community discussed particular species/habitats and made some decisions about zones or rules -if so then the answer is YES, but this needs to be explained. | L12: review and document what? | M12: customary knowledge/Community opinion | N12: expert oppinion are also incorporated
A13: Planning | B13: 5. Protected area design | C13: Is the protected area the right size and shape to protect species, habitats, ecosystems and water catchments? | D13: C. The protected area size and boundaries (i.e. the design) are okay and allow us to achieve our objectives, but could be better (e.g. in relation to large-scale ecological processes or minimising threats) | E13: =VLOOKUP(D13,Responses!B44:D49,2,FALSE) -> C | F13: =VLOOKUP(D13,Responses!B44:D49,3,FALSE) -> 2 | G13: 3 | H13: 1 | I13: 3 | J13: =IF(F13="NA"," ",F13*H13) -> 2 | K13: The protected area has a very large amount of land at high altitude. It covers different ecosystems and contains different types of plants and animals. | L13: Conduct more research to identify the habitat/ecosystem needs and determine if the protected area is the right size and shape. | M13: customary knowledge/Community opinion | N13: expert oppinion are also incorporated
A14: Process | B14: 6a. On ground boundary marking of protected area | C14: Is the protected area boundary marked on the ground (land/sea)? | D14: D. All of the protected area boundary is marked on the ground (this could include a fence) | E14: =VLOOKUP(D14,Responses!B50:D55,2,FALSE) -> D | F14: =VLOOKUP(E14,Responses!C50:E55,2,FALSE) -> 3 | G14: 3 | H14: 0.3 | I14: 0.9 | J14: 0.9 | K14: The whole of the protected area is described and known, but is not physically marked on the ground NEED TO REVIEW ANSWER - you say that nothing is marked on the ground - so the answer must be A. | L14: Discuss with the community whether the boundary should be marked on the ground. | M14: customary knowledge/Community opinion
A15: Process | B15: 6b. Map of protected area boundaries | C15: The boundaries of the protected area are marked on a map (Y or N) | D15: Yes | E15: =VLOOKUP(D15,Responses!$E$2:$F$4,2,FALSE) -> 1 | F15: =VLOOKUP(D15,Responses!$E$2:$F$4,2,FALSE) -> 1 | G15: 1 | H15: 0.4 | I15: 0.4 | J15: 0.4 | K15: The boundary has been marked on the google map but not physically marked on the map using GPS. | L15: Review the boundary and seek assistance from NGOs and relative government bodies to carry out GPS marking and other necassery land boundry marking. | M15: external expert opinion | N15: customary and community oppoinion are also part of the information source
A16: Process | B16: 6c. GIS mapping of protected area boundaries | C16: The boundaries of the protected area are recorded in a GIS format (Y or N) | D16: No | E16: =VLOOKUP(D16,Responses!$E$2:$F$4,2,FALSE) -> 0 | F16: =VLOOKUP(D16,Responses!$E$2:$F$4,2,FALSE) -> 0 | G16: 1 | H16: 0.3 | I16: 0.3 | J16: 0 | K16: No GIS has been used but the boundaries are customarily known to the locals | L16: Review and seek assistance from NGOs and relative government bodies carry out GPS marking and other necassery land boundry marking. | M16: customary knowledge/Community opinion | N16: expert oppinion are also incorporated
A17: Process | B17: 6d. Boundary awareness of people who own the protected area | C17: What proportion of land owners (e.g. customary landowning adults) are aware of the protected area boundaries? | D17: D. Most (more than 75%) | E17: =VLOOKUP(D17,Responses!B56:D61,2,FALSE) -> D | F17: =VLOOKUP(E17,Responses!C56:E61,2,FALSE) -> 3 | G17: 3 | H17: 0.5 | I17: 1.5 | J17: 1.5 | K17: Awareness raising has been carried out and most of the community know the boundaries. | L17: Continue to maintain community awareness of the boundary.
A18: Process | B18: 6e. Boundary awareness among surrounding communities | C18: What proportion of adults living around or near the protected area know the location of the boundary? | D18: B. Some (25-50%) | E18: =VLOOKUP(D18,Responses!B56:D61,2,FALSE) -> B | F18: =VLOOKUP(E18,Responses!C56:E61,2,FALSE) -> 1 | G18: 3 | H18: 0.5 | I18: 1.5 | J18: 0.5 | K18: Only a few people around the area know about the PAs, because there has been no awareness raising conducted in the nearby village. | L18: Develop a strategy to raise the awareness of surrounding communities and other land users of the boundaries of the protected area.
A19: Process | B19: 6f. Respect of boundary by surrounding communities | C19: What proportion of adults living around or near the protected area respect the boundary? | D19: A. Very few (less than 25%) | E19: =VLOOKUP(D19,Responses!B56:D61,2,FALSE) -> A | F19: =VLOOKUP(E19,Responses!C56:E61,2,FALSE) -> 0 | G19: 3 | H19: 0.4 | I19: 1.2 | J19: 0 | K19: Because few people around the area knows about the PAs, and because there has been no awareness raising conducted in the nearby village, people generally do not respect the boundary. | L19: Develop a strategy to raise the awareness of surrounding communities and other land users of the boundaries of the protected area.
A20: Process | B20: 6g. Respect of boundaries by Local Level Government | C20: Most or all relevant Local Level Governments are aware of the boundaries of the protected area (Y or N) | D20: No | E20: =VLOOKUP(D20,Responses!$E$2:$F$4,2,FALSE) -> 0 | F20: =VLOOKUP(D20,Responses!$E$2:$F$4,2,FALSE) -> 0 | G20: 1 | H20: 0.3 | I20: 0.3 | J20: 0 | K20: There are no formal documents available and the protected area is not formally known. It is informally known by Mitnande LLG | L20: Develop a strategy to raise the awareness of the LLGs about the boundaries of the protected area.
A21: Process | B21: 6h. Respect of boundaries at the District level | C21: Most or all of the relevant District level representatives are aware of the boundaries of the protected area (Y or N) | D21: Yes | E21: =VLOOKUP(D21,Responses!$E$2:$F$4,2,FALSE) -> 1 | F21: =VLOOKUP(D21,Responses!$E$2:$F$4,2,FALSE) -> 1 | G21: 1 | H21: 0.3 | I21: 0.3 | J21: 0.3 | K21: Distrcit reps are aware of the boundaries. | L21: Containue to liaise with District representatives to ensure that they are aware of the protected area and its boundaries
A22: Planning | B22: 7. Management planning | C22: Is there a management plan or similar and is it being implemented? | D22: C. A management plan or similar exists but it is being partly implemented because of funding constraints or other problems | E22: =VLOOKUP(D22,Responses!B62:D67,2,FALSE) -> C | F22: =VLOOKUP(E22,Responses!C62:E67,2,FALSE) -> 2 | G22: 3 | H22: 1 | I22: 3 | J22: 2 | K22: A management plan has been defined and implemented, but it is not yet officially documented. Can you say something more about this plan - can you get a copy? What does it cover? | L22: Review and formally adopt and implement the Management Plan.
A23: Planning | B23: 7a. Community/key people input into management plan | C23: The management planning process for the protected area provides adequate and equal opportunity for key people (i.e. includes government, NGO, business etc) to have input into the management plan and to influence it (Do not include customary landowners in this question) (Y or N) | D23: Yes | E23: =VLOOKUP(D23,Responses!$E$2:$F$4,2,FALSE) -> 1 | F23: =VLOOKUP(D23,Responses!$E$2:$F$4,2,FALSE) -> 1 | G23: 1 | H23: 1 | I23: 1 | J23: 1 | K23: NGOs (WCS) and Government reps are also part of the planning process. | L23: When the management plan is reviewed, ensure inclusion of a wide range of stakeholders, including all levels of government, NGOs and relevant businesses).
A24: Planning | B24: 7b. Plan review of the management plan | C24: There is an established schedule and process for people to regularly review and update the management plan (i.e. including agreed vision, objectives, actions etc) (Y or N) | D24: No | E24: =VLOOKUP(D24,Responses!$E$2:$F$4,2,FALSE) -> 0 | F24: =VLOOKUP(D24,Responses!$E$2:$F$4,2,FALSE) -> 0 | G24: 1 | H24: 1 | I24: 1 | J24: 0 | K24: There is no documented Management plan and no schedule to review the plan. | L24: Review the Management Plan and include statements about the review process for the plan.
A25: Process | B25: 7c. Functioning protected area Management Committee | C25: The Management Committee is formed and meets to discuss issues related to protected area management (Y or N) | D25: No | E25: =VLOOKUP(D25,Responses!$E$2:$F$4,2,FALSE) -> 0 | F25: =VLOOKUP(D25,Responses!$E$2:$F$4,2,FALSE) -> 0 | G25: 1 | H25: 0.25 | I25: 0.25 | J25: 0 | K25: There is no formal Management Committee, but there is an informal committee that discusses relevant issues. | L25: Seek agreement on a fair and equitable process to select a Management Committee and document relevant processes related to the committee.
A26: Governance | B26: 7d. Are there clear decision-making structures and processes in relation to the management committee? | C26: Structures and processes in relation to the Management Committee and related protected area decision making are clearly documented (Y or N) | D26: No | E26: =VLOOKUP(D26,Responses!$E$2:$F$4,2,FALSE) -> 0 | F26: =VLOOKUP(D26,Responses!$E$2:$F$4,2,FALSE) -> 0 | G26: 1 | H26: 0.25 | I26: 0.25 | J26: 0 | K26: There is no formal structure in place but they have talked about this and working towards documenting it. | L26: Seek agreement on the relevant processes that should be in place related to the Management Committee.
A27: Governance | B27: 7e. Decision-making structures and processes in relation to the management committee | C27: Are the structures and processes for decision-making in the protected area well understood? | D27: B. Structures and processes in relation to the Management Committee and related protected area decision-making are little known or understood by the protected area owners | E27: =VLOOKUP(D27,Responses!B68:D73,2,FALSE) -> B | F27: =VLOOKUP(E27,Responses!C68:E73,2,FALSE) -> 1 | G27: 3 | H27: 0.25 | I27: 0.75 | J27: 0.25 | K27: Not all the land owners understand issues in relation to the Management Committee, as the committee is informal. | L27: As part of the process of formaly establishing a Management Committee, ensure that the process of decision making is clearly documented and the community is made aware of how decisions will be made, recorded and disseminated.
A28: Governance | B28: 7f. Access to Management Committee decisions | C28: The decisions of the Management Committee/managers are made available to all people in the protected area community (Y or N) | D28: Yes | E28: =VLOOKUP(D28,Responses!$E$2:$F$4,2,FALSE) -> 1 | F28: =VLOOKUP(D28,Responses!$E$2:$F$4,2,FALSE) -> 1 | G28: 1 | H28: 0.25 | I28: 0.25 | J28: 0.25 | K28: Decisions of the Management Committee are made available to the community through the clan leaders and CBOs. | L28: Review the processes for disseminating decisions.
A29: Planning | B29: 8. Regular work plan | C29: Is there a regular work plan and is it being implemented? | D29: B. A regular work plan exists but only some of the activities are implemented | E29: =VLOOKUP(D29,Responses!B74:D79,2,FALSE) -> B | F29: =VLOOKUP(E29,Responses!C74:E79,2,FALSE) -> 1 | G29: 3 | H29: 1 | I29: 3 | J29: 1 | K29: There is no documented Management plan and no Work Plan schedule. | L29: Develop and document a Work Plan to guide the activities that are undertaken in the protected area.
A30: Input | B30: 9. Resource inventory | C30: Do you have enough information to manage the area? | D30: C. There is good Information about the protected area (e.g. critical habitats, species, ecological processes and cultural values) for most areas of planning and decision making | E30: =VLOOKUP(D30,Responses!B80:D85,2,FALSE) -> C | F30: =VLOOKUP(E30,Responses!C80:E85,2,FALSE) -> 2 | G30: 3 | H30: 1 | I30: 3 | J30: 2 | K30: There is good customary knowledge of the area, but not mch inventory has been carried out and documented. | L30: Develop a plan to inventory the information that is related to the protected area, so that this can inform future management. | M30: customary knowledge/Community opinion
A31: Input | B31: 10. Staff numbers | C31: Are there enough people employed or paid to manage the protected area? | D31: A. There are no staff/people paid to work on the protected area, but they are ’needed | E31: =VLOOKUP(D31,Responses!B86:D91,2,FALSE) -> A | F31: =VLOOKUP(E31,Responses!C86:E91,2,FALSE) -> 0 | G31: 3 | H31: 1 | I31: 3 | J31: 0 | K31: There are no people employed or paid to manage the protected area. | L31: Identify key staff that are needed to implement management actions in the protected area and seek funding.
A32: Input | B32: 10a. Other unpaid people working on the protected area | C32: Are there enough unpaid people (community or customary landowners) helping to manage the protected area? | D32: B. There are a few people to do important management activities in the protected area, but this is inadequate to meet management needs | E32: =VLOOKUP(D32,Responses!B92:D972,2,FALSE) -> B | F32: =VLOOKUP(E32,Responses!C92:E972,2,FALSE) -> 1 | G32: 3 | H32: 1 | I32: 3 | J32: 1 | K32: There are some people undertaking voluntary work, but most management acivities are carried out voluntarily. | L32: Raise the awareness of the community about the work that is needed in the protected and develop a Work Plan and schedule of work that includes input from community volunteers.
A33: Input | B33: 11. Knowledge and skills | C33: Do the people involved in managing the protected area have the necessary knowledge and skills? | D33: C. Knowledge and skills are good, but could be improved to better manage the protected area | E33: =VLOOKUP(D33,Responses!B98:D103,2,FALSE) -> C | F33: =VLOOKUP(E33,Responses!C98:E103,2,FALSE) -> 2 | G33: 3 | H33: 1 | I33: 3 | J33: 2 | K33: A forest inventory and other research has been carried out which assists the locals to better understand the protected area, but we need more professional skills and knowledge to better manage the area. The customary landowners have extensive local knowledge of the area and its resources. | L33: Seek assistance to support the locals in improving their knoweldge and skills to better manage the protected area, e.g. ranger training, adminstrative and financial training.
A34: Input | B34: 12. Current budget | C34: Is the current budget sufficient (from any source)? | D34: A. There is no money from any source to manage the protected area | E34: =VLOOKUP(D34,Responses!B104:D109,2,FALSE) -> A | F34: =VLOOKUP(E34,Responses!C104:E109,2,FALSE) -> 0 | G34: 3 | H34: 1 | I34: 3 | J34: 0 | K34: There is no support from any source. | L34: I GUESS YOU CAN SEE HOW I AM WRITING THIS COLUMN. CAN YOU PLEASE KEEP GOING AND PUT SOMETHING IN THIS COLUIMN -IT CAN BE CHECKED BY THE COMMUNITY LATER. PLEASE ALSO WRITE THIS IN SENTENCES. PLEASE ALSO WRITE THE ANSWERS IN COLUMN K IN SENTENCES -I WILL LEAVE THE REST OF THIS TO YOU TO FINISH.
A35: Input | B35: 13. Security of budget | C35: Is the budget secure (e.g. over the next 2-5 years)? | D35: A. There is no secure budget to manage the protected area and management is wholly reliant on outside or highly variable funding | E35: =VLOOKUP(D35,Responses!B110:D115,2,FALSE) -> A | F35: =VLOOKUP(E35,Responses!C110:E115,2,FALSE) -> 0 | G35: 3 | H35: 1 | I35: 3 | J35: 0 | K35: no budget
A36: Process | B36: 14. Management of budget | C36: Is the budget managed to meet important management needs? | D36: Not relevant | E36: =VLOOKUP(D36,Responses!B116:D121,2,FALSE) -> NA | F36: =VLOOKUP(E36,Responses!C116:E121,2,FALSE) -> NA | G36: 3 | H36: 1 | I36: 3 | J36: =IF(F36="NA"," ",F36*H36) -> 
A37: Input | B37: 15a. Equipment and facilities | C37: Are equipment and facilities sufficient for management needs? | D37: A. There are little or no equipment and facilities for management needs | E37: =VLOOKUP(D37,Responses!B122:D127,2,FALSE) -> A | F37: =VLOOKUP(E37,Responses!C62:E67,2,FALSE) -> 0 | G37: 3 | H37: 1 | I37: 3 | J37: 0 | K37: No equipment available
A38: Process | B38: 15b. Maintenance of equipment and facilities | C38: Are equipment and facilities adequately maintained? | D38: A. There is no maintenance of equipment and facilities | E38: =VLOOKUP(D38,Responses!B128:D133,2,FALSE) -> A | F38: =VLOOKUP(E38,Responses!C128:E133,2,FALSE) -> 0 | G38: 3 | H38: 1 | I38: 3 | J38: =IF(F38="NA"," ",F38*H38) -> 0 | K38: no facilities of equipment available
A39: Process | B39: 16. Law enforcement | C39: Can people (e.g. rangers or customary landowners – those with responsibility for managing the area) enforce protected area rules well enough? | D39: A. There is no effective human capacity, resources or authority to enforce protected area legislation and regulations OR community agreements | E39: =VLOOKUP(D39,Responses!B134:D139,2,FALSE) -> A | F39: =VLOOKUP(E39,Responses!C134:E139,2,FALSE) -> 0 | G39: 3 | H39: 1 | I39: 3 | J39: 0
A40: Governance | B40: 16a. Coordination of law enforcement | C40: How good is the coordination between the protected area Management Committee/managers and other groups who assist with law enforcement? | D40: A. There is no coordination | E40: =VLOOKUP(D40,Responses!B140:D145,2,FALSE) -> A | F40: =VLOOKUP(E40,Responses!C140:E145,2,FALSE) -> 0 | G40: 3 | H40: 0.5 | I40: 1.5 | J40: 0
A41: Governance | B41: 16b. Solving disputes or disagreements - documentation of processes | C41: Are there process to solve disputes related to the protected area, and do people know about these processes? | D41: A. There are no processes for dispute resolution and hence no documentation | E41: =VLOOKUP(D41,Responses!B146:D151,2,FALSE) -> A | F41: =VLOOKUP(E41,Responses!C146:E151,2,FALSE) -> 0 | G41: 3 | H41: 0.5 | I41: 1.5 | J41: 0
A42: Governance | B42: 16c. Solving disputes or disagreements – suitability of the process | C42: How suitable are the processes for resolving disputes or disagreements related to the protected area? | D42: A. There are no processes for dispute resolution | E42: =VLOOKUP(D42,Responses!B152:D157,2,FALSE) -> A | F42: =VLOOKUP(E42,Responses!C152:E157,2,FALSE) -> 0 | G42: 3 | H42: 0.25 | I42: 0.75 | J42: 0 | K42: Process or despute resolution process available but nont specifically for the PA
A43: Governance | B43: 16d. Solving disputes or disagreements - success | C43: How often do dispute resolution processes succeed in resolving protected area-related disputes? | D43: A. Almost never as very few people are aware of the processes and are able to use them | E43: =VLOOKUP(D43,Responses!B158:D163,2,FALSE) -> A | F43: =VLOOKUP(E43,Responses!C158:E163,2,FALSE) -> 0 | G43: 3 | H43: 0.25 | I43: 0.75 | J43: 0 | K43: Process or despute resolution process available but nont specifically for the PA
A44: Governance | B44: 16e. Prosecution of law breakers | C44: Are incidents of law breaking dealt with according to the rules/ law/ regulations? | D44: A. Prosecution/dealing with law often does not follow the rules/law/regulations | E44: =VLOOKUP(D44,Responses!B164:D169,2,FALSE) -> A | F44: =VLOOKUP(E44,Responses!C164:E169,2,FALSE) -> 0 | G44: 3 | H44: 0.5 | I44: 1.5 | J44: 0 | L44: will document later when progress with the PA work
A45: Governance | B45: 16f. Prosecution of law breakers | C45: All people are treated equally in relation to charges/prosecution for breaching protected area rules/laws/regulations (Y or N) | D45: No | E45: =VLOOKUP(D45,Responses!$E$2:$F$4,2,FALSE) -> 0 | F45: =VLOOKUP(D45,Responses!$E$2:$F$4,2,FALSE) -> 0 | G45: 1 | H45: 0.5 | I45: 0.5 | J45: 0 | K45: not available specifically fro PA
A46: Process | B46: 17. Protection systems/law enforcement - effectiveness | C46: Are systems (e.g. patrols, permits, signage etc) in place to control access by ‘outsiders’ and resource use in the protected area | D46: A. Protection systems/law enforcement (patrols, permits etc) do not exist or are not effective in controlling access/ resource use by ‘outsiders’, but are required | E46: =VLOOKUP(D46,Responses!B170:D175,2,FALSE) -> A | F46: =VLOOKUP(E46,Responses!C170:E175,2,FALSE) -> 0 | G46: 3 | H46: 1 | I46: 3 | J46: 0 | K46: not yet available
A47: Governance | B47: 17a. Reporting incidents | C47: If people know of a threat to the protected area do they report this to the Management Committee/ authority? | D47: A. No – they keep quiet | E47: =VLOOKUP(D47,Responses!B176:D181,2,FALSE) -> A | F47: =VLOOKUP(E47,Responses!C72:E77,2,FALSE) -> 0 | G47: 3 | H47: 0.5 | I47: 1.5 | J47: 0
A48: Process | B48: 18. Staff safety | C48: Do protected area staff/people doing work or looking after the area have safe working conditions and does management prioritise safety? | D48: A. The working environment for staff and community members is very poor | E48: =VLOOKUP(D48,Responses!B182:D187,2,FALSE) -> A | F48: =VLOOKUP(E48,Responses!C182:E187,2,FALSE) -> 0 | G48: 3 | H48: 1 | I48: 3 | J48: 0
A49: Process | B49: 19. Research | C49: Is there a programme of management-orientated survey, inventory and research work? | D49: C. There is survey, inventory or research work but it is only partly directed towards the needs of protected area management | E49: =VLOOKUP(D49,Responses!B188:D193,2,FALSE) -> C | F49: =VLOOKUP(E49,Responses!C188:E193,2,FALSE) -> 2 | G49: 3 | H49: 1 | I49: 3 | J49: 2 | K49: No inventory have been carried out intended to manage the PA
A50: Process | B50: 20. Monitoring and evaluation (of management activities) | C50: Are management activities monitored, evaluated and acted on (or adapted)? | D50: B. There is some unplanned and irregular monitoring and evaluation of the performance of management activities, but no overall strategy and/or no regular collection of results | E50: =VLOOKUP(D50,Responses!B194:D199,2,FALSE) -> B | F50: =VLOOKUP(E50,Responses!C194:E199,2,FALSE) -> 1 | G50: 3 | H50: 1 | I50: 3 | J50: 1 | K50: some research inventories have been carried out, some are adopted or used t manage the PA
A51: Process | B51: 21. Resource management | C51: Is active resource management of biodiversity and cultural activities (e.g. gardens, fishing areas, resource extraction sites) being undertaken? | D51: B. Some active management of the protected area is being implemented | E51: =VLOOKUP(D51,Responses!B200:D205,2,FALSE) -> B | F51: =VLOOKUP(E51,Responses!C200:E205,2,FALSE) -> 1 | G51: 3 | H51: 1 | I51: 3 | J51: 1 | K51: boundaries and zones are in place for other activities
A52: Process | B52: 22. Climate change | C52: Is the protected area consciously managed to adapt to climate change? | D52: B. Some initial thought has taken place about likely impacts of climate change, but his has yet to be translated into management plans or actions | E52: =VLOOKUP(D52,Responses!B206:D211,2,FALSE) -> B | F52: =VLOOKUP(E52,Responses!C206:E211,2,FALSE) -> 1 | G52: 3 | H52: 1 | I52: 3 | J52: =IF(F52="NA"," ",F52*H52) -> 1
A53: Process | B53: 23a. Carbon capture | C53: Is the protected area being consciously managed to prevent carbon loss? | D53: B. Preventing carbon loss has been considered in general terms, but is not reflected in management of the protected area | E53: =VLOOKUP(D53,Responses!B212:D217,2,FALSE) -> B | F53: =VLOOKUP(E53,Responses!C212:E217,2,FALSE) -> 1 | G53: 3 | H53: 0.5 | I53: 1.5 | J53: =IF(F53="NA"," ",F53*H53) -> 0.5 | K53: cutting down trees in Pas have been restricted
A54: Process | B54: 23b. Carbon storage | C54: Is the protected area being consciously managed to encourage carbon storage? | D54: B. Carbon storage has been considered in general terms, but is not significantly reflected in management of the protected area | E54: =VLOOKUP(D54,Responses!B218:D223,2,FALSE) -> B | F54: =VLOOKUP(E54,Responses!C218:E223,2,FALSE) -> 1 | G54: 3 | H54: 0.5 | I54: 1.5 | J54: =IF(F54="NA"," ",F54*H54) -> 0.5 | K54: cutting down trees in Pas have been restricted
A55: Process | B55: 24. Ecosystem services – benefits are known | C55: The ecosystem services provided by the protected area are well known (Y or N) | D55: Yes | E55: =VLOOKUP(D55,Responses!$E$2:$F$5,2,FALSE) -> 1 | F55: =VLOOKUP(D55,Responses!$E$2:$F$5,2,FALSE) -> 1 | G55: 1 | H55: 0.5 | I55: 0.5 | J55: =IF(F55="NA"," ",F55*H55) -> 0.5 | K55: known to some extent
A56: Process | B56: 24a. Ecosystem services | C56: Does management of the protected area take into account actions to enhance the protected area’s provision of ecosystem services? | D56: C. Most ecosystem services delivered by the protected area are managed to ensure their continued delivery | E56: =VLOOKUP(D56,Responses!B224:D229,2,FALSE) -> C | F56: =VLOOKUP(E56,Responses!C224:E229,2,FALSE) -> 2 | G56: 3 | H56: 0.5 | I56: 1.5 | J56: 1 | K56: customarily managed but not formally managed in relation to science or PA management
A57: Process | B57: 25. Education and awareness | C57: Is there a planned education and awareness programme about the protected area and linked to its objectives and needs? | D57: B. There is a limited and irregular education and awareness programme linked to the protected area’s objectives and needs | E57: =VLOOKUP(D57,Responses!B230:D235,2,FALSE) -> B | F57: =VLOOKUP(E57,Responses!C82:E87,2,FALSE) -> 1 | G57: 3 | H57: 1 | I57: 3 | J57: 1 | K57: education awareness used to be carreid out irregularly
A58: Process | B58: 26. Government neighbours and commercial neighbour cooperation | C58: Is there co-operation with adjacent government neighbours and commercial land/water users? | D58: A. There is no contact between the Management Committee/managers and neighbouring government and commercial land/water users | E58: =VLOOKUP(D58,Responses!B236:D241,2,FALSE) -> A | F58: =VLOOKUP(E58,Responses!C83:E88,2,FALSE) -> 0 | G58: 3 | H58: 1 | I58: 3 | J58: 0 | K58: at the moment nothing as been done becauase of its remoteness
A59: Process | B59: 27. Commercial tourism operators | C59: Do commercial tour operators cooperate and contribute to protected area management and provide benefits to the community? | D59: A. There is little or no contact between the Management Committee/ managers and tourism operators using the protected area | E59: =VLOOKUP(D59,Responses!B242:D247,2,FALSE) -> A | F59: =VLOOKUP(E59,Responses!C242:E247,2,FALSE) -> 0 | G59: 3 | H59: 1 | I59: 3 | J59: =IF(F59="NA"," ",F59*H59) -> 0 | K59: no commercial operators have contribute or come into the PA
A60: Process | B60: 28. Fees | C60: If fees (i.e. entry fees or fines) are applied, do they help protected area management? | D60: A. Although fees can be applied, they are not collected | E60: =VLOOKUP(D60,Responses!B248:D253,2,FALSE) -> A | F60: =VLOOKUP(E60,Responses!C248:E253,2,FALSE) -> 0 | G60: 3 | H60: 1 | I60: 3 | J60: =IF(F60="NA"," ",F60*H60) -> 0 | K60: As it is not officially documented no fees are applied | L60: Official documentation and gazzetal fees
A61: Output | B61: 29. Visitor facilities and services | C61: Are visitor facilities and services adequate? | D61: B. Visitor facilities and services are poor - they do not meet the needs of current visitor levels | E61: =VLOOKUP(D61,Responses!B254:D259,2,FALSE) -> B | F61: =VLOOKUP(E61,Responses!C86:E91,2,FALSE) -> 1 | G61: 3 | H61: 1 | I61: 3 | J61: 1 | K61: there are general facilities that can accommodate visitors but the facilities are very poor and not well managed and maintained, the facilities is not particularly for the PA but generally for any visitors comes into the village
A62: Process | B62: 30. Customary landowners | C62: Do customary landowners, who reside in or regularly use the protected area, have input into management decisions? | D62: B. Customary landowners have some input into discussions relating to management, but no direct role in management | E62: =VLOOKUP(D62,Responses!B260:D265,2,FALSE) -> B | F62: =VLOOKUP(E62,Responses!C260:E265,2,FALSE) -> 1 | G62: 3 | H62: 1 | I62: 3 | J62: =IF(F62="NA"," ",F62*H62) -> 1 | K62: other management meeting or discussions relating to the PA, the landowners are normally have inputs to it
A63: Process | B63: 31. Local communities and others with access or user ‘rights’ | C63: Do local communities and other rights’ holders living in or near the protected area, have input into relevant management decisions? | D63: A. Local communities and others with ‘access/user rights’ have no input into decisions relating to the management of the protected area | E63: =VLOOKUP(D63,Responses!B266:D271,2,FALSE) -> A | F63: =VLOOKUP(E63,Responses!C88:E93,2,FALSE) -> 0 | G63: 3 | H63: 1 | I63: 3 | J63: 0 | K63: the direct inputs are made only by the landowners at the moment
A64: Governance | B64: 31a. Proportion of women involved in decision making related to the protected area | C64: What percentage of women in the protected area community are involved in decision making about the protected area? | D64: B. Some (25-50%) | E64: =VLOOKUP(D64,Responses!B272:D277,2,FALSE) -> B | F64: =VLOOKUP(E64,Responses!C89:E94,2,FALSE) -> 1 | G64: 3 | H64: 0.25 | I64: 0.75 | J64: 0.25 | K64: women represent discussion and contribute to decision making
A65: Governance | B65: 31b. Participation of women in the full range of protected area decisions | C65: Women are involved in protected area decision making in relation to all issues relevant to protected area management (Y or N) | D65: No | E65: =VLOOKUP(D65,Responses!$E$2:$F$4,2,FALSE) -> 0 | F65: =VLOOKUP(D65,Responses!$E$2:$F$4,2,FALSE) -> 0 | G65: 1 | H65: 0.25 | I65: 0.25 | J65: 0 | K65: women represent involved in discussion but per decision are not made
A66: Governance | B66: 31c. Influence of women in decision making | C66: How much influence do women have on protected-area related decisions? | D66: B. Women have a small influence on protected area decisions | E66: =VLOOKUP(D66,Responses!B278:D283,2,FALSE) -> B | F66: =VLOOKUP(E66,Responses!C278:E283,2,FALSE) -> 1 | G66: 3 | H66: 0.25 | I66: 0.75 | J66: 0.25 | K66: women represent involved in discussion but per decision are not made
A67: Governance | B67: 31d. Participation of young people in the full range of protected area decisions | C67: Young people (under 20 years of age) are involved in protected area decision making in relation to all issues relevant to protected area management (Y or N) | D67: No | E67: =VLOOKUP(D67,Responses!$E$2:$F$4,2,FALSE) -> 0 | F67: =VLOOKUP(D67,Responses!$E$2:$F$4,2,FALSE) -> 0 | G67: 1 | H67: 0.25 | I67: 0.25 | J67: 0 | K67: They involved in discussion but any dicisions making are done by elders or leaders
A68: Governance | B68: 31e. Influence of young people in decision making | C68: How much influence do young people (under 20 years of age) have on protected-area related decisions? | D68: B. Young people have a small influence on protected area decisions | E68: =VLOOKUP(D68,Responses!B284:D289,2,FALSE) -> B | F68: =VLOOKUP(E68,Responses!C93:E98,2,FALSE) -> 1 | G68: 3 | H68: 0.25 | I68: =G68*H68 -> 0.75 | J68: =IF(F68="not relevant"," ",F68*H68) -> 0.25 | K68: They involved in discussion but any dicisions making are done by elders or leaders
A69: Governance | B69: 31f. Overall participation of people in the full range of protected area decisions | C69: There is opportunity for any person or group in the protected area and wider community to become involved in protected area decision making (Y or N) | D69: Yes | E69: =VLOOKUP(D69,Responses!$E$2:$F$4,2,FALSE) -> 1 | F69: =VLOOKUP(D69,Responses!$E$2:$F$4,2,FALSE) -> 1 | G69: 1 | H69: 0.25 | I69: 0.25 | J69: 0.25 | K69: awareness have beed carreid out and opportunity is given to all the neigbouring villages to take part in PA
A70: Output | B70: 31g. There is communication and trust between the customary landowners and … | C70: 1. CEPA (Y or N) | D70: No | E70: =VLOOKUP(D70,Responses!$E$2:$F$4,2,FALSE) -> 0 | F70: =VLOOKUP(D70,Responses!$E$2:$F$4,2,FALSE) -> 0 | G70: 1 | H70: 0.5 | I70: 0.5 | J70: 0 | K70: No contact, they did the initial EOI but no response from CEPA on 2018?
A71: Output | C71: 2. Provincial Government (Y or N) | D71: No | E71: =VLOOKUP(D71,Responses!$E$2:$F$4,2,FALSE) -> 0 | F71: =VLOOKUP(D71,Responses!$E$2:$F$4,2,FALSE) -> 0 | G71: 1 | H71: 0.5 | I71: 0.5 | J71: 0 | K71: Contact have been made with the provincial government to engage WCS but no other contacts have been made
A72: Output | C72: 3. Local Level Government (Y or N) | D72: No | E72: =VLOOKUP(D72,Responses!$E$2:$F$4,2,FALSE) -> 0 | F72: =VLOOKUP(D72,Responses!$E$2:$F$4,2,FALSE) -> 0 | G72: 1 | H72: 0.25 | I72: 0.25 | J72: 0 | K72: othter activities yes but not with PA
A73: Output | C73: 4. District representatives (e.g. District Development Authority) (Y or N) | D73: No | E73: =VLOOKUP(D73,Responses!$E$2:$F$4,2,FALSE) -> 0 | F73: =VLOOKUP(D73,Responses!$E$2:$F$4,2,FALSE) -> 0 | G73: 1 | H73: 0.25 | I73: 0.25 | J73: 0 | K73: Submission have been made, contacts been made but no feedback
A74: Output | C74: 5. Ward representatives (e.g. Ward Development Committee) (Y or N) | D74: Yes | E74: =VLOOKUP(D74,Responses!$E$2:$F$4,2,FALSE) -> 1 | F74: =VLOOKUP(D74,Responses!$E$2:$F$4,2,FALSE) -> 1 | G74: 1 | H74: 0.25 | I74: 0.25 | J74: 0.25 | K74: yes contact have been made
A75: Output | C75: 6. NGOs (Y or N) | D75: Yes | E75: =VLOOKUP(D75,Responses!$E$2:$F$4,2,FALSE) -> 1 | F75: =VLOOKUP(D75,Responses!$E$2:$F$4,2,FALSE) -> 1 | G75: 1 | H75: 0.25 | I75: 0.25 | J75: 0.25 | K75: WCS, OX FARM Community Lifelihood based in GKA
A76: Output | B76: 31h. Community welfare | C76: Programmes are being implemented to improve community/customary landowners’ welfare, while conserving protected area resources (Y or N) | D76: Yes | E76: =VLOOKUP(D76,Responses!$E$2:$F$4,2,FALSE) -> 1 | F76: =VLOOKUP(D76,Responses!$E$2:$F$4,2,FALSE) -> 1 | G76: 1 | H76: 1 | I76: 1 | J76: 1 | K76: not fully addressing welfare well enough but that’s the intention
A77: Output | B77: 31i. Level of support | C77: The local community and customary landowners actively support the protected area (Y or N) | D77: Yes | E77: =VLOOKUP(D77,Responses!$E$2:$F$4,2,FALSE) -> 1 | F77: =VLOOKUP(D77,Responses!$E$2:$F$4,2,FALSE) -> 1 | G77: 1 | H77: 1 | I77: 1 | J77: 1 | K77: Concent form have been signed by all customary landowners to support the PA
A78: Output | B78: 32. Livelihood benefits | C78: Are the protected area and related conservation and development projects providing sustained livelihood benefits to local communities/customary landowners, e.g. income/ employment? | D78: B. Benefits to local communities/customary landowners from the protected area and related conservation and development projects exist, but are not significant contributors to livelihoods (only a few people benefit) | E78: =VLOOKUP(D78,Responses!B290:D295,2,FALSE) -> B | F78: =VLOOKUP(E78,Responses!C290:E295,2,FALSE) -> 1 | G78: =IF(F78="not relevant",0,3) -> 3 | H78: 1 | I78: 3 | J78: 1 | K78: traditionally most of them involved but indirect benefit throgh conservation only young people involved
A79: Governance | B79: 32a. Benefit-sharing arrangements - effectiveness | C79: How effective are benefit-sharing arrangements in delivering benefits to all in the protected area? | D79: A. There are no benefit-sharing arrangements in place | E79: =VLOOKUP(D79,Responses!B296:D301,2,FALSE) -> A | F79: =VLOOKUP(E79,Responses!C296:E301,2,FALSE) -> 0 | G79: 3 | H79: 0.5 | I79: 1.5 | J79: =IF(F79="NA"," ",F79*H79) -> 0 | K79: nothing has been done at the moment, because there is no arrangement or any assistance
A80: Governance | B80: 32b. Distribution of livelihood benefits | C80: Are the livelihood benefits from the protected area equitably shared? | D80: Not relevant | E80: =VLOOKUP(D80,Responses!B302:D307,2,FALSE) -> NA | F80: =VLOOKUP(E80,Responses!C302:E307,2,FALSE) -> NA | G80: 3 | H80: 0.25 | I80: 0.75 | J80: =IF(F80="NA"," ",F80*H80) ->  | K80: no arrangement in place and no any livelihood benefit available
A81: Governance | B81: 32c Change in livelihoods over the past five years | C81: There has been an improvement in livelihood outcomes for the community over the past five years? (Y or N) | D81: Yes | G81: 1 | H81: 0.25 | I81: 0.25 | J81: 0 | K81: obviously there is no external benefit from the PA. but indirect benefit from the NGOs has contributed to the livelihoods but is not equitably shared.
A82: Output | B82: 33. Threats | C82: Are the threats to the main values of the protected area being effectively addressed? | D82: B. The threats to the main values are only being managed at a minimal level | E82: =VLOOKUP(D82,Responses!B308:D313,2,FALSE) -> B | F82: =VLOOKUP(E82,Responses!C108:E113,2,FALSE) -> 1 | G82: 3 | H82: 1 | I82: 3 | J82: 1 | K82: not effectively managed
A83: Output | B83: 34. Connectivity (linkages to other natural systems) | C83: Have the requirements for connectivity (i.e. direct linkages to other natural ecosystems) been assessed and implemented? | D83: B. The requirements for connectivity have been assessed but necessary actions have not been taken | E83: =VLOOKUP(D83,Responses!B314:D319,2,FALSE) -> B | F83: =VLOOKUP(E83,Responses!C314:E319,2,FALSE) -> 1 | G83: 3 | H83: 1 | I83: 3 | J83: =IF(F83="NA"," ",F83*H83) -> 1 | K83: not fully assessed
A84: Outcome | B84: 35. Condition of natural values | C84: What is the condition of the important natural values of the protected area, as compared to five to ten years ago? | D84: C. Some natural values are being partly degraded, but the most important natural values have not been significantly impacted | E84: =VLOOKUP(D84,Responses!B320:D325,2,FALSE) -> C | F84: =VLOOKUP(E84,Responses!C320:E325,2,FALSE) -> 2 | G84: 3 | H84: 1 | I84: 3 | J84: =IF(F84="NA"," ",F84*H84) -> 2 | K84: recently road construction will partly affect small part of grassland and unsustainable hunting practice used especially in fishing
A85: Process | B85: 35a. Condition of natural values - assessment based on research and/or monitoring and evaluation | C85: The assessment of the condition of natural values is based on research and/or monitoring (this includes both western science and traditional methods) (Y or N) | D85: Yes | E85: =VLOOKUP(D85,Responses!$E$2:$F$5,2,FALSE) -> 1 | F85: =VLOOKUP(D85,Responses!$E$2:$F$5,2,FALSE) -> 1 | G85: 1 | H85: 1 | I85: 1 | J85: =IF(F85="NA"," ",F85*H85) -> 1 | K85: WCS have also carried out research and also the ttraditional or cultural method aid in monitoring the values
A86: Process | B86: 35b. Management programmes | C86: Specific management programmes or approaches are being implemented to address threats to natural values (Y or N) | D86: Yes | E86: =VLOOKUP(D86,Responses!$E$2:$F$5,2,FALSE) -> 1 | F86: =VLOOKUP(D86,Responses!$E$2:$F$5,2,FALSE) -> 1 | G86: 1 | H86: 1 | I86: 1 | J86: =IF(F86="NA"," ",F86*H86) -> 1 | K86: exsisting specific programs on watercatchment and also the awareness programs and zoning
A87: Process | B87: 35c. Actions implemented as routine part of management | C87: Activities to maintain natural values are a routine part of protected area management (Y or N) | D87: No | E87: =VLOOKUP(D87,Responses!$E$2:$F$5,2,FALSE) -> 0 | F87: =VLOOKUP(D87,Responses!$E$2:$F$5,2,FALSE) -> 0 | G87: 1 | H87: 1 | I87: 1 | J87: =IF(F87="NA"," ",F87*H87) -> 0 | K87: irregular basis based on availabilityy of resources
A88: Outcome | B88: 36. Condition of cultural values | C88: What is the condition of the important cultural values of the protected area, as compared to five to ten years ago? | D88: C. Some cultural values are being partly degraded, but the most important cultural values have not been significantly impacted | E88: =VLOOKUP(D88,Responses!B326:D331,2,FALSE) -> C | F88: =VLOOKUP(E88,Responses!C326:E331,2,FALSE) -> 2 | G88: =IF(F88="not relevant",0,3) -> 3 | H88: 1 | I88: 3 | J88: =IF(F88="NA"," ",F88*H88) -> 2 | K88: some still are intact, some are degraded
A89: Process | B89: 36a. Condition of cultural values - assessment based on research and/or monitoring and evaluation | C89: The assessment of the condition of cultural values is based on research and/or monitoring (this includes both western science and traditional methods) (Y or N) | D89: Yes | E89: =VLOOKUP(D89,Responses!$E$2:$F$5,2,FALSE) -> 1 | F89: =VLOOKUP(D89,Responses!$E$2:$F$5,2,FALSE) -> 1 | G89: 1 | H89: 1 | I89: 1 | J89: 1 | K89: both traditional and western science does contribute to assess the condition of the cultural vaues
A90: Process | B90: 36b. Management programmes for cultural values | C90: Specific management programmes or approaches are being implemented to address threats to cultural values (Y or N) | D90: Yes | E90: =VLOOKUP(D90,Responses!$E$2:$F$5,2,FALSE) -> 1 | F90: =VLOOKUP(D90,Responses!$E$2:$F$5,2,FALSE) -> 1 | G90: 1 | H90: 1 | I90: 1 | J90: 1 | K90: exsisting specific programs on watercatchment and also the awareness programs and zoning
A91: Process | B91: 36c. Actions implemented as routine part of management to protect cultural values | C91: Activities to maintain cultural values are a routine part of protected area management (Y or N) | D91: Yes | E91: =VLOOKUP(D91,Responses!$E$2:$F$5,2,FALSE) -> 1 | F91: =VLOOKUP(D91,Responses!$E$2:$F$5,2,FALSE) -> 1 | G91: 1 | H91: 1 | I91: 1 | J91: 1 | K91: irregular basis based on availabilityy of resources
A92: Outcome | B92: 37. Conservation status of key plant or animal species | C92: Has the status of key species changed over the last five (5) years? | D92: A. The conservation status of key species is undesirable and has worsened over the last five years | E92: =VLOOKUP(D92,Responses!B332:D337,2,FALSE) -> A | F92: =VLOOKUP(E92,Responses!C118:E123,2,FALSE) -> 0 | G92: =IF(F92="not relevant",0,3) -> 3 | H92: 1 | I92: 3 | J92: 0 | K92: no available information or data but traditionally or from physical observation known to the locals
A93: Outcome | B93: 38. Conservation status of habitats | C93: Has the status of habitats changed over the last five (5) years? | D93: A. The conservation status of habitats is undesirable and has worsened over the last five years | E93: =VLOOKUP(D93,Responses!B338:D343,2,FALSE) -> A | F93: =VLOOKUP(E93,Responses!C343:E348,2,FALSE) -> 0 | G93: 3 | H93: 1 | I93: 3 | J93: 0 | K93: no available information or data but traditionally or from physical observation known to the locals
A94: Input | B94: 39a. Level of support - CEPA | C94: What support has CEPA provided to enhance the management effectiveness of the protected area over the last five years? | D94: A. None | E94: =VLOOKUP(D94,Responses!B344:D349,2,FALSE) -> A | F94: =VLOOKUP(E94,Responses!C344:E349,2,FALSE) -> 0 | G94: 3 | H94: 0.2 | I94: 0.6 | J94: 0 | K94: No contact, they did the initial EOI but no response from CEPA on 2018?
A95: Input | B95: 39b. Level of support – Provincial Government(s) | C95: What support has/have the provincial government(s) provided to enhance the management effectiveness of the protected area over the last five years? | D95: A. None | E95: =VLOOKUP(D95,Responses!B344:D349,2,FALSE) -> A | F95: =VLOOKUP(E95,Responses!C344:E349,2,FALSE) -> 0 | G95: 3 | H95: 0.2 | I95: 0.6 | J95: 0 | K95: Contact have been made with the provincial government to engage WCS but no other contacts have been made
A96: Input | B96: 39c. Level of support – District(s) | C96: What support has/have the District(s) provided to enhance the management effectiveness of the protected area over the last five years? | D96: A. None | E96: =VLOOKUP(D96,Responses!B344:D349,2,FALSE) -> A | F96: =VLOOKUP(E96,Responses!C344:E349,2,FALSE) -> 0 | G96: 3 | H96: 0.2 | I96: 0.6 | J96: 0 | K96: Submission have been made, contacts been made but no feedback
A97: Input | B97: 39d. Level of support – LLG(s) | C97: What support has/have the LGG(s) provided to enhance the management effectiveness of the protected area over the last five years? | D97: B. A little | E97: =VLOOKUP(D97,Responses!B344:D349,2,FALSE) -> B | F97: =VLOOKUP(E97,Responses!C344:E349,2,FALSE) -> 1 | G97: 3 | H97: 0.2 | I97: 0.6 | J97: 0.2 | K97: councilors have input in discussion but no other assistance appart from this
A98: Input | B98: 39e. Level of support – NGOs | C98: What support have NGOs provided to enhance the management effectiveness of the protected area over the last five years? | D98: C. Some | E98: =VLOOKUP(D98,Responses!B344:D349,2,FALSE) -> C | F98: =VLOOKUP(E98,Responses!C344:E349,2,FALSE) -> 2 | G98: 3 | H98: 0.2 | I98: 0.6 | J98: 0.4 | K98: environmental awarenss, setting up tree nesury, wildlife assessment, and other lifelihood activities (WCS, Ox Farm)
B99: TOTAL | F99: =SUM(F3:F98) -> 69 | G99: =SUM(G3:G98) -> 224 | I99: =SUM(I3:I98) -> 155.2 | J99: =SUM(J3:J98) -> 48.7

Sheet Responses (hidden)
A1: Question | H1: Condition | I1: Trend
A2: 1 | B2: select | C2: blank | D2: blank | E2: select | F2: blank | H2: Very good | I2: Increasing
B3: A. The protected area is not gazetted/approved by national or provincial government or has not been established through ‘other effective means’ | C3: A | D3: 0 | E3: Yes | F3: 1 | H3: Good | I3: Stable
B4: B. There is agreement that the protected area should be established but the process has not begun | C4: B | D4: 1 | E4: No | F4: 0 | H4: Fair | I4: Decreasing
B5: C. The protected area is in the process of being established, but the process is incomplete | C5: C | D5: 2 | E5: Not relevant | F5: NA | H5: Poor | I5: Don't know
B6: D. The protected area has been formally gazetted/approved by the national or provincial government or established through ‘other effective means’ | C6: D | D6: 3 | H6: Don't know
A8: 2 | B8: select | C8: blank | D8: blank
B9: A. No firm objectives have been agreed for the protected area to guide management | C9: A | D9: 0
B10: B. The protected area has agreed objectives, but is not managed according to these objectives | C10: B | D10: 1
B11: C. The protected area has agreed objectives, and is only partly managed according to these objectives | C11: C | D11: 2 | G11: research & monitoring
B12: D. The protected area has agreed objectives and is fully managed to meet these objectives | C12: D | D12: 3 | G12: planning documents & government data
G13: staff experience
A14: 3 | B14: select | C14: blank | D14: blank | G14: external expert opinion
B15: A. There are no regulations or customary laws or agreements for managing land and marine use and activities in the protected area | C15: A | D15: 0 | G15: customary knowledge/Community opinion
B16: B. Some regulations or customary laws for managing land/sea use and activities in the protected area exist but there are many weaknesses | C16: B | D16: 1 | G16: other (specify)
B17: C. Regulations or customary laws for managing land use and activities in the protected area exist, but there are some weaknesses or gaps | C17: C | D17: 2
B18: D. Regulations or customary laws for managing land use and activities in the protected area exist and provide an excellent basis for management | C18: D | D18: 3
G19: threat severity
A20: 3a | B20: select | C20: blank | D20: blank
B21: A. Protected area-related rules/laws/regulations are not clearly defined and documented | C21: A | D21: 0 | G21: select
B22: B. Some protected area-related rules/laws/ regulations are clearly defined and documented, but there are some important gaps | C22: B | D22: 1 | G22: Very high
B23: C. Most protected area-related rules/laws/ regulations are clearly defined and documented, with no important gaps | C23: C | D23: 2 | G23: High
B24: D. Most protected area-related rules/laws/ regulations are clearly defined and documented and anyone who wants to see/review/or know this information is able to do so | C24: D | D24: 3 | G24: Medium
G25: Low
A26: 3b | B26: select | C26: blank | D26: blank | G26: none
B27: A. The customary landowners/local community do not have any protected area-related user/access rights relating to accessing resources from the protected area (i.e. ability to hunt, fish or gather) | C27: A | D27: 0
B28: B. Some of the rights to use/access resources from the protected area are clearly defined and documented, but others are not | C28: B | D28: 1
B29: C. Most of the user/access rights to access resources from the protected area are clearly defined and documented | C29: C | D29: 2
B30: D. Most of the user/access rights to access resources from the protected area are clearly defined and documented, and anyone who wants to see or learn about this information is able to do so | C30: D | D30: 3
A32: 3c | B32: select | C32: blank | D32: blank
B33: A. Very few (less than 25%) | C33: A | D33: 0
B34: B. Some (25-50%) | C34: B | D34: 1
B35: C. Many (51-75%) | C35: C | D35: 2
B36: D. Most (more than 75%) | C36: D | D36: 3
A38: 4 | B38: select | C38: blank | D38: blank
B39: A. Planning for the land/marine uses that occur outside the protected area does not take into account the needs of the protected area and the resulting land/sea uses and policies harm the protected area | C39: A | D39: 0
B40: B. Planning for the land/marine uses that occur outside the protected area does not take into account the long-term needs of the protected area, but the resulting land/sea uses do not harm the protected area | C40: B | D40: 1
B41: C. Planning for the land/marine uses that occur outside the protected area takes into account some of the long-term needs of the protected area, and the resulting land/sea uses partially support the protected area | C41: C | D41: 2
B42: D. Planning for land/marine uses that occur outside the protected area fully takes into account the long-term needs of the protected area and seeks to support the protected area | C42: D | D42: 3
A44: 5 | B44: select | C44: blank | D44: blank
B45: A. The protected area is too small, or the boundaries are not a good shape (i.e. poor design), and this makes achieving the major management objectives very difficult | C45: A | D45: 0
B46: B. The protected area is too small, or the boundaries are not a good shape (i.e. poor design), but we are working to make it better (e.g. agreements with adjacent land/sea owners for wildlife corridors, or improving water catchment management) | C46: B | D46: 1
B47: C. The protected area size and boundaries (i.e. the design) are okay and allow us to achieve our objectives, but could be better (e.g. in relation to large-scale ecological processes or minimising threats) | C47: C | D47: 2
B48: D. Protected area size and the boundaries (i.e. the design) are very good and we can achieve our objectives | C48: D | D48: 3
B49: Not relevant | C49: NA | D49: NA
A50: 6a | B50: select | C50: blank | D50: blank
B51: A. None or only a small section of the protected area boundary is marked on the ground | C51: A | D51: 0
B52: B. Some of the protected area boundary is marked on the ground | C52: B | D52: 1
B53: C. Most of the protected area boundary is marked on the ground | C53: C | D53: 2
B54: D. All of the protected area boundary is marked on the ground (this could include a fence) | C54: D | D54: 3
A56: 6def | B56: select | C56: blank | D56: blank
B57: A. Very few (less than 25%) | C57: A | D57: 0
B58: B. Some (25-50%) | C58: B | D58: 1
B59: C. Many (51-75%) | C59: C | D59: 2
B60: D. Most (more than 75%) | C60: D | D60: 3
A62: 7 | B62: select | C62: blank | D62: blank
B63: A. There is no management plan for the protected area, or the management plan was produced a long time ago and is not being implemented | C63: A | D63: 0
B64: B. A management plan or similar is being prepared or has been prepared but is not being implemented | C64: B | D64: 1
B65: C. A management plan or similar exists but it is being partly implemented because of funding constraints or other problems | C65: C | D65: 2
B66: D. A management plan or similar exists and is being fully implemented | C66: D | D66: 3
A68: 7e | B68: select | C68: blank | D68: blank
B69: A. Structures and processes in relation to the Management Committee and related protected area decision-making are not known or understood by the protected area owners | C69: A | D69: 0
B70: B. Structures and processes in relation to the Management Committee and related protected area decision-making are little known or understood by the protected area owners | C70: B | D70: 1
B71: C. Structures and processes in relation to the Management Committee and related protected area decision-making are mostly known and understood by the protected area owners | C71: C | D71: 2
B72: D. Structures and processes in relation to the Management Committee and related protected area decision-making are fully known and understood by the protected area owners | C72: D | D72: 3
A74: 8 | B74: select | C74: blank | D74: blank
B75: A. No regular work plan exists | C75: A | D75: 0
B76: B. A regular work plan exists but only some of the activities are implemented | C76: B | D76: 1
B77: C. A regular work plan exists, and many activities are implemented | C77: C | D77: 2
B78: D. A regular work plan exists, and all activities are implemented | C78: D | D78: 3
A80: 9 | B80: select | C80: blank | D80: blank
B81: A. There is little or no information available about the protected area (e.g. critical habitats, species, ecological process and cultural values) and this makes management difficult | C81: A | D81: 0
B82: B. There is poor information about the protected area (e.g. critical habitats, species, ecological processes and cultural values) and this makes management difficult | C82: B | D82: 1
B83: C. There is good Information about the protected area (e.g. critical habitats, species, ecological processes and cultural values) for most areas of planning and decision making | C83: C | D83: 2
B84: D. There is very good Information on the protected area (e.g. critical habitats, species, ecological processes and cultural values) to support all areas of planning and decision making | C84: D | D84: 3
A86: 10 | B86: select | C86: blank | D86: blank
B87: A. There are no staff/people paid to work on the protected area, but they are ’needed | C87: A | D87: 0
B88: B. There are some paid staff/people who are responsible for important management activities, but this is inadequate to meet management needs | C88: B | D88: 1
B89: C. Paid staff numbers are good and support management of the protected area, but this is below what is required to meet management needs | C89: C | D89: 2
B90: D. Paid staff/people numbers are very good and fully meet the management needs of the protected area | C90: D | D90: 3
A92: 10a | B92: select | C92: blank | D92: blank
B93: A. There are no community members or customary landowners helping to manage the protected area, but they are needed | C93: A | D93: 0
B94: B. There are a few people to do important management activities in the protected area, but this is inadequate to meet management needs | C94: B | D94: 1
B95: C. There are some people to do important management activities in the protected area, but this is below what is required to fully meet management needs | C95: C | D95: 2
B96: D. There are plenty of people helping to manage the protected area and fully meet the management needs of the protected area | C96: D | D96: 3
A98: 11 | B98: select | C98: blank | D98: blank
B99: A. Knowledge and skills needed to manage the protected area are very poor or inadequate | C99: A | D99: 0
B100: B. Knowledge and skills are poor relative to the needs of the protected area | C100: B | D100: 1
B101: C. Knowledge and skills are good, but could be improved to better manage the protected area | C101: C | D101: 2
B102: D. Knowledge and skills to manage the protected area are very good and they meet the management needs of the area | C102: D | D102: 3
A104: 12 | B104: select | C104: blank | D104: blank
B105: A. There is no money from any source to manage the protected area | C105: A | D105: 0
B106: B. There is some money, but this is a serious problem that limits management effectiveness and should be increased to fully meet management needs | C106: B | D106: 1
B107: C. The available budget is acceptable but could be increased to fully meet management needs | C107: C | D107: 2
B108: D. The available budget is sufficient and fully meets the management needs of the protected area | C108: D | D108: 3
A110: 13 | B110: select | C110: blank | D110: blank
B111: A. There is no secure budget to manage the protected area and management is wholly reliant on outside or highly variable funding | C111: A | D111: 0
B112: B. There is very little budget security, and the protected area could not meet its management needs without outside funding | C112: B | D112: 1
B113: C. There is a reasonably secure budget for regular operation of the protected area to enable it to meet its management needs, but many initiatives are reliant on outside funding | C113: C | D113: 2
B114: D. There is a secure budget for the protected area and its management needs | C114: D | D114: 3
A116: 14 | B116: select | C116: blank | D116: blank
B117: A. Budget management is very poor and significantly undermines management effectiveness | C117: A | D117: 0
B118: B. Budget management is poor and constrains management effectiveness | C118: B | D118: 1
B119: C. Budget management is good but could be improved | C119: C | D119: 2
B120: D. Budget management is very good and meets management needs | C120: D | D120: 3
B121: Not relevant | C121: NA | D121: NA
A122: 15a | B122: select | C122: blank | D122: blank
B123: A. There are little or no equipment and facilities for management needs | C123: A | D123: 0
B124: B. There are some equipment and facilities, but these are inadequate for most management needs | C124: B | D124: 1
B125: C. There are sufficient equipment and facilities, and these enable us to undertake most management tasks, but there are some gaps | C125: C | D125: 2
B126: D. There are very good equipment and facilities, and these enable us to undertake all management tasks | C126: D | D126: 3
A128: 15b | B128: select | C128: blank | D128: blank
B129: A. There is no maintenance of equipment and facilities | C129: A | D129: 0
B130: B. There is some occasional maintenance of equipment and facilities | C130: B | D130: 1
B131: C. There is much ongoing, basic maintenance of equipment and facilities | C131: C | D131: 2
B132: D. Equipment and facilities are fully maintained | C132: D | D132: 3
B133: Not relevant | C133: NA | D133: NA
A134: 16 | B134: select | C134: blank | D134: blank
B135: A. There is no effective human capacity, resources or authority to enforce protected area legislation and regulations OR community agreements | C135: A | D135: 0
B136: B. There is some human capacity, resources or authority to enforce protected area legislation and regulations OR community agreements, but there are big gaps or deficiencies | C136: B | D136: 1
B137: C. There is acceptable human capacity, resources or authority to enforce protected area legislation and regulations OR community agreements, but there are a few gaps or deficiencies | C137: C | D137: 2
B138: D. There is excellent human capacity, resources or authority to enforce protected area legislation and regulations OR community agreements | C138: D | D138: 3
A140: 16a | B140: select | C140: blank | D140: blank
B141: A. There is no coordination | C141: A | D141: 0
B142: B. There is some effort to coordinate, but this does not work well | C142: B | D142: 1
B143: C. Coordination is good, but with some occasional problems | C143: C | D143: 2
B144: D. Coordination is very good | C144: D | D144: 3
A146: 16b | B146: select | C146: blank | D146: blank
B147: A. There are no processes for dispute resolution and hence no documentation | C147: A | D147: 0
B148: B. Some of the relevant dispute resolution processes are clearly documented or known, but others are not | C148: B | D148: 1
B149: C. Most of the relevant dispute resolution processes are clearly documented or known | C149: C | D149: 2
B150: D. Most of the relevant dispute resolution processes are clearly documented or known and anyone who wants to see and review/discuss this information is able to do so | C150: D | D150: 3
A152: 16c | B152: select | C152: blank | D152: blank
B153: A. There are no processes for dispute resolution | C153: A | D153: 0
B154: B. Dispute resolution processes are not suitable for solving protected area-related disputes | C154: B | D154: 1
B155: C. Dispute resolution processes are suitable for some protected area-related disputes, but not others | C155: C | D155: 2
B156: D. Dispute resolution processes are suitable for most or all types of protected area-related disputes | C156: D | D156: 3
A158: 16d | B158: select | C158: blank | D158: blank
B159: A. Almost never as very few people are aware of the processes and are able to use them | C159: A | D159: 0
B160: B. Some disputes are resolved (e.g. up to one-third of disputes), but most remain unresolved | C160: B | D160: 1
B161: C. Most disputes are resolved, but often there are some people who remain dissatisfied | C161: C | D161: 2
B162: D. Almost all disputes are resolved and normally all people in the dispute are satisfied with the outcome | C162: D | D162: 3
A164: 16e | B164: select | C164: blank | D164: blank
B165: A. Prosecution/dealing with law often does not follow the rules/law/regulations | C165: A | D165: 0
B166: B. Some incidents are handled according to the rules/law/regulations, but irregularities are common | C166: B | D166: 1
B167: C. Most incidents are handled according to the rules/law/regulations, but there are occasional irregularities | C167: C | D167: 2
B168: D. All incidents are properly handled according to the rules/law/regulations | C168: D | D168: 3
A170: 17 | B170: select | C170: blank | D170: blank
B171: A. Protection systems/law enforcement (patrols, permits etc) do not exist or are not effective in controlling access/ resource use by ‘outsiders’, but are required | C171: A | D171: 0
B172: B. Protection systems/law enforcement are partially effective in controlling access/ resource use by ‘outsiders’, but law breaking is still common | C172: B | D172: 1
B173: C. Protection systems/law enforcement are moderately effective in controlling access/resource use by ‘outsiders’, but there are still occasional cases of law breaking | C173: C | D173: 2
B174: D. Protection systems/law enforcement are largely or wholly effective in controlling access/resource use by ‘outsiders’, so law breaking is very rare | C174: D | D174: 3
A176: 17a | B176: select | C176: blank | D176: blank
B177: A. No – they keep quiet | C177: A | D177: 0
B178: B. Sometimes it is reported, but most times not | C178: B | D178: 1
B179: C. Most times it is reported, although sometimes not | C179: C | D179: 2
B180: D. Almost always reported in a timely manner, with very few exceptions | C180: D | D180: 3
A182: 18 | B182: select | C182: blank | D182: blank
B183: A. The working environment for staff and community members is very poor | C183: A | D183: 0
B184: B. The working environment for staff and community members is poor | C184: B | D184: 1
B185: C. The working environment for staff and community members is good, but improvements could be made | C185: C | D185: 2
B186: D. The working environment for staff and community members is very good as it is an important consideration for the protected area managers | C186: D | D186: 3
A188: 19 | B188: select | C188: blank | D188: blank
B189: A. There is no survey, inventory or research work taking place in the protected area | C189: A | D189: 0
B190: B. There is some survey, inventory or research work but it is not directed towards the needs of protected area management | C190: B | D190: 1
B191: C. There is survey, inventory or research work but it is only partly directed towards the needs of protected area management | C191: C | D191: 2
B192: D. There is a comprehensive, integrated programme of survey, inventory or research work, which is relevant to management needs | C192: D | D192: 3
A194: 20 | B194: select | C194: blank | D194: blank
B195: A. There is no monitoring and evaluation in the protected area | C195: A | D195: 0
B196: B. There is some unplanned and irregular monitoring and evaluation of the performance of management activities, but no overall strategy and/or no regular collection of results | C196: B | D196: 1
B197: C. There is agreed and implemented monitoring and evaluation, but results do not feed back into management | C197: C | D197: 2
B198: D. A good system of monitoring and evaluation exists, is well implemented and is used to adapt and improve management | C198: D | D198: 3
A200: 21 | B200: select | C200: blank | D200: blank
B201: A. There is no active resource management of critical habitats, species, ecological processes and cultural values, but it is needed | C201: A | D201: 0
B202: B. Some active management of the protected area is being implemented | C202: B | D202: 1
B203: C. Many of the requirements for active management of the protected area are being implemented but some key issues are not being addressed | C203: C | D203: 2
B204: D. Requirements for active management of the protected area are being fully implemented | C204: D | D204: 3
A206: 22 | B206: select | C206: blank | D206: blank
B207: A. There have been no efforts to consider adaptation to climate change in management of the protected area | C207: A | D207: 0
B208: B. Some initial thought has taken place about likely impacts of climate change, but his has yet to be translated into management plans or actions | C208: B | D208: 1
B209: C. Limited plans have been drawn up about how to adapt management to predicted climate change, which may or may not be implemented. | C209: C | D209: 2
B210: D. Detailed plans have been drawn up about how to adapt management to predicted climate change, and these are already being implemented. | C210: D | D210: 3
B211: Not relevant | C211: NA | D211: NA
A212: 23a | B212: select | C212: blank | D212: blank
B213: A. Preventing carbon loss has not been considered in protected area management | C213: A | D213: 0
B214: B. Preventing carbon loss has been considered in general terms, but is not reflected in management of the protected area | C214: B | D214: 1
B215: C. There are some measures to prevent carbon loss | C215: C | D215: 2
B216: D. There are several active measures in place to prevent carbon loss | C216: D | D216: 3
B217: Not relevant | C217: NA | D217: NA
A218: 23b | B218: select | C218: blank | D218: blank
B219: A. Carbon storage has not been considered in management of the protected area. | C219: A | D219: 0
B220: B. Carbon storage has been considered in general terms, but is not significantly reflected in management of the protected area | C220: B | D220: 1
B221: C. There are some measures in place to increase carbon dioxide storage | C221: C | D221: 2
B222: D. There are several active measures in place to increase carbon dioxide storage | C222: D | D222: 3
B223: Not relevant | C223: NA | D223: NA
A224: 24a | B224: select | C224: blank | D224: blank
B225: A. No ecosystem services delivered by the protected area are managed | C225: A | D225: 0
B226: B. A few ecosystem services delivered by the protected area are managed to ensure their continued delivery | C226: B | D226: 1
B227: C. Most ecosystem services delivered by the protected area are managed to ensure their continued delivery | C227: C | D227: 2
B228: D. All ecosystem services delivered by the protected area are managed to ensure their continued delivery | C228: D | D228: 3
... 111 more rows

Sheet ConditTrend (T9)
A1: Detailed assessment of values (Condition & Trend) (Table 9)
A2: Key value | B2: Condition | C2: Trend | D2: Justification for the rating | E2: Ways to improve the value | G2: Condition
A3: Values will be inserted from Table 3 | B3: Insert Score | C3: Insert Score | D3: Insert text to explain the score or rating that was selected | G3: VG
B4: Select from pull down menu | C4: Select from pull down menu | G4: G
A5: ='Key Values (T3)'!B4 -> clean water | B5: Good | C5: Stable | D5: The water is in a good condition, but natural occurrences of landslides sometimes affect the condition of water. Also because of the construction of the road at the moment, the sediment runoff may partly affect the water quality. | E5: more awareness will be carried out this is insufficient - need to know who, why etc? Perhaps you could say - Develop a catchment management plan with all relevant stakeholders (e.g. provincial government, LLGs, Ward and district representatives, road agencies, forestry ........) to identify the main catchment values and policies to ensure high quality water management. | G5: F
A6: ='Key Values (T3)'!B5 -> trees and plants | B6: Good | C6: Increasing | D6: The trees are intact but the grasslands are seasonlly burnt (e.g. during the dry season) and this affects most parts of the grasslands. | E6: more awareness will be carried out PLEASE EXPAND ON THIS AND THE COLLOWING RESPONSES. | G6: P
A7: ='Key Values (T3)'!B6 -> animals | B7: Good | C7: Stable | D7: At the moment it is believed that cliamte change may affect the migration of certain animals. However, we don’t have enough data or research to identify the source of the movement or reduction of animals | E7: more awareness will be carried out sounds like more research is needed here??? | G7: DK
A8: ='Key Values (T3)'!B7 -> sacred and cultural sites | B8: Very good | C8: Stable | D8: There is no disturbance of these sites because of fear and other cultural beliefs. | E8: awareness need to be made to maintain their condition | G8: Score
A9: ='Key Values (T3)'!B8 -> land itself | B9: Good | C9: Stable | D9: The land is in a good condition, but the construction of the raod at the moment is impacting on the land (erosion, sedimentation, clearing of vegetation). | E9: awareness and consultation with other interested stakeholders have to be establised | G9: I
A10: ='Key Values (T3)'!B9 -> grassland | B10: Fair | C10: Stable | D10: the grassland is normally burnt during dry season and at the moment there are road construction that may partly affect the area | E10: carrry out more awareness
A11: ='Key Values (T3)'!B10 -> 0
A12: ='Key Values (T3)'!B11 -> 0
G13: S

Sheet Recomm (T10)
A1: Recommendations (Table 10)
A2: Recommendations | B2: 1 | C2: 2 | D2: 3 | E2: 4 | F2: 5 | G2: 6
A3: ='Attributes (T1)'!C10 -> Kuraglba Conservation Area Is it actually recognised - it the scorecard Q 1 you say it is proposed - so this needs to be very clear as to its status. | B3: Expression of interest from KGWan Eco Habitat Inc. which has been submited via Micheal BONGRO for partnership with CEPA be considered. So what is being recommended here? | C3: Roles and Responsibilities of Global Environmental Fund (GEF 6) partners be defined in a letter of agreement.Please expand - I am not sure what this means. | D3: Kuraglba Proposed Protected Area be registered with CEPA and declared by 2023.

Sheet Str & Challenges (T11)
A1: Strengths and Challenges (Table 11)
A2: ='Attributes (T1)'!C10 -> Kuraglba Conservation Area Is it actually recognised - it the scorecard Q 1 you say it is proposed - so this needs to be very clear as to its status. | B2: ='Attributes (T1)'!C10 -> Kuraglba Conservation Area Is it actually recognised - it the scorecard Q 1 you say it is proposed - so this needs to be very clear as to its status.
A3: Strengths | B3: Challenges
A4: The Proposed Protected Area shares a corridore with the famous Mt. William National Parm and other mountain ranges that connect to other Provinces (Madang, Eastern Highlands). The area has beautiful scenery and is home to thousands of different species of plants and animlas that remain in a relatively good condition. | B4: Maintaining the biodiversity values in the face of increasing population and lack of support from other stakeholders and government bodies.
A5: The Proposed Protected Areas has in place its zoning maps that were initiated by the landowners. This minimzes incompatible activities in the Protected Area. The zoning indicates areas outside the PA which can be accessd and used by the locals for other purposes. | B5: No proper research and data collection that can be used to keep record for the boidiversity and the protected area at large to use for other future assessments or protected area information for sustainable development activities.
A6: There are cultural and traditional links to the land were people avoid entering which adds more value to the protected area. | B6: Establishing protected area in the face of Environment illiterate people.
A7: The area has plenty of clean running water. It is a headwater of Simbu's very own river (wara simbu). There is portential to develop other sustainable projects such as water suply. | B7: Maintaining biodiversity in the midst of coming infrsutructure activities.

Sheet GEF METT
A1: Tracking Tool for GEF-6 Biodiversity Projects
A4: GEF:6 Objective 1: Catalyzing Sustainability of Protected Area Systems
A5: SECTION II: Management Effectiveness Tracking Tool for Protected Areas
A6: Note: Please complete the management effectiveness tracking tool for EACH protected area that is the target of the GEF intervention to improve management effectiveness and create a new worksheet for each. Structure and content of the Tracking Tool - Objective 1. Section II: The Tracking Tool has five data sheets: Data Sheet 1: Records details of the assessment and some basic information about the site, such as name, size and location etc. Data Sheet 2: Provides a specific list of threats that the project is addressing. Data Sheet 3: Condition of biodiversity in the protected area. Data Sheet 4: Assessment Form: the assessment is structured around 30 questions presented in table format which includes three columns for recording details of the assessment, all of which should be completed. Data Sheet 5: Datasources and methods on which above assessments of condition of biodiversity in the protected area in Question 30 are based.
A7: PLEASE NOTE THAT THIS TOOL IS FOR USE ONLY IN GEF-6 PROJECTS
A9: Data Sheet 1: Reporting Progress at Protected Area Sites
A10: Questions | B10: Please indicate your answers here | G10: Notes
B11: Project Start-up | E11: Midterm | F11: Project Completion
A12: Name, affiliation and contact details for person responsible for completing the METT (email etc.) | B12: ='Attributes (T1)'!C69 -> James SABI, Manager - Terrestrial Ecosystems Management | G12: Please insert from Attributes Table 1, Q28a
A13: Date assessment carried out | B13: ='Attributes (T1)'!C75 -> 2021-09-28 | G13: Month DD, YYYY (e.g., May 12, 2010)
A14: Name of protected area | B14: ='Attributes (T1)'!C10 -> Kuraglba Conservation Area Is it actually recognised - it the scorecard Q 1 you say it is proposed - so this needs to be very clear as to its status. | E14: ='[1]METT4 PA attributes'!C5 -> 0 | F14: ='[1]METT4 PA attributes'!D5 -> 0
A15: WDPA site code (these codes can be found on www.protectedplanet.net) | B15: ='[1]METT4 PA attributes'!B6 -> xxx
A16: Country | B16: ='[1]METT4 PA attributes'!B3 -> Papua New Guinea
A17: Location of protected area (province and if possible map reference) | B17: ='Attributes (T1)'!C6 -> Simbu
A18: Date of establishment | B18: ='Attributes (T1)'!C13 -> 2018 Any chance of day/month information
A19: Ownership details (please choose 1-4) | B19: ='Attributes (T1)'!C25 -> customary landowners | G19: 1: State 2: Private 3: Community 4: Other
A20: Management Authority | B20: ='Attributes (T1)'!C31 -> customary landowners Is there a management committee or group that has a role in overseeing management?
A21: Size of protected area (ha) | B21: ='Attributes (T1)'!C15 -> 300 Is this km2 or hectares - just checking?
A22: Number of Permanent staff | B22: ='Attributes (T1)'!C37 -> 0
A23: Number of Temporary staff | B23: ='Attributes (T1)'!C38 -> 0
A24: Annual budget (US$) for recurrent (operational) funds – excluding staff salary costs | B24: ='Attributes (T1)'!C41 -> 0
A25: Annual budget (US$) for project or other supplementary funds – excluding staff salary costs | B25: ='Attributes (T1)'!C44 -> 0
A26: What are the main values for which the area is designated | B26: ='Attributes (T1)'!C48 -> clean water | G26: Add other values listed in attributes,Table 1, Q22.
A27: List the two primary protected area management objectives in below:
A28: Management objective 1 | B28: ='Attributes (T1)'!C54 -> At least 20,000ha of Inaugl biodiversity areas is managed under Kuraglba PA by 2023
A29: Management objective 2 | B29: ='Attributes (T1)'!C55 -> The capacity of Hurauglba Management Committee is improved by 2022
A30: No. of people involved in completing assessment | B30: ='Attributes (T1)'!C58 -> 7
A31: Including: (please choose 1-8) | G31: 1: PA manager 2: PA staff 3: Other PA agency staff 4: Donors 5: NGOs 6: External experts 7: Local community 8: Other
A35: Data Sheet 2: Key Biodiversity Indicators Used in This Protected Area
A36: At project start-up, identify and list up to five key biodiversity indicators that are monitored on a regular basis in the protected area; these indicators can relate to any/all trophic levels OR using other indicators. For each identified indicator, provide the current (project start-up) status of that indicator in numerical terms or with a short description (see examples below), as appropriate. The examples are only illustrative and the protected area manager should use the indicators that currently are being monitored and/or will be monitored. At project midterm and at project completion, provide updates on the status of the same indicator(s) identified at project start. The overall condition of biodiversity -- based on the status of the indicator(s) identified here -- will be reported on in Question 30 in Data Sheet 4 (METT Assessment Form). Therefore the inputs here require focused analysis to assess whether trends are positive, negative or neutral.
A37: Indicator | B37: Project Start-up | E37: Midterm | F37: Project Completion | G37: Comments (optional)
A38: Example Indicator 1: Degree of soil compaction and/or erosion, as indicated by test sites compared with exclosures Example Indicator 2: Average total area of grassland burnt by fire per year, as indicated by plotting GPS points following fire events Example Indicator 3: Total area deforested or with forest significantly degraded, as indicated by satellite imagery Example Indicator 4: Estimated population of a key herbivore species as indicated by dung counts Example Indicator 5: Estimated population of a key carnivore species as indicated by camera traps | B38: 23 hectares | E38: 35 hectares | F38: 50 hectares
A39: Indicator 1
A40: Indicator 2
A41: Indicator 3
A42: Indicator 4
A43: Indicator 5
A47: Data Sheet 3: Protected Areas Threats
A48: Please describe each threat that the project is directly addressing and provide the threat reduction indicator that the project is using from the project logframe to measure progress in reducing each threat. An example is provided.
A49: Questions | B49: Please enter your answers in this column. | G49: Comments (optional)
A50: Example Threat | B50: Illegal hunting for bushmeat
A51: Threat reduction indicator | B51: Quantity of bushmeant coming from Xanadu PA sold in markets
A52: Baseline status | B52: At the start of project bushmeat sales in markets are 20 tons/per year (baseline upon which progress will be measured).
A53: Target | B53: Quantities of bushmeat coming from "Xanadu Protected Area" sold in markets are reduced by 70% over the project period
A54: Midterm status | B54: Bushmeat sales are recorded to be 14 tons per year.
A55: End of project status | B55: Bushmeat sales are recorded to be 12 tons per year.
A56: Threat 1
A57: Threat reduction indicator
A58: Baseline status
A59: Target
A60: Midterm status
A61: End of project status
A62: Threat 2
A63: Threat reduction indicator
A64: Baseline status
A65: Target
A66: Midterm status
A67: End of project status
A71: Data Sheet 4: METT Assessment Form
A72: Please select a score from the drop-down list for each question. If a question is not applicable, then do not select a score and enter "N/A" in the comments space along with a brief explanation.
A73: Questions | B73: Project start-up | C73: Justification | D73: Actions to improve management | E73: Midterm | F73: Project Completion | G73: Criteria and Scores
A74: 1. Legal status: Does the protected area have legal status (or in the case of private reserves is covered by a covenant or similar)? | B74: ='Scorecard (T8)'!F3 -> 0 | C74: ='Scorecard (T8)'!K3 -> it’s a proposed area This needs to be clarified (when section in Attributes is fixed). I am unsure whether there is some sort of deed agreement (which you say was signed in 2018) or there is actually nothing in place. | D74: ='Scorecard (T8)'!L3 -> Liaise with WCS to get the area protected. | G74: 0: The protected area is not gazetted/covenanted 1: There is agreement that the protected area should be gazetted/covenanted but the process has not yet begun 2: The protected area is in the process of being gazetted/covenanted but the process is still incomplete (includes sites designated under international conventions, such as Ramsar, or local/traditional law such as community conserved areas, which do not yet have national legal status or covenant) 3: The protected area has been formally gazetted/covenanted
A75: Comments and Next Steps
A76: 2. Protected area regulations: Are appropriate regulations in place to control land use and activities (e.g. hunting)? | B76: ='Scorecard (T8)'!F5 -> 0 | C76: ='Scorecard (T8)'!K5 -> There are several customary sites or values that have customary laws (Tambu site) and that are linked to conservation or sustainable practices of using the natural resources.OK so customary laws are an important form of laws, rules, agreements -so we need to know some of the detail about these - is this possible? However, there are no conservation laws or agreement, or awareness, in the form of laws and regulations made and documented as yet. | D76: ='Scorecard (T8)'!L5 -> Prepare and complete a management plan and raise awareness with the community about this document. | G76: 0: There are no regulations for controlling land use and activities in the protected area 1: Some regulations for controlling land use and activities in the protected area exist but these are major weaknesses 2: Regulations for controlling land use and activities in the protected area exist but there are some weaknesses or gaps 3: Regulations for controlling inappropriate land use and activities in the protected area exist and provide an excellent basis for management
A77: Comments and Next Steps
A78: 3. Law Enforcement: Can staff (i.e. those with responsibility for managing the site) enforce protected area rules well enough? | B78: ='Scorecard (T8)'!F39 -> 0 | C78: ='Scorecard (T8)'!K39 -> 0 | D78: ='Scorecard (T8)'!L39 -> 0 | G78: 0: The staff have no effective capacity/resources to enforce protected area legislation and regulations 1: There are major deficiencies in staff capacity/resources to enforce protected area legislation and regulations (e.g. lack of skills, no patrol budget, lack of institutional support) 2: The staff have acceptable capacity/resources to enforce protected area legislation and regulations but some deficiencies remain 3: The staff have excellent capacity/resources to enforce protected area legislation and regulations
A79: Comments and Next Steps
A80: 4. Protected area objectives: Is management undertaken according to agreed objectives? | B80: ='Scorecard (T8)'!F4 -> 2 | C80: ='Scorecard (T8)'!K4 -> There are agreed objective but they are not documented. How were they agreed? Who agreed? | D80: ='Scorecard (T8)'!L4 -> Review and update the objectives and include in the management plan to enhance management of the area. | G80: 0: No firm objectives have been agreed for the protected area 1: The protected area has agreed objectives, but is not managed according to these objectives 2: The protected area has agreed objectives, but is only partially managed according to these objectives 3: The protected area has agreed objectives and is managed to meet these objectives
A81: Comments and Next Steps
A82: 5. Protected area design: Is the protected area the right size and shape to protect species, habitats, ecological processes and water catchments of key conservation concern? | B82: ='Scorecard (T8)'!F13 -> 2 | C82: ='Scorecard (T8)'!K13 -> The protected area has a very large amount of land at high altitude. It covers different ecosystems and contains different types of plants and animals. | D82: ='Scorecard (T8)'!L14 -> Discuss with the community whether the boundary should be marked on the ground. | G82: 0: Inadequacies in protected area design mean achieving the major objectives of the protected area is very difficult 1: Inadequacies in protected area design mean that achievement of major objectives is difficult but some mitigating actions are being taken (e.g. agreements with adjacent land owners for wildlife corridors or introduction of appropriate catchment management) 2: Protected area design is not significantly constraining achievement of objectives, but could be improved (e.g. with respect to larger scale ecological processes) 3: Protected area design helps achievement of objectives; it is appropriate for species and habitat conservation; and maintains ecological processes such as surface and groundwater flows at a catchment scale, natural disturbance patterns etc
A83: Comments and Next Steps
A84: 6. Protected area boundary demarcation: Is the boundary known and demarcated? | B84: ='Scorecard (T8)'!F14 -> 3 | C84: ='Scorecard (T8)'!K14 -> The whole of the protected area is described and known, but is not physically marked on the ground NEED TO REVIEW ANSWER - you say that nothing is marked on the ground - so the answer must be A. | D84: ='Scorecard (T8)'!L14 -> Discuss with the community whether the boundary should be marked on the ground. | G84: 0: The boundary of the protected area is not known by the management authority or local residents/neighbouring land users 1: The boundary of the protected area is known by the management authority but is not known by local residents/neighbouring land users 2: The boundary of the protected area is known by both the management authority and local residents/neighbouring land users but is not appropriately demarcated 3: The boundary of the protected area is known by the management authority and local residents/neighbouring land users and is appropriately demarcated
A85: Comments and Next Steps
A86: 7. Management plan: Is there a management plan and is it being implemented? | B86: ='Scorecard (T8)'!F22 -> 2 | C86: ='Scorecard (T8)'!K22 -> A management plan has been defined and implemented, but it is not yet officially documented. Can you say something more about this plan - can you get a copy? What does it cover? | D86: ='Scorecard (T8)'!L22 -> Review and formally adopt and implement the Management Plan. | G86: 0: There is no management plan for the protected area 1: A management plan is being prepared or has been prepared but is not being implemented 2: A management plan exists but it is only being partially implemented because of funding constraints or other problems 3: A management plan exists and is being implemented
A87: Comments and Next Steps
A88: 7.a Planning process: The planning process allows adequate opportunity for key stakeholders to influence the management plan | B88: ='Scorecard (T8)'!F23 -> 1 | C88: ='Scorecard (T8)'!K23 -> NGOs (WCS) and Government reps are also part of the planning process. | D88: ='Scorecard (T8)'!L23 -> When the management plan is reviewed, ensure inclusion of a wide range of stakeholders, including all levels of government, NGOs and relevant businesses). | G88: 0: No 1: Yes
A89: Comments and Next Steps
A90: 7.b Planning process: There is an established schedule and process for periodic review and updating of the management plan | B90: ='Scorecard (T8)'!F24 -> 0 | C90: ='Scorecard (T8)'!K24 -> There is no documented Management plan and no schedule to review the plan. | D90: ='Scorecard (T8)'!L24 -> Review the Management Plan and include statements about the review process for the plan. | G90: 0: No 1: Yes
A91: Comments and Next Steps
A92: 7.c Planning process: The results of monitoring, research and evaluation are routinely incorporated into planning | B92: ='Scorecard (T8)'!F49 -> 2 | C92: ='Scorecard (T8)'!K49 -> No inventory have been carried out intended to manage the PA | D92: ='Scorecard (T8)'!L49 -> 0 | G92: 0: No 1: Yes
A93: Comments and Next Steps
A94: 8. Regular work plan: Is there a regular work plan and is it being implemented | B94: ='Scorecard (T8)'!F29 -> 1 | C94: ='Scorecard (T8)'!K29 -> There is no documented Management plan and no Work Plan schedule. | D94: ='Scorecard (T8)'!L29 -> Develop and document a Work Plan to guide the activities that are undertaken in the protected area. | G94: 0: No regular work plan exists 1: A regular work plan exists but few of the activities are implemented 2: A regular work plan exists and many activities are implemented 3: A regular work plan exists and all activities are implemented
A95: Comments and Next Steps
A96: 9. Resource inventory: Do you have enough information to manage the area? | B96: ='Scorecard (T8)'!F30 -> 2 | C96: ='Scorecard (T8)'!K30 -> There is good customary knowledge of the area, but not mch inventory has been carried out and documented. | D96: ='Scorecard (T8)'!L30 -> Develop a plan to inventory the information that is related to the protected area, so that this can inform future management. | G96: 0: There is little or no information available on the critical habitats, species and cultural values of the protected area 1: Information on the critical habitats, species, ecological processes and cultural values of the protected area is not sufficient to support planning and decision making 2: Information on the critical habitats, species, ecological processes and cultural values of the protected area is sufficient for most key areas of planning and decision making 3: Information on the critical habitats, species, ecological processes and cultural values of the protected area is sufficient to support all areas of planning and decision making
A97: Comments and Next Steps
A98: 10. Protection systems: Are systems in place to control access/resource use in the protected area? | B98: ='Scorecard (T8)'!F46 -> 0 | C98: ='Scorecard (T8)'!K46 -> not yet available | D98: ='Scorecard (T8)'!L46 -> 0 | G98: 0: Protection systems (patrols, permits etc) do not exist or are not effective in controlling access/resource use 1: Protection systems are only partially effective in controlling access/resource use 2: Protection systems are moderately effective in controlling access/resource use 3: Protection systems are largely or wholly effective in controlling access/ resource use
A99: Comments and Next Steps
A100: 11. Research: Is there a programme of management-orientated survey and research work? | B100: ='Scorecard (T8)'!F49 -> 2 | C100: ='Scorecard (T8)'!K49 -> No inventory have been carried out intended to manage the PA | D100: ='Scorecard (T8)'!L49 -> 0 | G100: 0: There is no survey or research work taking place in the protected area 1: There is a small amount of survey and research work but it is not directed towards the needs of protected area management 2: There is considerable survey and research work but it is not directed towards the needs of protected area management 3:There is a comprehensive, integrated programme of survey and research work, which is relevant to management needs
A101: Comments and Next Steps
A102: 12. Resource management: Is active resource management being undertaken? | B102: ='Scorecard (T8)'!F51 -> 1 | C102: ='Scorecard (T8)'!K51 -> boundaries and zones are in place for other activities | D102: ='Scorecard (T8)'!L49 -> 0 | G102: 0: Active resource management is not being undertaken 1: Very few of the requirements for active management of critical habitats, species, ecological processes and cultural values are being implemented 2: Many of the requirements for active management of critical habitats, species, ecological processes and, cultural values are being implemented but some key issues are not being addressed 3: Requirements for active management of critical habitats, species, ecological processes and, cultural values are being substantially or fully implemented
A103: Comments and Next Steps
A104: 13. Staff numbers: Are there enough people employed to manage the protected area? | B104: ='Scorecard (T8)'!F31 -> 0 | C104: ='Scorecard (T8)'!K31 -> There are no people employed or paid to manage the protected area. | D104: ='Scorecard (T8)'!L31 -> Identify key staff that are needed to implement management actions in the protected area and seek funding. | G104: 0: There are no staff 1: Staff numbers are inadequate for critical management activities 2: Staff numbers are below optimum level for critical management activities 3: Staff numbers are adequate for the management needs of the protected area
A105: Comments and Next Steps
A106: 14. Staff training: Are staff adequately trained to fulfill management objectives? | B106: ='Scorecard (T8)'!F33 -> 2 | C106: ='Scorecard (T8)'!K33 -> A forest inventory and other research has been carried out which assists the locals to better understand the protected area, but we need more professional skills and knowledge to better manage the area. The customary landowners have extensive local knowledge of the area and its resources. | D106: ='Scorecard (T8)'!L33 -> Seek assistance to support the locals in improving their knoweldge and skills to better manage the protected area, e.g. ranger training, adminstrative and financial training. | G106: 0: Staff lack the skills needed for protected area management 1: Staff training and skills are low relative to the needs of the protected area 2: Staff training and skills are adequate, but could be further improved to fully achieve the objectives of management 3: Staff training and skills are aligned with the management needs of the protected area
A107: Comments and Next Steps
A108: 15. Current budget: Is the current budget sufficient? | B108: ='Scorecard (T8)'!F34 -> 0 | C108: ='Scorecard (T8)'!K34 -> There is no support from any source. | D108: ='Scorecard (T8)'!L34 -> I GUESS YOU CAN SEE HOW I AM WRITING THIS COLUMN. CAN YOU PLEASE KEEP GOING AND PUT SOMETHING IN THIS COLUIMN -IT CAN BE CHECKED BY THE COMMUNITY LATER. PLEASE ALSO WRITE THIS IN SENTENCES. PLEASE ALSO WRITE THE ANSWERS IN COLUMN K IN SENTENCES -I WILL LEAVE THE REST OF THIS TO YOU TO FINISH. | G108: 0: There is no budget for management of the protected area 1: The available budget is inadequate for basic management needs and presents a serious constraint to the capacity to manage 2: The available budget is acceptable but could be further improved to fully achieve effective management 3: The available budget is sufficient and meets the full management needs of the protected area
A109: Comments and Next Steps
A110: 16. Security of budget: Is the budget secure? | B110: ='Scorecard (T8)'!F35 -> 0 | C110: ='Scorecard (T8)'!K35 -> no budget | D110: ='Scorecard (T8)'!L35 -> 0 | G110: 0: There is no secure budget for the protected area and management is wholly reliant on outside or highly variable funding 1: There is very little secure budget and the protected area could not function adequately without outside funding 2: There is a reasonably secure core budget for regular operation of the protected area but many innovations and initiatives are reliant on outside funding 3: There is a secure budget for the protected area and its management needs
A111: Comments and Next Steps
A112: 17. Management of budget: Is the budget managed to meet critical management needs? | B112: ='Scorecard (T8)'!F36 -> NA | C112: ='Scorecard (T8)'!K36 -> 0 | D112: ='Scorecard (T8)'!L36 -> 0 | G112: 0: Budget management is very poor and significantly undermines effectiveness (e.g. late release of budget in financial year) 1: Budget management is poor and constrains effectiveness 2: Budget management is adequate but could be improved 3: Budget management is excellent and meets management needs
A113: Comments and Next Steps
A114: 18. Equipment: Is equipment sufficient for management needs? | B114: ='Scorecard (T8)'!F37 -> 0 | C114: ='Scorecard (T8)'!K37 -> No equipment available | D114: ='Scorecard (T8)'!L37 -> 0 | G114: 0: There are little or no equipment and facilities for management needs 1: There are some equipment and facilities but these are inadequate for most management needs 2: There are equipment and facilities, but still some gaps that constrain management 3: There are adequate equipment and facilities
A115: Comments and Next Steps
A116: 19. Maintenance of equipment: Is equipment adequately maintained? | B116: ='Scorecard (T8)'!F38 -> 0 | C116: ='Scorecard (T8)'!K38 -> no facilities of equipment available | D116: ='Scorecard (T8)'!L38 -> 0 | G116: 0: There is little or no maintenance of equipment and facilities 1: There is some ad hoc maintenance of equipment and facilities 2: There is basic maintenance of equipment and facilities 3: Equipment and facilities are well maintained
A117: Comments and Next Steps
A118: 20. Education and awareness: Is there a planned education programme linked to the objectives and needs? | B118: ='Scorecard (T8)'!F57 -> 1 | C118: ='Scorecard (T8)'!K57 -> education awareness used to be carreid out irregularly | D118: ='Scorecard (T8)'!L57 -> 0 | G118: 0: There is no education and awareness programme 1: There is a limited and ad hoc education and awareness programme 2: There is an education and awareness programme but it only partly meets needs and could be improved 3: There is an appropriate and fully implemented education and awareness programme
A119: Comments and Next Steps
A120: 21. Planning for land and water use: Does land and water use planning recognise the protected area and aid the achievement of objectives? | B120: ='Scorecard (T8)'!F9 -> 3 | C120: ='Scorecard (T8)'!K9 -> therer are zoning of Protected area and the surrounding area outside protected areas that minimize the activties inside protected area (Does this relate to the PA community or to the broader landscape planning - This Q is about provincial and LLG land use planning e.g. do they have plans that identify the boundaries of the PA and policies that ensure there is recognition of the PA in decision making? Do forestry, agriculture, mining in outside area etc make decisions that consider impacts on the PA? It is unlikely that the score for this question is D as this would assume a range of planning in the wider landscape is in place to protect this area. | D120: ='Scorecard (T8)'!L9 -> review and maintain Maybe reconsider this when you review the response to this question. | G120: 0: Adjacent land and water use planning does not take into account the needs of the protected area and activities/policies are detrimental to the survival of the area 1: Adjacent land and water use planning does not takes into account the long term needs of the protected area, but activities are not detrimental the area 2: Adjacent land and water use planning partially takes into account the long term needs of the protected area 3: Adjacent land and water use planning fully takes into account the long term needs of the protected area
A121: Comments and Next Steps
A122: 21a. Land and water planning for habitat conservation: Planning and management in the catchment or landscape containing the protected area incorporates provision for adequate environmental conditions (e.g. volume, quality and timing of water flow, air pollution levels etc) to sustain relevant habitats. | B122: ='Scorecard (T8)'!F10 -> 1 | C122: ='Scorecard (T8)'!K10 -> based on the awareness This response is not telling us what planning is in place in the wider catchment/landscape - what environmental provisions are in place to limit water pollution, maintain habitats etc -if the answer is Yes, then we need to know what is in place. | D122: ='Scorecard (T8)'!L10 -> more awareness will be carried out Awareness of whom? Does this mean the provincial planning unit, the LLG - ?? | G122: 0: No 1: Yes
A123: Comments and Next Steps
A124: 21b. Land and water planning for connectivity: Management of corridors linking the protected area provides for wildlife passage to key habitats outside the protected area (e.g. to allow migratory fish to travel between freshwater spawning sites and the sea, or to allow animal migration). | B124: ='Scorecard (T8)'!F11 -> 1 | C124: ='Scorecard (T8)'!K11 -> other proposed area (What area?) are also linked to the PA which incudes the movement of similar species of plants and animals, that incudes the headwaters within the PA (Please describe what corridors exist - may need to describe how the PA is linked to its surroundings - is it mainly forested or has there been clearing - if it is cleared then what corridors are in place. If not cleared then perhaps there is surrounding forest which provides a natural corridor - please explain so that the reader who is not familiar with this area can understand the answer). | D124: ='Scorecard (T8)'!L11 -> review and carrry out more awareness (This doesn't provide clear direction for the future - review what and make who more aware?) | G124: 0: No 1: Yes
A125: Comments and Next Steps
A126: 21c. Land and water planning for ecosystem services and species conservation: "Planning adresses ecosystem-specific needs and/or the needs of particular species of concern at an ecosystem scale (e.g. volume, quality and timing of freshwater flow to sustain particular species, fire management to maintain savannah habitats etc.)" | B126: ='Scorecard (T8)'!F12 -> 1 | C126: ='Scorecard (T8)'!K12 -> awareness have been carried out, but not yet documented So the Q wants to know what planning has been done to understand the ecosystem needs of particular species - so what species, what planning, who has done it. The question is NOT about awareness raising, it is about the planning.Has the community discussed particular species/habitats and made some decisions about zones or rules -if so then the answer is YES, but this needs to be explained. | D126: ='Scorecard (T8)'!L12 -> review and document what? | G126: 0: No 1: Yes
A127: Comments and Next Steps
A128: 22. State and commercial neighbours:Is there co-operation with adjacent land and water users? | B128: ='Scorecard (T8)'!F58 -> 0 | C128: ='Scorecard (T8)'!K58 -> at the moment nothing as been done becauase of its remoteness | D128: ='Scorecard (T8)'!L58 -> 0 | G128: 0: There is no contact between managers and neighbouring official or corporate land and water users 1: There is contact between managers and neighbouring official or corporate land and water users but little or no cooperation 2: There is contact between managers and neighbouring official or corporate land and water users, but only some co-operation 3: There is regular contact between managers and neighbouring official or corporate land and water users, and substantial co-operation on management
A129: Comments and Next Steps
A130: 23. Indigenous people: Do indigenous and traditional peoples resident or regularly using the protected area have input to management decisions? | B130: ='Scorecard (T8)'!F62 -> 1 | C130: ='Scorecard (T8)'!K62 -> other management meeting or discussions relating to the PA, the landowners are normally have inputs to it | D130: ='Scorecard (T8)'!L62 -> 0 | G130: 0: Indigenous and traditional peoples have no input into decisions relating to the management of the protected area 1: Indigenous and traditional peoples have some input into discussions relating to management but no direct role in management 2: Indigenous and traditional peoples directly contribute to some relevant decisions relating to management but their involvement could be improved 3: Indigenous and traditional peoples directly participate in all relevant decisions relating to management, e.g. co-management
A131: Comments and Next Steps
A132: 24. Local communities: Do local communities resident or near the protected area have input to management decisions? | B132: ='Scorecard (T8)'!F63 -> 0 | C132: ='Scorecard (T8)'!K63 -> the direct inputs are made only by the landowners at the moment | D132: ='Scorecard (T8)'!L63 -> 0 | G132: 0: Local communities have no input into decisions relating to the management of the protected area 1: Local communities have some input into discussions relating to management but no direct role in management 2: Local communities directly contribute to some relevant decisions relating to management but their involvement could be improved 3: Local communities directly participate in all relevant decisions relating to management, e.g. co-management
A133: Comments and Next Steps
A134: 24 a. Impact on communities: There is open communication and trust between local and/or indigenous people, stakeholders and protected area managers | B134: ='Scorecard (T8)'!F70 -> 0 | C134: ='Scorecard (T8)'!K70 -> No contact, they did the initial EOI but no response from CEPA on 2018? | D134: ='Scorecard (T8)'!L70 -> 0 | G134: 0: No 1: Yes
A135: Comments and Next Steps
A136: 24 b. Impact on communities: Programmes to enhance community welfare, while conserving protected area resources, are being implemented | B136: ='Scorecard (T8)'!F76 -> 1 | C136: ='Scorecard (T8)'!K76 -> not fully addressing welfare well enough but that’s the intention | D136: ='Scorecard (T8)'!L76 -> 0 | G136: 0: No 1: Yes
A137: Comments and Next Steps
A138: 24 c. Impact on communities: Local and/or indigenous people actively support the protected area | B138: ='Scorecard (T8)'!F77 -> 1 | C138: ='Scorecard (T8)'!K77 -> Concent form have been signed by all customary landowners to support the PA | D138: ='Scorecard (T8)'!L77 -> 0 | G138: 0: No 1: Yes
A139: Comments and Next Steps
A140: 25. Economic benefit: Is the protected area providing economic benefits to local communities, e.g. income, employment, payment for environmental services? | B140: ='Scorecard (T8)'!F78 -> 1 | C140: ='Scorecard (T8)'!K78 -> traditionally most of them involved but indirect benefit throgh conservation only young people involved | D140: ='Scorecard (T8)'!L78 -> 0 | G140: 0: The protected area does not deliver any economic benefits to local communities 1: Potential economic benefits are recognised and plans to realise these are being developed 2: There is some flow of economic benefits to local communities 3: There is a major flow of economic benefits to local communities from activities associated with the protected area
A141: Comments and Next Steps
A142: 26. Monitoring and evaluation: Are management activities monitored against performance? | B142: ='Scorecard (T8)'!F50 -> 1 | C142: ='Scorecard (T8)'!K50 -> some research inventories have been carried out, some are adopted or used t manage the PA | D142: ='Scorecard (T8)'!L50 -> 0 | G142: 0: There is no monitoring and evaluation in the protected area 1: There is some ad hoc monitoring and evaluation, but no overall strategy and/or no regular collection of results 2: There is an agreed and implemented monitoring and evaluation system but results do not feed back into management 3: A good monitoring and evaluation system exists, is well implemented and used in adaptive management
A143: Comments and Next Steps
A144: 27. Visitor facilities: Are visitor facilities adequate? | B144: ='Scorecard (T8)'!F61 -> 1 | C144: ='Scorecard (T8)'!K61 -> there are general facilities that can accommodate visitors but the facilities are very poor and not well managed and maintained, the facilities is not particularly for the PA but generally for any visitors comes into the village | D144: ='Scorecard (T8)'!L61 -> 0 | G144: 0: There are no visitor facilities and services despite an identified need 1: Visitor facilities and services are inappropriate for current levels of visitation 2: Visitor facilities and services are adequate for current levels of visitation but could be improved 3: Visitor facilities and services are excellent for current levels of visitation
A145: Comments and Next Steps
A146: 28. Commercial tourism operators: Do commercial tour operators contribute to protected area management? | B146: ='Scorecard (T8)'!F59 -> 0 | C146: ='Scorecard (T8)'!K59 -> no commercial operators have contribute or come into the PA | D146: ='Scorecard (T8)'!L59 -> 0 | G146: 0: There is little or no contact between managers and tourism operators using the protected area 1: There is contact between managers and tourism operators but this is largely confined to administrative or regulatory matters 2: There is limited co-operation between managers and tourism operators to enhance visitor experiences and maintain protected area values 3: There is good co-operation between managers and tourism operators to enhance visitor experiences, and maintain protected area values
A147: Comments and Next Steps
A148: 29. Fees: If fees (i.e. entry fees or fines) are applied, do they help protected area management? | B148: ='Scorecard (T8)'!F60 -> 0 | C148: ='Scorecard (T8)'!K60 -> As it is not officially documented no fees are applied | D148: ='Scorecard (T8)'!L60 -> Official documentation and gazzetal fees | G148: 0: Although fees are theoretically applied, they are not collected 1: Fees are collected, but make no contribution to the protected area or its environs 2: Fees are collected, and make some contribution to the protected area and its environs 3: Fees are collected and make a substantial contribution to the protected area and its environs
A149: Comments and Next Steps
A150: 30. What is the overall condition of the biodiversity of the protected area in terms of the indicator(s) indicated in Data Sheet 2 above? | B150: ='Scorecard (T8)'!F84 -> 2 | C150: ='Scorecard (T8)'!K84 -> recently road construction will partly affect small part of grassland and unsustainable hunting practice used especially in fishing | D150: ='Scorecard (T8)'!L84 -> 0 | G150: 0: Severely degraded 1: Partially degraded 2: Mostly intact 3: Completely intact
A151: Comments and Next Steps | B151: Please complete Data Sheet 5 for Question 30 that follows below.
A152: Total METT Score (automatically calculated) | B152: =SUM(B74:B151) -> 35 | E152: =SUM(E74:E151) -> 0 | F152: =SUM(F74:F151) -> 0 | G152: Provide comments here (optional)
A156: Data Sheet 5: Data sources and methods used to assess the present overall condition of biodiversity in the protected area (METT Question 30, above).
A157: Summarize the data sources used to track the indicator(s) given in Data Sheet 2, and outline the method for assessing the indicator results. The indicator(s) will automatically appear in this table once entered in Data Sheet 2. This table (Data Sheet 5) should be updated, as appropriate, during each application of the METT. An example is provided.
A158: Indicator | B158: Summarize the data sources used to track this indicator | F158: Outline the method used for assessing the indicator results and what these show about the condition of biodiversity
A159: Example: Average total area of grassland burnt by fire per year | B159: Records of fire events during the period of monitoring - showing the extent of the area burnt, as recorded by park rangers using hand-held GPS devices to plot boundaries of area and calculate total number of hectares | F159: - Observation of overall trend – more, less or same amount of fire disturbance - Reference to scientific literature on ecosystem types to understand optimum fire intervals - Examination of fire record to determine historical trends in fires in the PA - Analysis of pattern to determine fire frequency in particular parts of PA in and beyond monitoring period
A160: =A39 -> Indicator 1
A161: =A40 -> Indicator 2
A162: =A41 -> Indicator 3
A163: =A42 -> Indicator 4
A164: =A43 -> Indicator 5
